Body Name,Body,Service Label,Service Code,Service Division Label,Service Division Code,Expenditure Category,Expenditure Code,CIPFA Detailed Expenditure Type,CIPFA Detailed Expenditure Code,Date,Transaction Number,CC 43 TBM Section,CCN 43 TBM Section,Net Amount,Capital and Revenue,Creditor Name
Brighton & Hove City Council,http://statistics.data.gov.uk/id/local-authority/00ML,Adult Social Care,BVASOC,S Svcs - Older People Svcs,PPL,Customer n Client Receipts,M,Fees n Charges,MB,27/09/2013,PAY00603196,CCOP,Community Care Older People,-8582.73,Revenue, Arlington House
Brighton & Hove City Council,http://statistics.data.gov.uk/id/local-authority/00ML,Adult Social Care,BVASOC,S Svcs - Older People Svcs,PPL,Third Party Payments,F,Other Establishments,FH,27/09/2013,PAY00603196,CCOP,Community Care Older People,31992.43,Revenue, Arlington House
Brighton & Hove City Council,http://statistics.data.gov.uk/id/local-authority/00ML,Adult Social Care,BVASOC,S Svcs - Physical Disability,PDY,Third Party Payments,F,Other Establishments,FH,27/09/2013,PAY00603196,CCPD,Com Care Physical Disabilities,-1400,Revenue, Arlington House
Brighton & Hove City Council,http://statistics.data.gov.uk/id/local-authority/00ML,Non-BHC Organisations,BVANON,Trusts,TRT,Supplies and Services,E,Miscellaneous Expenses,EM,27/09/2013,PAY00603196,NBHC,Non Council,450,Revenue, Arlington House
Brighton & Hove City Council,http://statistics.data.gov.uk/id/local-authority/00ML,Adult Social Care,BVASOC,S Svcs - Older People Svcs,PPL,Customer n Client Receipts,M,Fees n Charges,MB,11/09/2013,PAY00598550,CCOP,Community Care Older People,10752.47,Revenue, Arundel Park Lodge
Brighton & Hove City Council,http://statistics.data.gov.uk/id/local-authority/00ML,Adult Social Care,BVASOC,S Svcs - Older People Svcs,PPL,Third Party Payments,F,Other Establishments,FH,11/09/2013,PAY00598550,ASIT,Assessment and SIT,3267.32,Revenue, Arundel Park Lodge
Brighton & Hove City Council,http://statistics.data.gov.uk/id/local-authority/00ML,Adult Social Care,BVASOC,S Svcs - Older People Svcs,PPL,Third Party Payments,F,Other Establishments,FH,11/09/2013,PAY00598550,CCOP,Community Care Older People,3500.67,Revenue, Arundel Park Lodge
Brighton & Hove City Council,http://statistics.data.gov.uk/id/local-authority/00ML,Adult Social Care,BVASOC,S Svcs - Older People Svcs,PPL,Customer n Client Receipts,M,Fees n Charges,MB,27/09/2013,PAY00603197,CCOP,Community Care Older People,-9580.56,Revenue, Arundel Park Lodge
Brighton & Hove City Council,http://statistics.data.gov.uk/id/local-authority/00ML,Adult Social Care,BVASOC,S Svcs - Older People Svcs,PPL,Third Party Payments,F,Other Establishments,FH,27/09/2013,PAY00603197,CCOP,Community Care Older People,26626.84,Revenue, Arundel Park Lodge
Brighton & Hove City Council,http://statistics.data.gov.uk/id/local-authority/00ML,Cultural and Related Serv,BVACUL,Management Services (DEC),MGT,Transport Related,D,Direct Transport Costs,DA,13/09/2013,PAY00599420,CIPK,City Parks,54.12,Revenue, Westbourne Motors
Brighton & Hove City Council,http://statistics.data.gov.uk/id/local-authority/00ML,Environment & Regulatory Serv,BVAERS,Environmental Health,EVH,Customer n Client Receipts,M,Fees n Charges,MB,13/09/2013,PAY00599420,PROT,Public Protection,46.2,Revenue, Westbourne Motors
Brighton & Hove City Council,http://statistics.data.gov.uk/id/local-authority/00ML,Environment & Regulatory Serv,BVAERS,Management Services (DEC),MGT,Transport Related,D,Direct Transport Costs,DA,13/09/2013,PAY00599420,CICL,City Clean,318.12,Revenue, Westbourne Motors
Brighton & Hove City Council,http://statistics.data.gov.uk/id/local-authority/00ML,Housing General Fund,BVAHOG,Homelessness,HML,Supplies and Services,E,Miscellaneous Expenses,EM,18/09/2013,PAY00600235,TRAV,Travellers,858.4,Revenue, Westbourne Motors
Brighton & Hove City Council,http://statistics.data.gov.uk/id/local-authority/00ML,Cultural and Related Serv,BVACUL,Culture and Heritage,CHG,Supplies and Services,E,Services,EF,25/09/2013,PAY00602609,RPMU,Royal Pavilion and Museums,800,Revenue,2 Seas Links Ltd
Brighton & Hove City Council,http://statistics.data.gov.uk/id/local-authority/00ML,Cultural and Related Serv,BVACUL,Culture and Heritage,CHG,Supplies and Services,E,Miscellaneous Expenses,EM,18/09/2013,PAY00600122,VENU,Venues,350,Revenue,2Upfront Design
Brighton & Hove City Council,http://statistics.data.gov.uk/id/local-authority/00ML,Adult Social Care,BVASOC,S Svcs - Older People Svcs,PPL,Supplies and Services,E,Catering,EB,04/09/2013,PAY00596994,RCOP,Resource Centres Older People,514.71,Revenue,3663 BFS Group Ltd
Brighton & Hove City Council,http://statistics.data.gov.uk/id/local-authority/00ML,Adult Social Care,BVASOC,S Svcs - Older People Svcs,PPL,Supplies and Services,E,Catering,EB,06/09/2013,PAY00597640,RCOP,Resource Centres Older People,744.41,Revenue,3663 BFS Group Ltd
Brighton & Hove City Council,http://statistics.data.gov.uk/id/local-authority/00ML,Adult Social Care,BVASOC,S Svcs - Learning Disability,LDY,Supplies and Services,E,Catering,EB,13/09/2013,PAY00599226,LDAS,LD Accommodation Services,295.88,Revenue,3663 BFS Group Ltd
Brighton & Hove City Council,http://statistics.data.gov.uk/id/local-authority/00ML,Adult Social Care,BVASOC,S Svcs - Older People Svcs,PPL,Supplies and Services,E,Catering,EB,13/09/2013,PAY00599226,RCOP,Resource Centres Older People,2472.42,Revenue,3663 BFS Group Ltd
Brighton & Hove City Council,http://statistics.data.gov.uk/id/local-authority/00ML,Adult Social Care,BVASOC,S Svcs - Learning Disability,LDY,Supplies and Services,E,Catering,EB,18/09/2013,PAY00600183,LDAS,LD Accommodation Services,-11.99,Revenue,3663 BFS Group Ltd
Brighton & Hove City Council,http://statistics.data.gov.uk/id/local-authority/00ML,Adult Social Care,BVASOC,S Svcs - Older People Svcs,PPL,Supplies and Services,E,Catering,EB,18/09/2013,PAY00600183,DAYS,Day Services,210.2,Revenue,3663 BFS Group Ltd
Brighton & Hove City Council,http://statistics.data.gov.uk/id/local-authority/00ML,Adult Social Care,BVASOC,S Svcs - Older People Svcs,PPL,Supplies and Services,E,Catering,EB,18/09/2013,PAY00600183,RCOP,Resource Centres Older People,1427.88,Revenue,3663 BFS Group Ltd
Brighton & Hove City Council,http://statistics.data.gov.uk/id/local-authority/00ML,Adult Social Care,BVASOC,S Svcs - Older People Svcs,PPL,Supplies and Services,E,Catering,EB,20/09/2013,PAY00600977,RCOP,Resource Centres Older People,314.99,Revenue,3663 BFS Group Ltd
Brighton & Hove City Council,http://statistics.data.gov.uk/id/local-authority/00ML,Housing General Fund,BVAHOG,Homelessness,HML,Supplies and Services,E,Catering,EB,20/09/2013,PAY00600977,HOSS,Housing Supports Services,1566.18,Revenue,3663 BFS Group Ltd
Brighton & Hove City Council,http://statistics.data.gov.uk/id/local-authority/00ML,Adult Social Care,BVASOC,S Svcs - Older People Svcs,PPL,Supplies and Services,E,Catering,EB,25/09/2013,PAY00602186,DAYS,Day Services,472.25,Revenue,3663 BFS Group Ltd
Brighton & Hove City Council,http://statistics.data.gov.uk/id/local-authority/00ML,Adult Social Care,BVASOC,S Svcs - Learning Disability,LDY,Supplies and Services,E,Catering,EB,27/09/2013,PAY00602989,LDAS,LD Accommodation Services,274.65,Revenue,3663 BFS Group Ltd
Brighton & Hove City Council,http://statistics.data.gov.uk/id/local-authority/00ML,Adult Social Care,BVASOC,S Svcs - Older People Svcs,PPL,Supplies and Services,E,Catering,EB,27/09/2013,PAY00602989,RCOP,Resource Centres Older People,1343.58,Revenue,3663 BFS Group Ltd
Brighton & Hove City Council,http://statistics.data.gov.uk/id/local-authority/00ML,Housing General Fund,BVAHOG,Homelessness,HML,Supplies and Services,E,Catering,EB,27/09/2013,PAY00602989,HOSS,Housing Supports Services,161.01,Revenue,3663 BFS Group Ltd
Brighton & Hove City Council,http://statistics.data.gov.uk/id/local-authority/00ML,Central Support and Overheads,BVACEN,Holding Accounts,PPH,Supplies and Services,E,Print Stat & Gen Office Exps,ED,11/09/2013,PAY00598368,PROP,Property and Design,260.2,Revenue,A 1 News
Brighton & Hove City Council,http://statistics.data.gov.uk/id/local-authority/00ML,Adult Social Care,BVASOC,S Svcs Other Adult Services,ADT,Indirect Employees,B,Training,BM,11/09/2013,PAY00598461,ORGD,Organisational Development,279,Revenue,a.i.d Training & Operations Ltd
Brighton & Hove City Council,http://statistics.data.gov.uk/id/local-authority/00ML,Central Support and Overheads,BVACEN,Support Services (SSC),PPT,Indirect Employees,B,Training,BM,11/09/2013,PAY00598461,ORGD,Organisational Development,46,Revenue,a.i.d Training & Operations Ltd
Brighton & Hove City Council,http://statistics.data.gov.uk/id/local-authority/00ML,Adult Social Care,BVASOC,S Svcs Other Adult Services,ADT,Indirect Employees,B,Training,BM,18/09/2013,PAY00600114,ORGD,Organisational Development,289,Revenue,a.i.d Training & Operations Ltd
Brighton & Hove City Council,http://statistics.data.gov.uk/id/local-authority/00ML,Central Support and Overheads,BVACEN,Support Services (SSC),PPT,Indirect Employees,B,Training,BM,18/09/2013,PAY00600114,OHAS,Occupational Health and Safety,1100,Revenue,a.i.d Training & Operations Ltd
Brighton & Hove City Council,http://statistics.data.gov.uk/id/local-authority/00ML,Central Support and Overheads,BVACEN,Support Services (SSC),PPT,Indirect Employees,B,Training,BM,18/09/2013,PAY00600114,ORGD,Organisational Development,36,Revenue,a.i.d Training & Operations Ltd
Brighton & Hove City Council,http://statistics.data.gov.uk/id/local-authority/00ML,Adult Social Care,BVASOC,S Svcs Other Adult Services,ADT,Indirect Employees,B,Training,BM,25/09/2013,PAY00602135,ORGD,Organisational Development,569,Revenue,a.i.d Training & Operations Ltd
Brighton & Hove City Council,http://statistics.data.gov.uk/id/local-authority/00ML,Central Support and Overheads,BVACEN,Support Services (SSC),PPT,Indirect Employees,B,Training,BM,25/09/2013,PAY00602135,OHAS,Occupational Health and Safety,1100,Revenue,a.i.d Training & Operations Ltd
Brighton & Hove City Council,http://statistics.data.gov.uk/id/local-authority/00ML,Central Support and Overheads,BVACEN,Support Services (SSC),PPT,Indirect Employees,B,Training,BM,25/09/2013,PAY00602135,ORGD,Organisational Development,81,Revenue,a.i.d Training & Operations Ltd
Brighton & Hove City Council,http://statistics.data.gov.uk/id/local-authority/00ML,Central Support and Overheads,BVACEN,Support Services (SSC),PPT,Premises Related,C,Repair Maint n Alterations,CA,13/09/2013,PAY00599170,PROP,Property and Design,238.7,Revenue,AAC Service LLP
Brighton & Hove City Council,http://statistics.data.gov.uk/id/local-authority/00ML,Cultural and Related Serv,BVACUL,Recreation and Sport,REC,Premises Related,C,Repair Maint n Alterations,CA,04/09/2013,PAY00596988,SEAS,Seafront Services,370,Revenue,Abacus Property Maintenance Ltd
Brighton & Hove City Council,http://statistics.data.gov.uk/id/local-authority/00ML,Cultural and Related Serv,BVACUL,Recreation and Sport,REC,Premises Related,C,Repair Maint n Alterations,CA,13/09/2013,PAY00599220,SEAS,Seafront Services,1662.5,Revenue,Abacus Property Maintenance Ltd
Brighton & Hove City Council,http://statistics.data.gov.uk/id/local-authority/00ML,Cultural and Related Serv,BVACUL,Recreation and Sport,REC,Premises Related,C,Repair Maint n Alterations,CA,27/09/2013,PAY00602985,SEAS,Seafront Services,167.5,Revenue,Abacus Property Maintenance Ltd
Brighton & Hove City Council,http://statistics.data.gov.uk/id/local-authority/00ML,Non I&E,BVANON,CAP Transport,4TR,New Construction n Conversion,PB,Level Not Required,NR5026,27/09/2013,PAY00602985,HWEN,Highways Engineering,275,Capital,Abacus Property Maintenance Ltd
Brighton & Hove City Council,http://statistics.data.gov.uk/id/local-authority/00ML,Adult Social Care,BVASOC,S Svcs - Learning Disability,LDY,Customer n Client Receipts,M,Fees n Charges,MB,27/09/2013,PAY00603243,CCLD,Com Care Learning Disabilities,-630.4,Revenue,Abbey Care Group Ltd-Saxon Court
Brighton & Hove City Council,http://statistics.data.gov.uk/id/local-authority/00ML,Adult Social Care,BVASOC,S Svcs - Learning Disability,LDY,Third Party Payments,F,Other Establishments,FH,27/09/2013,PAY00603243,CCLD,Com Care Learning Disabilities,6296.6,Revenue,Abbey Care Group Ltd-Saxon Court
Brighton & Hove City Council,http://statistics.data.gov.uk/id/local-authority/00ML,Adult Social Care,BVASOC,S Svcs - Physical Disability,PDY,Customer n Client Receipts,M,Fees n Charges,MB,27/09/2013,PAY00603421,CCPD,Com Care Physical Disabilities,-336,Revenue,Abi House
Brighton & Hove City Council,http://statistics.data.gov.uk/id/local-authority/00ML,Adult Social Care,BVASOC,S Svcs - Physical Disability,PDY,Third Party Payments,F,Other Establishments,FH,27/09/2013,PAY00603421,CCPD,Com Care Physical Disabilities,4349.2,Revenue,Abi House
Brighton & Hove City Council,http://statistics.data.gov.uk/id/local-authority/00ML,Housing Revenue Account,BVAHOU,Hsing Management - HRA,HGM,Supplies and Services,E,Services,EF,18/09/2013,PAY00600388,HPAI,Property & Investment,3275,Revenue,ABIR Architects Ltd
Brighton & Hove City Council,http://statistics.data.gov.uk/id/local-authority/00ML,Adult Social Care,BVASOC,S Svcs - Physical Disability,PDY,Customer n Client Receipts,M,Fees n Charges,MB,27/09/2013,PAY00603255,CCPD,Com Care Physical Disabilities,-68,Revenue,About Me Care & Support
Brighton & Hove City Council,http://statistics.data.gov.uk/id/local-authority/00ML,Adult Social Care,BVASOC,S Svcs - Physical Disability,PDY,Third Party Payments,F,Other Establishments,FH,27/09/2013,PAY00603255,CCPD,Com Care Physical Disabilities,398.8,Revenue,About Me Care & Support
Brighton & Hove City Council,http://statistics.data.gov.uk/id/local-authority/00ML,Housing General Fund,BVAHOG,Homelessness,HML,Supplies and Services,E,Communications n Computing,EH,13/09/2013,PAY00599204,TAAS,Temp Accom and Allocations,19501.66,Revenue,Abritas Ltd
Brighton & Hove City Council,http://statistics.data.gov.uk/id/local-authority/00ML,Cultural and Related Serv,BVACUL,Culture and Heritage,CHG,Supplies and Services,E,Equip't Furniture n Materials,EA,20/09/2013,PAY00600840,RPMU,Royal Pavilion and Museums,435.44,Revenue,Absolute Museum & Gallery Products Ltd
Brighton & Hove City Council,http://statistics.data.gov.uk/id/local-authority/00ML,Non I&E,BVANON,Cap - Housing Services - HRA,4HR,New Construction n Conversion,PB,Level Not Required,NR5026,13/09/2013,PAY00599098,HPAI,Property & Investment,43274.45,Capital,Access Mobility
Brighton & Hove City Council,http://statistics.data.gov.uk/id/local-authority/00ML,Non I&E,BVANON,Cap - Housing Services - HRA,4HR,New Construction n Conversion,PB,Level Not Required,NR5026,18/09/2013,PAY00600010,HPAI,Property & Investment,8102.59,Capital,Access Mobility
Brighton & Hove City Council,http://statistics.data.gov.uk/id/local-authority/00ML,Non I&E,BVANON,Cap - Housing Services - HRA,4HR,New Construction n Conversion,PB,Level Not Required,NR5026,20/09/2013,PAY00600829,HPAI,Property & Investment,6416.49,Capital,Access Mobility
Brighton & Hove City Council,http://statistics.data.gov.uk/id/local-authority/00ML,Non I&E,BVANON,CAP Education Services,4ED,New Construction n Conversion,PB,Level Not Required,NR5026,27/09/2013,PAY00603331,OEDS,Other Education Support,1019.85,Capital,Accurate Roofing Ltd
Brighton & Hove City Council,http://statistics.data.gov.uk/id/local-authority/00ML,Adult Social Care,BVASOC,S Svcs - Learning Disability,LDY,Customer n Client Receipts,M,Fees n Charges,MB,27/09/2013,PAY00603194,CCLD,Com Care Learning Disabilities,-1728.2,Revenue,Acorn (Watford) Ltd
Brighton & Hove City Council,http://statistics.data.gov.uk/id/local-authority/00ML,Adult Social Care,BVASOC,S Svcs - Learning Disability,LDY,Third Party Payments,F,Other Establishments,FH,27/09/2013,PAY00603194,CCLD,Com Care Learning Disabilities,13329.84,Revenue,Acorn (Watford) Ltd
Brighton & Hove City Council,http://statistics.data.gov.uk/id/local-authority/00ML,Central Support and Overheads,BVACEN,Support Services (SSC),PPT,Premises Related,C,Cleaning n Domestic Supps,CH,13/09/2013,PAY00599675,PROP,Property and Design,5766.05,Revenue,Acorn Environmental
Brighton & Hove City Council,http://statistics.data.gov.uk/id/local-authority/00ML,Non I&E,BVANON,CAP Education Services,4ED,New Construction n Conversion,PB,Level Not Required,NR5026,06/09/2013,PAY00598181,OEDS,Other Education Support,11975,Capital,Acoustilux Suspended Ceilings Ltd
Brighton & Hove City Council,http://statistics.data.gov.uk/id/local-authority/00ML,Cultural and Related Serv,BVACUL,Culture and Heritage,CHG,Premises Related,C,Repair Maint n Alterations,CA,06/09/2013,PAY00598184,VENU,Venues,3179,Revenue,ACP Solutions
Brighton & Hove City Council,http://statistics.data.gov.uk/id/local-authority/00ML,Cultural and Related Serv,BVACUL,Culture and Heritage,CHG,Premises Related,C,Repair Maint n Alterations,CA,27/09/2013,PAY00603670,VENU,Venues,1650,Revenue,ACP Solutions
Brighton & Hove City Council,http://statistics.data.gov.uk/id/local-authority/00ML,Adult Social Care,BVASOC,S Svcs - Older People Svcs,PPL,Third Party Payments,F,Other Establishments,FH,27/09/2013,PAY00603689,OPMH,Community Care Older People MH,1300.42,Revenue,Acre Care Ltd
Brighton & Hove City Council,http://statistics.data.gov.uk/id/local-authority/00ML,Adult Social Care,BVASOC,S Svcs - Physical Disability,PDY,Third Party Payments,F,Other Establishments,FH,06/09/2013,PAY00598174,CONT,Contracts,300,Revenue,Action Deafness
Brighton & Hove City Council,http://statistics.data.gov.uk/id/local-authority/00ML,Adult Social Care,BVASOC,S Svcs - Learning Disability,LDY,Third Party Payments,F,Other Establishments,FH,11/09/2013,PAY00598866,CCLD,Com Care Learning Disabilities,200,Revenue,Action Deafness
Brighton & Hove City Council,http://statistics.data.gov.uk/id/local-authority/00ML,Education Services,BVAEDU,Ed Mgmt and Support Services,EMG,Supplies and Services,E,Print Stat & Gen Office Exps,ED,11/09/2013,PAY00598866,OEDS,Other Education Support,100,Revenue,Action Deafness
Brighton & Hove City Council,http://statistics.data.gov.uk/id/local-authority/00ML,Adult Social Care,BVASOC,S Svcs - Physical Disability,PDY,Third Party Payments,F,Other Establishments,FH,27/09/2013,PAY00603664,CONT,Contracts,400,Revenue,Action Deafness
Brighton & Hove City Council,http://statistics.data.gov.uk/id/local-authority/00ML,Adult Social Care,BVASOC,S Svcs - Physical Disability,PDY,Third Party Payments,F,Other Establishments,FH,06/09/2013,PAY00597972,CONT,Contracts,4897.5,Revenue,Action for Blind People
Brighton & Hove City Council,http://statistics.data.gov.uk/id/local-authority/00ML,Adult Social Care,BVASOC,S Svcs - Mental Health,MHT,Third Party Payments,F,Other Establishments,FH,13/09/2013,PAY00599406,ADMH,Community Care Adult MH,2386.02,Revenue,Action on Hearing loss
Brighton & Hove City Council,http://statistics.data.gov.uk/id/local-authority/00ML,Adult Social Care,BVASOC,S Svcs - Older People Svcs,PPL,Customer n Client Receipts,M,Fees n Charges,MB,13/09/2013,PAY00599406,OPMH,Community Care Older People MH,-240,Revenue,Action on Hearing loss
Brighton & Hove City Council,http://statistics.data.gov.uk/id/local-authority/00ML,Adult Social Care,BVASOC,S Svcs - Older People Svcs,PPL,Third Party Payments,F,Other Establishments,FH,13/09/2013,PAY00599406,OPMH,Community Care Older People MH,1596,Revenue,Action on Hearing loss
Brighton & Hove City Council,http://statistics.data.gov.uk/id/local-authority/00ML,Adult Social Care,BVASOC,S Svcs - Physical Disability,PDY,Customer n Client Receipts,M,Fees n Charges,MB,13/09/2013,PAY00599406,CCPD,Com Care Physical Disabilities,-108,Revenue,Action on Hearing loss
Brighton & Hove City Council,http://statistics.data.gov.uk/id/local-authority/00ML,Adult Social Care,BVASOC,S Svcs - Physical Disability,PDY,Third Party Payments,F,Other Establishments,FH,13/09/2013,PAY00599406,CCPD,Com Care Physical Disabilities,1272.8,Revenue,Action on Hearing loss
Brighton & Hove City Council,http://statistics.data.gov.uk/id/local-authority/00ML,Non I&E,BVANON,CAP Other Env Services,4EV,New Construction n Conversion,PB,Level Not Required,NR5026,11/09/2013,PAY00598422,PROP,Property and Design,1568.16,Capital,Action on Hearing Loss (Products)
Brighton & Hove City Council,http://statistics.data.gov.uk/id/local-authority/00ML,Adult Social Care,BVASOC,S Svcs - Physical Disability,PDY,Supplies and Services,E,Communications n Computing,EH,13/09/2013,PAY00599137,SSCT,S75 SCT,6.46,Revenue,Action on Hearing Loss (Products)
Brighton & Hove City Council,http://statistics.data.gov.uk/id/local-authority/00ML,Adult Social Care,BVASOC,S Svcs - Physical Disability,PDY,Supplies and Services,E,Equip't Furniture n Materials,EA,13/09/2013,PAY00599137,SSCT,S75 SCT,224.1,Revenue,Action on Hearing Loss (Products)
Brighton & Hove City Council,http://statistics.data.gov.uk/id/local-authority/00ML,Non I&E,BVANON,CAP Social Services,4RV,New Construction n Conversion,PB,Level Not Required,NR5026,25/09/2013,PAY00602087,ASIT,Assessment and SIT,381.36,Capital,Action on Hearing Loss (Products)
Brighton & Hove City Council,http://statistics.data.gov.uk/id/local-authority/00ML,Cultural and Related Serv,BVACUL,Culture and Heritage,CHG,Supplies and Services,E,Miscellaneous Expenses,EM,18/09/2013,PAY00600296,ODEV,Outdoor Events,90.05,Revenue,Active Sussex
Brighton & Hove City Council,http://statistics.data.gov.uk/id/local-authority/00ML,Cultural and Related Serv,BVACUL,Recreation and Sport,REC,Other Grants Reimbs n Conts,L,Other Grants,LA,18/09/2013,PAY00600296,SDEV,Sports Development,189,Revenue,Active Sussex
Brighton & Hove City Council,http://statistics.data.gov.uk/id/local-authority/00ML,Environment & Regulatory Serv,BVAERS,Consumer Protection,CNP,Supplies and Services,E,Grants n Subscriptions,EK,06/09/2013,PAY00598195,PROT,Public Protection,300,Revenue,ACTSO Ltd
Brighton & Hove City Council,http://statistics.data.gov.uk/id/local-authority/00ML,Cultural and Related Serv,BVACUL,Culture and Heritage,CHG,Supplies and Services,E,Equip't Furniture n Materials,EA,25/09/2013,PAY00602182,RPMU,Royal Pavilion and Museums,606,Revenue,Adam Adams Ltd
Brighton & Hove City Council,http://statistics.data.gov.uk/id/local-authority/00ML,Adult Social Care,BVASOC,S Svcs - Older People Svcs,PPL,Customer n Client Receipts,M,Fees n Charges,MB,27/09/2013,PAY00603363,CCOP,Community Care Older People,-557.24,Revenue,Adelaide Healthcare Ltd
Brighton & Hove City Council,http://statistics.data.gov.uk/id/local-authority/00ML,Adult Social Care,BVASOC,S Svcs - Older People Svcs,PPL,Third Party Payments,F,Other Establishments,FH,27/09/2013,PAY00603363,CCOP,Community Care Older People,2372,Revenue,Adelaide Healthcare Ltd
Brighton & Hove City Council,http://statistics.data.gov.uk/id/local-authority/00ML,Adult Social Care,BVASOC,S Svcs - Older People Svcs,PPL,Customer n Client Receipts,M,Fees n Charges,MB,06/09/2013,PAY00597818,CCOP,Community Care Older People,-477.19,Revenue,Adelaide Nursing Home
Brighton & Hove City Council,http://statistics.data.gov.uk/id/local-authority/00ML,Adult Social Care,BVASOC,S Svcs - Older People Svcs,PPL,Third Party Payments,F,Other Establishments,FH,06/09/2013,PAY00597818,CCOP,Community Care Older People,1960.42,Revenue,Adelaide Nursing Home
Brighton & Hove City Council,http://statistics.data.gov.uk/id/local-authority/00ML,Adult Social Care,BVASOC,S Svcs - Older People Svcs,PPL,Customer n Client Receipts,M,Fees n Charges,MB,11/09/2013,PAY00598549,CCOP,Community Care Older People,590.14,Revenue,Adelaide Nursing Home
Brighton & Hove City Council,http://statistics.data.gov.uk/id/local-authority/00ML,Adult Social Care,BVASOC,S Svcs - Older People Svcs,PPL,Supplies and Services,E,Miscellaneous Expenses,EM,11/09/2013,PAY00598549,CCOP,Community Care Older People,150,Revenue,Adelaide Nursing Home
Brighton & Hove City Council,http://statistics.data.gov.uk/id/local-authority/00ML,Adult Social Care,BVASOC,S Svcs - Older People Svcs,PPL,Third Party Payments,F,Other Establishments,FH,11/09/2013,PAY00598549,ASIT,Assessment and SIT,3328.81,Revenue,Adelaide Nursing Home
Brighton & Hove City Council,http://statistics.data.gov.uk/id/local-authority/00ML,Adult Social Care,BVASOC,S Svcs - Older People Svcs,PPL,Third Party Payments,F,Other Establishments,FH,11/09/2013,PAY00598549,CCOP,Community Care Older People,-2480.1,Revenue,Adelaide Nursing Home
Brighton & Hove City Council,http://statistics.data.gov.uk/id/local-authority/00ML,Adult Social Care,BVASOC,S Svcs - Older People Svcs,PPL,Customer n Client Receipts,M,Fees n Charges,MB,13/09/2013,PAY00599422,CCOP,Community Care Older People,-5012.14,Revenue,Adelaide Nursing Home
Brighton & Hove City Council,http://statistics.data.gov.uk/id/local-authority/00ML,Adult Social Care,BVASOC,S Svcs - Older People Svcs,PPL,Third Party Payments,F,Other Establishments,FH,13/09/2013,PAY00599422,CCOP,Community Care Older People,8250.12,Revenue,Adelaide Nursing Home
Brighton & Hove City Council,http://statistics.data.gov.uk/id/local-authority/00ML,Adult Social Care,BVASOC,S Svcs - Older People Svcs,PPL,Customer n Client Receipts,M,Fees n Charges,MB,25/09/2013,PAY00602235,CCOP,Community Care Older People,-438.59,Revenue,Adelaide Nursing Home
Brighton & Hove City Council,http://statistics.data.gov.uk/id/local-authority/00ML,Adult Social Care,BVASOC,S Svcs - Older People Svcs,PPL,Third Party Payments,F,Other Establishments,FH,25/09/2013,PAY00602235,CCOP,Community Care Older People,1060.91,Revenue,Adelaide Nursing Home
Brighton & Hove City Council,http://statistics.data.gov.uk/id/local-authority/00ML,Adult Social Care,BVASOC,S Svcs - Older People Svcs,PPL,Customer n Client Receipts,M,Fees n Charges,MB,27/09/2013,PAY00603195,CCOP,Community Care Older People,-10133.22,Revenue,Adelaide Nursing Home
Brighton & Hove City Council,http://statistics.data.gov.uk/id/local-authority/00ML,Adult Social Care,BVASOC,S Svcs - Older People Svcs,PPL,Third Party Payments,F,Other Establishments,FH,27/09/2013,PAY00603195,CCOP,Community Care Older People,38752.66,Revenue,Adelaide Nursing Home
Brighton & Hove City Council,http://statistics.data.gov.uk/id/local-authority/00ML,Adult Social Care,BVASOC,S Svcs - Physical Disability,PDY,Customer n Client Receipts,M,Fees n Charges,MB,27/09/2013,PAY00603195,CCPD,Com Care Physical Disabilities,-315.2,Revenue,Adelaide Nursing Home
Brighton & Hove City Council,http://statistics.data.gov.uk/id/local-authority/00ML,Adult Social Care,BVASOC,S Svcs - Physical Disability,PDY,Third Party Payments,F,Other Establishments,FH,27/09/2013,PAY00603195,CCPD,Com Care Physical Disabilities,2314.76,Revenue,Adelaide Nursing Home
Brighton & Hove City Council,http://statistics.data.gov.uk/id/local-authority/00ML,Adult Social Care,BVASOC,S Svcs - Older People Svcs,PPL,Customer n Client Receipts,M,Fees n Charges,MB,11/09/2013,PAY00598778,CCOP,Community Care Older People,-1177.51,Revenue,Adiemus Care Ltd
Brighton & Hove City Council,http://statistics.data.gov.uk/id/local-authority/00ML,Adult Social Care,BVASOC,S Svcs - Older People Svcs,PPL,Third Party Payments,F,Other Establishments,FH,11/09/2013,PAY00598778,CCOP,Community Care Older People,3219.14,Revenue,Adiemus Care Ltd
Brighton & Hove City Council,http://statistics.data.gov.uk/id/local-authority/00ML,Adult Social Care,BVASOC,S Svcs - Older People Svcs,PPL,Customer n Client Receipts,M,Fees n Charges,MB,18/09/2013,PAY00600510,CCOP,Community Care Older People,-1353.64,Revenue,Adiemus Care Ltd
Brighton & Hove City Council,http://statistics.data.gov.uk/id/local-authority/00ML,Adult Social Care,BVASOC,S Svcs - Older People Svcs,PPL,Third Party Payments,F,Other Establishments,FH,18/09/2013,PAY00600510,CCOP,Community Care Older People,8064.87,Revenue,Adiemus Care Ltd
Brighton & Hove City Council,http://statistics.data.gov.uk/id/local-authority/00ML,Cultural and Related Serv,BVACUL,Culture and Heritage,CHG,Premises Related,C,Repair Maint n Alterations,CA,18/09/2013,PAY00600266,RPMU,Royal Pavilion and Museums,306,Revenue,ADT Fire & Security Plc
Brighton & Hove City Council,http://statistics.data.gov.uk/id/local-authority/00ML,Non I&E,BVANON,CAP Education Services,4ED,Plant Machinery n Equipment,PE2,Level Not Required,NR5025,18/09/2013,PAY00600333,OEDS,Other Education Support,2490,Capital,Advanced Connections Ltd
Brighton & Hove City Council,http://statistics.data.gov.uk/id/local-authority/00ML,Non I&E,BVANON,CAP Education Services,4ED,Plant Machinery n Equipment,PE2,Level Not Required,NR5025,25/09/2013,PAY00602322,OEDS,Other Education Support,2490,Capital,Advanced Connections Ltd
Brighton & Hove City Council,http://statistics.data.gov.uk/id/local-authority/00ML,Non I&E,BVANON,CAP Education Services,4ED,Plant Machinery n Equipment,PE2,Level Not Required,NR5025,27/09/2013,PAY00603366,OEDS,Other Education Support,9020,Capital,Advanced Connections Ltd
Brighton & Hove City Council,http://statistics.data.gov.uk/id/local-authority/00ML,Adult Social Care,BVASOC,S Svcs - Learning Disability,LDY,Third Party Payments,F,Other Establishments,FH,18/09/2013,PAY00600145,CCLD,Com Care Learning Disabilities,2260.44,Revenue,Affinity Sutton Homes Ltd  (Rent)
Brighton & Hove City Council,http://statistics.data.gov.uk/id/local-authority/00ML,Adult Social Care,BVASOC,S Svcs - Learning Disability,LDY,Premises Related,C,Rents Payable,CC,27/09/2013,PAY00602955,RESP,Respite Services,21100.23,Revenue,Affinity Sutton Homes Ltd  (Rent)
Brighton & Hove City Council,http://statistics.data.gov.uk/id/local-authority/00ML,Adult Social Care,BVASOC,S Svcs - Older People Svcs,PPL,Customer n Client Receipts,M,Fees n Charges,MB,04/09/2013,PAY00596957,OPMH,Community Care Older People MH,-857,Revenue,Agincare UK Ltd
Brighton & Hove City Council,http://statistics.data.gov.uk/id/local-authority/00ML,Adult Social Care,BVASOC,S Svcs - Older People Svcs,PPL,Third Party Payments,F,Other Establishments,FH,04/09/2013,PAY00596957,OPMH,Community Care Older People MH,4160.59,Revenue,Agincare UK Ltd
Brighton & Hove City Council,http://statistics.data.gov.uk/id/local-authority/00ML,Adult Social Care,BVASOC,S Svcs Other Adult Services,ADT,Third Party Payments,F,Other Establishments,FH,04/09/2013,PAY00596957,CHIV,Community Care HIV,95.8,Revenue,Agincare UK Ltd
Brighton & Hove City Council,http://statistics.data.gov.uk/id/local-authority/00ML,Adult Social Care,BVASOC,S Svcs - Physical Disability,PDY,Customer n Client Receipts,M,Fees n Charges,MB,04/09/2013,PAY00596957,CCPD,Com Care Physical Disabilities,-17,Revenue,Agincare UK Ltd
Brighton & Hove City Council,http://statistics.data.gov.uk/id/local-authority/00ML,Adult Social Care,BVASOC,S Svcs - Physical Disability,PDY,Third Party Payments,F,Other Establishments,FH,04/09/2013,PAY00596957,CCPD,Com Care Physical Disabilities,196.8,Revenue,Agincare UK Ltd
Brighton & Hove City Council,http://statistics.data.gov.uk/id/local-authority/00ML,Adult Social Care,BVASOC,S Svcs - Older People Svcs,PPL,Customer n Client Receipts,M,Fees n Charges,MB,11/09/2013,PAY00598484,OPMH,Community Care Older People MH,-515,Revenue,Agincare UK Ltd
Brighton & Hove City Council,http://statistics.data.gov.uk/id/local-authority/00ML,Adult Social Care,BVASOC,S Svcs - Older People Svcs,PPL,Third Party Payments,F,Other Establishments,FH,11/09/2013,PAY00598484,OPMH,Community Care Older People MH,1961.3,Revenue,Agincare UK Ltd
Brighton & Hove City Council,http://statistics.data.gov.uk/id/local-authority/00ML,Adult Social Care,BVASOC,S Svcs Other Adult Services,ADT,Third Party Payments,F,Other Establishments,FH,11/09/2013,PAY00598484,CHIV,Community Care HIV,111,Revenue,Agincare UK Ltd
Brighton & Hove City Council,http://statistics.data.gov.uk/id/local-authority/00ML,Adult Social Care,BVASOC,S Svcs - Older People Svcs,PPL,Customer n Client Receipts,M,Fees n Charges,MB,18/09/2013,PAY00600142,OPMH,Community Care Older People MH,-2335,Revenue,Agincare UK Ltd
Brighton & Hove City Council,http://statistics.data.gov.uk/id/local-authority/00ML,Adult Social Care,BVASOC,S Svcs - Older People Svcs,PPL,Third Party Payments,F,Other Establishments,FH,18/09/2013,PAY00600142,OPMH,Community Care Older People MH,11290.96,Revenue,Agincare UK Ltd
Brighton & Hove City Council,http://statistics.data.gov.uk/id/local-authority/00ML,Adult Social Care,BVASOC,S Svcs Other Adult Services,ADT,Third Party Payments,F,Other Establishments,FH,18/09/2013,PAY00600142,CHIV,Community Care HIV,102.1,Revenue,Agincare UK Ltd
Brighton & Hove City Council,http://statistics.data.gov.uk/id/local-authority/00ML,Adult Social Care,BVASOC,S Svcs - Physical Disability,PDY,Customer n Client Receipts,M,Fees n Charges,MB,18/09/2013,PAY00600142,CCPD,Com Care Physical Disabilities,-17,Revenue,Agincare UK Ltd
Brighton & Hove City Council,http://statistics.data.gov.uk/id/local-authority/00ML,Adult Social Care,BVASOC,S Svcs - Physical Disability,PDY,Third Party Payments,F,Other Establishments,FH,18/09/2013,PAY00600142,CCPD,Com Care Physical Disabilities,176.8,Revenue,Agincare UK Ltd
Brighton & Hove City Council,http://statistics.data.gov.uk/id/local-authority/00ML,Adult Social Care,BVASOC,S Svcs - Older People Svcs,PPL,Customer n Client Receipts,M,Fees n Charges,MB,20/09/2013,PAY00600931,OPMH,Community Care Older People MH,-784,Revenue,Agincare UK Ltd
Brighton & Hove City Council,http://statistics.data.gov.uk/id/local-authority/00ML,Adult Social Care,BVASOC,S Svcs - Older People Svcs,PPL,Third Party Payments,F,Other Establishments,FH,20/09/2013,PAY00600931,OPMH,Community Care Older People MH,4107.88,Revenue,Agincare UK Ltd
Brighton & Hove City Council,http://statistics.data.gov.uk/id/local-authority/00ML,Adult Social Care,BVASOC,S Svcs - Older People Svcs,PPL,Customer n Client Receipts,M,Fees n Charges,MB,25/09/2013,PAY00602155,OPMH,Community Care Older People MH,-939,Revenue,Agincare UK Ltd
Brighton & Hove City Council,http://statistics.data.gov.uk/id/local-authority/00ML,Adult Social Care,BVASOC,S Svcs - Older People Svcs,PPL,Third Party Payments,F,Other Establishments,FH,25/09/2013,PAY00602155,OPMH,Community Care Older People MH,5081.21,Revenue,Agincare UK Ltd
Brighton & Hove City Council,http://statistics.data.gov.uk/id/local-authority/00ML,Adult Social Care,BVASOC,S Svcs Other Adult Services,ADT,Third Party Payments,F,Other Establishments,FH,25/09/2013,PAY00602155,CHIV,Community Care HIV,126.15,Revenue,Agincare UK Ltd
Brighton & Hove City Council,http://statistics.data.gov.uk/id/local-authority/00ML,Adult Social Care,BVASOC,S Svcs - Physical Disability,PDY,Customer n Client Receipts,M,Fees n Charges,MB,25/09/2013,PAY00602155,CCPD,Com Care Physical Disabilities,-17,Revenue,Agincare UK Ltd
Brighton & Hove City Council,http://statistics.data.gov.uk/id/local-authority/00ML,Adult Social Care,BVASOC,S Svcs - Physical Disability,PDY,Third Party Payments,F,Other Establishments,FH,25/09/2013,PAY00602155,CCPD,Com Care Physical Disabilities,205.73,Revenue,Agincare UK Ltd
Brighton & Hove City Council,http://statistics.data.gov.uk/id/local-authority/00ML,Adult Social Care,BVASOC,S Svcs - Physical Disability,PDY,Supplies and Services,E,Equip't Furniture n Materials,EA,25/09/2013,PAY00602046,SSCT,S75 SCT,297.2,Revenue,Aidapt Bathrooms Ltd
Brighton & Hove City Council,http://statistics.data.gov.uk/id/local-authority/00ML,Housing Revenue Account,BVAHOU,Hsing Management - HRA,HGM,Premises Related,C,Repair Maint n Alterations,CA,18/09/2013,PAY00600268,HPAI,Property & Investment,2795.96,Revenue,Airconaire Ltd
Brighton & Hove City Council,http://statistics.data.gov.uk/id/local-authority/00ML,Adult Social Care,BVASOC,S Svcs - Learning Disability,LDY,Customer n Client Receipts,M,Fees n Charges,MB,27/09/2013,PAY00602961,CCLD,Com Care Learning Disabilities,-2658,Revenue,Aitch Care Homes (London) Ltd
Brighton & Hove City Council,http://statistics.data.gov.uk/id/local-authority/00ML,Adult Social Care,BVASOC,S Svcs - Learning Disability,LDY,Third Party Payments,F,Other Establishments,FH,27/09/2013,PAY00602961,CCLD,Com Care Learning Disabilities,45271,Revenue,Aitch Care Homes (London) Ltd
Brighton & Hove City Council,http://statistics.data.gov.uk/id/local-authority/00ML,Adult Social Care,BVASOC,S Svcs Supported Employment,EMP,Supplies and Services,E,Miscellaneous Expenses,EM,13/09/2013,PAY00599754,SUPE,Supported Employment,350,Revenue,AJS Embroidery Services Ltd
Brighton & Hove City Council,http://statistics.data.gov.uk/id/local-authority/00ML,Adult Social Care,BVASOC,S Svcs - Physical Disability,PDY,Supplies and Services,E,Equip't Furniture n Materials,EA,04/09/2013,PAY00596911,SSCT,S75 SCT,419.56,Revenue,AKW Medi-Care Ltd
Brighton & Hove City Council,http://statistics.data.gov.uk/id/local-authority/00ML,Adult Social Care,BVASOC,S Svcs - Physical Disability,PDY,Supplies and Services,E,Equip't Furniture n Materials,EA,18/09/2013,PAY00600159,SSCT,S75 SCT,300,Revenue,Albert Haywood & Sons Ltd
Brighton & Hove City Council,http://statistics.data.gov.uk/id/local-authority/00ML,Cultural and Related Serv,BVACUL,Highways and Roads - Mntnce,HRM,Premises Related,C,Repair Maint n Alterations,CA,11/09/2013,PAY00598439,PROP,Property and Design,587.08,Revenue,Albourne Irrigation Services Ltd
Brighton & Hove City Council,http://statistics.data.gov.uk/id/local-authority/00ML,Environment & Regulatory Serv,BVAERS,Environmental Health,EVH,Supplies and Services,E,Print Stat & Gen Office Exps,ED,18/09/2013,PAY00600179,PROT,Public Protection,331.02,Revenue,Aldrington Press Ltd
Brighton & Hove City Council,http://statistics.data.gov.uk/id/local-authority/00ML,Environment & Regulatory Serv,BVAERS,Environmental Health,EVH,Supplies and Services,E,Equip't Furniture n Materials,EA,04/09/2013,PAY00597189,DEVP,Development Planning,1600.44,Revenue,Alere Ltd
Brighton & Hove City Council,http://statistics.data.gov.uk/id/local-authority/00ML,Education Services,BVAEDU,Ed Ed Other Other,ENF,Premises Related,C,Repair Maint n Alterations,CA,11/09/2013,PAY00598644,PROP,Property and Design,878.78,Revenue,Alfa Electric Ltd
Brighton & Hove City Council,http://statistics.data.gov.uk/id/local-authority/00ML,Education Services,BVAEDU,Ed Ed Other Other,ENF,Premises Related,C,Repair Maint n Alterations,CA,13/09/2013,PAY00599556,PROP,Property and Design,1699.8,Revenue,Alfa Electric Ltd
Brighton & Hove City Council,http://statistics.data.gov.uk/id/local-authority/00ML,Non I&E,BVANON,CAP Education Services,4ED,New Construction n Conversion,PB,Level Not Required,NR5026,18/09/2013,PAY00600346,OEDS,Other Education Support,1288.22,Capital,Alfa Electric Ltd
Brighton & Hove City Council,http://statistics.data.gov.uk/id/local-authority/00ML,Housing General Fund,BVAHOG,Homelessness,HML,Premises Related,C,Rents Payable,CC,13/09/2013,PAY00599648,TAAS,Temp Accom and Allocations,1000,Revenue,A-List Properties Limited
Brighton & Hove City Council,http://statistics.data.gov.uk/id/local-authority/00ML,Adult Social Care,BVASOC,S Svcs - Learning Disability,LDY,Third Party Payments,F,Other Establishments,FH,04/09/2013,PAY00596923,CCLD,Com Care Learning Disabilities,59.2,Revenue,Allied Healthcare Brighton Domicillary
Brighton & Hove City Council,http://statistics.data.gov.uk/id/local-authority/00ML,Adult Social Care,BVASOC,S Svcs - Older People Svcs,PPL,Customer n Client Receipts,M,Fees n Charges,MB,04/09/2013,PAY00596923,OPMH,Community Care Older People MH,-219,Revenue,Allied Healthcare Brighton Domicillary
Brighton & Hove City Council,http://statistics.data.gov.uk/id/local-authority/00ML,Adult Social Care,BVASOC,S Svcs - Older People Svcs,PPL,Third Party Payments,F,Other Establishments,FH,04/09/2013,PAY00596923,OPMH,Community Care Older People MH,1083.66,Revenue,Allied Healthcare Brighton Domicillary
Brighton & Hove City Council,http://statistics.data.gov.uk/id/local-authority/00ML,Adult Social Care,BVASOC,S Svcs - Physical Disability,PDY,Customer n Client Receipts,M,Fees n Charges,MB,04/09/2013,PAY00596923,CCPD,Com Care Physical Disabilities,-51,Revenue,Allied Healthcare Brighton Domicillary
Brighton & Hove City Council,http://statistics.data.gov.uk/id/local-authority/00ML,Adult Social Care,BVASOC,S Svcs - Physical Disability,PDY,Third Party Payments,F,Other Establishments,FH,04/09/2013,PAY00596923,CCPD,Com Care Physical Disabilities,313.23,Revenue,Allied Healthcare Brighton Domicillary
Brighton & Hove City Council,http://statistics.data.gov.uk/id/local-authority/00ML,Adult Social Care,BVASOC,S Svcs - Learning Disability,LDY,Third Party Payments,F,Other Establishments,FH,13/09/2013,PAY00599166,CCLD,Com Care Learning Disabilities,118.4,Revenue,Allied Healthcare Brighton Domicillary
Brighton & Hove City Council,http://statistics.data.gov.uk/id/local-authority/00ML,Adult Social Care,BVASOC,S Svcs - Older People Svcs,PPL,Customer n Client Receipts,M,Fees n Charges,MB,13/09/2013,PAY00599166,OPMH,Community Care Older People MH,-438,Revenue,Allied Healthcare Brighton Domicillary
Brighton & Hove City Council,http://statistics.data.gov.uk/id/local-authority/00ML,Adult Social Care,BVASOC,S Svcs - Older People Svcs,PPL,Third Party Payments,F,Other Establishments,FH,13/09/2013,PAY00599166,OPMH,Community Care Older People MH,2361.56,Revenue,Allied Healthcare Brighton Domicillary
Brighton & Hove City Council,http://statistics.data.gov.uk/id/local-authority/00ML,Adult Social Care,BVASOC,S Svcs - Physical Disability,PDY,Customer n Client Receipts,M,Fees n Charges,MB,13/09/2013,PAY00599166,CCPD,Com Care Physical Disabilities,-9,Revenue,Allied Healthcare Brighton Domicillary
Brighton & Hove City Council,http://statistics.data.gov.uk/id/local-authority/00ML,Adult Social Care,BVASOC,S Svcs - Physical Disability,PDY,Third Party Payments,F,Other Establishments,FH,13/09/2013,PAY00599166,CCPD,Com Care Physical Disabilities,292.3,Revenue,Allied Healthcare Brighton Domicillary
Brighton & Hove City Council,http://statistics.data.gov.uk/id/local-authority/00ML,Adult Social Care,BVASOC,S Svcs - Learning Disability,LDY,Third Party Payments,F,Other Establishments,FH,20/09/2013,PAY00600896,CCLD,Com Care Learning Disabilities,61.05,Revenue,Allied Healthcare Brighton Domicillary
Brighton & Hove City Council,http://statistics.data.gov.uk/id/local-authority/00ML,Adult Social Care,BVASOC,S Svcs - Older People Svcs,PPL,Customer n Client Receipts,M,Fees n Charges,MB,20/09/2013,PAY00600896,OPMH,Community Care Older People MH,-265,Revenue,Allied Healthcare Brighton Domicillary
Brighton & Hove City Council,http://statistics.data.gov.uk/id/local-authority/00ML,Adult Social Care,BVASOC,S Svcs - Older People Svcs,PPL,Third Party Payments,F,Other Establishments,FH,20/09/2013,PAY00600896,OPMH,Community Care Older People MH,1400.12,Revenue,Allied Healthcare Brighton Domicillary
Brighton & Hove City Council,http://statistics.data.gov.uk/id/local-authority/00ML,Adult Social Care,BVASOC,S Svcs - Physical Disability,PDY,Customer n Client Receipts,M,Fees n Charges,MB,20/09/2013,PAY00600896,CCPD,Com Care Physical Disabilities,-58,Revenue,Allied Healthcare Brighton Domicillary
Brighton & Hove City Council,http://statistics.data.gov.uk/id/local-authority/00ML,Adult Social Care,BVASOC,S Svcs - Physical Disability,PDY,Third Party Payments,F,Other Establishments,FH,20/09/2013,PAY00600896,CCPD,Com Care Physical Disabilities,287.79,Revenue,Allied Healthcare Brighton Domicillary
Brighton & Hove City Council,http://statistics.data.gov.uk/id/local-authority/00ML,Adult Social Care,BVASOC,S Svcs - Learning Disability,LDY,Third Party Payments,F,Other Establishments,FH,27/09/2013,PAY00602906,CCLD,Com Care Learning Disabilities,59.2,Revenue,Allied Healthcare Brighton Domicillary
Brighton & Hove City Council,http://statistics.data.gov.uk/id/local-authority/00ML,Adult Social Care,BVASOC,S Svcs - Older People Svcs,PPL,Customer n Client Receipts,M,Fees n Charges,MB,27/09/2013,PAY00602906,OPMH,Community Care Older People MH,-219,Revenue,Allied Healthcare Brighton Domicillary
Brighton & Hove City Council,http://statistics.data.gov.uk/id/local-authority/00ML,Adult Social Care,BVASOC,S Svcs - Older People Svcs,PPL,Third Party Payments,F,Other Establishments,FH,27/09/2013,PAY00602906,OPMH,Community Care Older People MH,1175,Revenue,Allied Healthcare Brighton Domicillary
Brighton & Hove City Council,http://statistics.data.gov.uk/id/local-authority/00ML,Adult Social Care,BVASOC,S Svcs - Physical Disability,PDY,Customer n Client Receipts,M,Fees n Charges,MB,27/09/2013,PAY00602906,CCPD,Com Care Physical Disabilities,-7,Revenue,Allied Healthcare Brighton Domicillary
Brighton & Hove City Council,http://statistics.data.gov.uk/id/local-authority/00ML,Adult Social Care,BVASOC,S Svcs - Physical Disability,PDY,Third Party Payments,F,Other Establishments,FH,27/09/2013,PAY00602906,CCPD,Com Care Physical Disabilities,134.68,Revenue,Allied Healthcare Brighton Domicillary
Brighton & Hove City Council,http://statistics.data.gov.uk/id/local-authority/00ML,Adult Social Care,BVASOC,S Svcs - Learning Disability,LDY,Supplies and Services,E,Equip't Furniture n Materials,EA,13/09/2013,PAY00599145,LDAS,LD Accommodation Services,420,Revenue,Allsop & Francis Ltd
Brighton & Hove City Council,http://statistics.data.gov.uk/id/local-authority/00ML,Central Support and Overheads,BVACEN,Support Services (SSC),PPT,Premises Related,C,Repair Maint n Alterations,CA,13/09/2013,PAY00599145,PROP,Property and Design,652.42,Revenue,Allsop & Francis Ltd
Brighton & Hove City Council,http://statistics.data.gov.uk/id/local-authority/00ML,Central Support and Overheads,BVACEN,Support Services (SSC),PPT,Premises Related,C,Repair Maint n Alterations,CA,25/09/2013,PAY00602101,PROP,Property and Design,487.1,Revenue,Allsop & Francis Ltd
Brighton & Hove City Council,http://statistics.data.gov.uk/id/local-authority/00ML,Central Support and Overheads,BVACEN,Holding Accounts,PPH,Transport Related,D,Direct Transport Costs,DA,04/09/2013,PAY00597315,CICL,City Clean,5651.19,Revenue,Allstar Business Solutions Ltd
Brighton & Hove City Council,http://statistics.data.gov.uk/id/local-authority/00ML,Central Support and Overheads,BVACEN,Support Services (SSC),PPT,Transport Related,D,Direct Transport Costs,DA,11/09/2013,PAY00598784,PROP,Property and Design,35,Revenue,Allstar Business Solutions Ltd
Brighton & Hove City Council,http://statistics.data.gov.uk/id/local-authority/00ML,Environment & Regulatory Serv,BVAERS,Environmental Health,EVH,Transport Related,D,Direct Transport Costs,DA,11/09/2013,PAY00598784,PROT,Public Protection,628.91,Revenue,Allstar Business Solutions Ltd
Brighton & Hove City Council,http://statistics.data.gov.uk/id/local-authority/00ML,Central Support and Overheads,BVACEN,Holding Accounts,PPH,Transport Related,D,Direct Transport Costs,DA,20/09/2013,PAY00601675,CICL,City Clean,5688.86,Revenue,Allstar Business Solutions Ltd
Brighton & Hove City Council,http://statistics.data.gov.uk/id/local-authority/00ML,Central Support and Overheads,BVACEN,Holding Accounts,PPH,Transport Related,D,Direct Transport Costs,DA,27/09/2013,PAY00603585,CICL,City Clean,291.08,Revenue,Allstar Business Solutions Ltd
Brighton & Hove City Council,http://statistics.data.gov.uk/id/local-authority/00ML,Education Services,BVAEDU,Ed Ed Other Other,ENF,Premises Related,C,Repair Maint n Alterations,CA,04/09/2013,PAY00597034,PROP,Property and Design,1100,Revenue,Allweather Roofing & Construction
Brighton & Hove City Council,http://statistics.data.gov.uk/id/local-authority/00ML,Non I&E,BVANON,CAP Education Services,4ED,New Construction n Conversion,PB,Level Not Required,NR5026,04/09/2013,PAY00597034,OEDS,Other Education Support,290,Capital,Allweather Roofing & Construction
Brighton & Hove City Council,http://statistics.data.gov.uk/id/local-authority/00ML,Non I&E,BVANON,CAP Education Services,4ED,New Construction n Conversion,PB,Level Not Required,NR5026,13/09/2013,PAY00599423,OEDS,Other Education Support,1250,Capital,Allweather Roofing & Construction
Brighton & Hove City Council,http://statistics.data.gov.uk/id/local-authority/00ML,Environment & Regulatory Serv,BVAERS,Management Services (DEC),MGT,Premises Related,C,Repair Maint n Alterations,CA,27/09/2013,PAY00603537,CICL,City Clean,1187.35,Revenue,Alpha Workwear Direct Limited
Brighton & Hove City Council,http://statistics.data.gov.uk/id/local-authority/00ML,Adult Social Care,BVASOC,Hsing Welfare,HGW,Transport Related,D,Contract Hire n Operating Leas,DB,27/09/2013,PAY00603346,ASIT,Assessment and SIT,270.32,Revenue,Alphabet (UK) Fleet Management Ltd
Brighton & Hove City Council,http://statistics.data.gov.uk/id/local-authority/00ML,Adult Social Care,BVASOC,S Svcs - Learning Disability,LDY,Transport Related,D,Direct Transport Costs,DA,27/09/2013,PAY00603346,LDAS,LD Accommodation Services,-201,Revenue,Alphabet (UK) Fleet Management Ltd
Brighton & Hove City Council,http://statistics.data.gov.uk/id/local-authority/00ML,Adult Social Care,BVASOC,S Svcs - Mental Health,MHT,Transport Related,D,Contract Hire n Operating Leas,DB,27/09/2013,PAY00603346,SPFT,S75 SPFT,172.67,Revenue,Alphabet (UK) Fleet Management Ltd
Brighton & Hove City Council,http://statistics.data.gov.uk/id/local-authority/00ML,Adult Social Care,BVASOC,S Svcs - Mental Health,MHT,Transport Related,D,Direct Transport Costs,DA,27/09/2013,PAY00603346,SPFT,S75 SPFT,245,Revenue,Alphabet (UK) Fleet Management Ltd
Brighton & Hove City Council,http://statistics.data.gov.uk/id/local-authority/00ML,Adult Social Care,BVASOC,S Svcs - Older People Svcs,PPL,Transport Related,D,Contract Hire n Operating Leas,DB,27/09/2013,PAY00603346,ASIT,Assessment and SIT,286.13,Revenue,Alphabet (UK) Fleet Management Ltd
Brighton & Hove City Council,http://statistics.data.gov.uk/id/local-authority/00ML,Adult Social Care,BVASOC,S Svcs - Older People Svcs,PPL,Transport Related,D,Contract Hire n Operating Leas,DB,27/09/2013,PAY00603346,DAYS,Day Services,200.26,Revenue,Alphabet (UK) Fleet Management Ltd
Brighton & Hove City Council,http://statistics.data.gov.uk/id/local-authority/00ML,Adult Social Care,BVASOC,S Svcs - Older People Svcs,PPL,Transport Related,D,Contract Hire n Operating Leas,DB,27/09/2013,PAY00603346,RCOP,Resource Centres Older People,511.81,Revenue,Alphabet (UK) Fleet Management Ltd
Brighton & Hove City Council,http://statistics.data.gov.uk/id/local-authority/00ML,Adult Social Care,BVASOC,S Svcs Supported Employment,EMP,Transport Related,D,Contract Hire n Operating Leas,DB,27/09/2013,PAY00603346,SUPE,Supported Employment,271.87,Revenue,Alphabet (UK) Fleet Management Ltd
Brighton & Hove City Council,http://statistics.data.gov.uk/id/local-authority/00ML,Central Support and Overheads,BVACEN,Support Services (SSC),PPT,Transport Related,D,Contract Hire n Operating Leas,DB,27/09/2013,PAY00603346,OEDS,Other Education Support,741.83,Revenue,Alphabet (UK) Fleet Management Ltd
Brighton & Hove City Council,http://statistics.data.gov.uk/id/local-authority/00ML,Children�s Social Care,BVACSC,Child Srvcs Com and Scl Work,FCW,Transport Related,D,Contract Hire n Operating Leas,DB,27/09/2013,PAY00603346,SOCK,Social Work,557.07,Revenue,Alphabet (UK) Fleet Management Ltd
Brighton & Hove City Council,http://statistics.data.gov.uk/id/local-authority/00ML,Children�s Social Care,BVACSC,Child Srvcs Leaving Care,FAL,Transport Related,D,Contract Hire n Operating Leas,DB,27/09/2013,PAY00603346,CHIC,Children In Care,165.54,Revenue,Alphabet (UK) Fleet Management Ltd
Brighton & Hove City Council,http://statistics.data.gov.uk/id/local-authority/00ML,Children�s Social Care,BVACSC,Child Srvcs - Other Fam Supp,FFX,Transport Related,D,Contract Hire n Operating Leas,DB,27/09/2013,PAY00603346,DISS,Disability Services,298.84,Revenue,Alphabet (UK) Fleet Management Ltd
Brighton & Hove City Council,http://statistics.data.gov.uk/id/local-authority/00ML,Highways and Transportation,BVAHRT,Parking Services,PRK,Transport Related,D,Contract Hire n Operating Leas,DB,27/09/2013,PAY00603346,PARK,Parking,381.3,Revenue,Alphabet (UK) Fleet Management Ltd
Brighton & Hove City Council,http://statistics.data.gov.uk/id/local-authority/00ML,Housing General Fund,BVAHOG,Homelessness,HML,Transport Related,D,Contract Hire n Operating Leas,DB,27/09/2013,PAY00603346,TAAS,Temp Accom and Allocations,400.21,Revenue,Alphabet (UK) Fleet Management Ltd
Brighton & Hove City Council,http://statistics.data.gov.uk/id/local-authority/00ML,Housing Revenue Account,BVAHOU,Hsing Management - HRA,HGM,Transport Related,D,Contract Hire n Operating Leas,DB,27/09/2013,PAY00603346,HTEN,Tenancy Services,163.06,Revenue,Alphabet (UK) Fleet Management Ltd
Brighton & Hove City Council,http://statistics.data.gov.uk/id/local-authority/00ML,Housing Revenue Account,BVAHOU,Hsing Management - HRA,HGM,Transport Related,D,Direct Transport Costs,DA,27/09/2013,PAY00603346,HIII,Income Involvement Improvement,-404,Revenue,Alphabet (UK) Fleet Management Ltd
Brighton & Hove City Council,http://statistics.data.gov.uk/id/local-authority/00ML,Housing Revenue Account,BVAHOU,Hsing Strategy - HRA,HGT,Transport Related,D,Contract Hire n Operating Leas,DB,27/09/2013,PAY00603346,HSTR,Housing Strategy,248.62,Revenue,Alphabet (UK) Fleet Management Ltd
Brighton & Hove City Council,http://statistics.data.gov.uk/id/local-authority/00ML,Adult Social Care,BVASOC,S Svcs - Physical Disability,PDY,Supplies and Services,E,Equip't Furniture n Materials,EA,27/09/2013,PAY00602851,SSCT,S75 SCT,278,Revenue,Alsford Timber Ltd
Brighton & Hove City Council,http://statistics.data.gov.uk/id/local-authority/00ML,Adult Social Care,BVASOC,S Svcs - Learning Disability,LDY,Supplies and Services,E,Miscellaneous Expenses,EM,25/09/2013,PAY00602338,DAYS,Day Services,31.6,Revenue,Altodigital Networks Ltd
Brighton & Hove City Council,http://statistics.data.gov.uk/id/local-authority/00ML,Central Support and Overheads,BVACEN,Support Services (SSC),PPT,Supplies and Services,E,Communications n Computing,EH,25/09/2013,PAY00602338,ICTA,ICT,200,Revenue,Altodigital Networks Ltd
Brighton & Hove City Council,http://statistics.data.gov.uk/id/local-authority/00ML,Central Support and Overheads,BVACEN,Support Services (SSC),PPT,Supplies and Services,E,Communications n Computing,EH,27/09/2013,PAY00603386,POLI,Policy and Initiatives,6.95,Revenue,Altodigital Networks Ltd
Brighton & Hove City Council,http://statistics.data.gov.uk/id/local-authority/00ML,Central Support and Overheads,BVACEN,Support Services (SSC),PPT,Supplies and Services,E,Print Stat & Gen Office Exps,ED,27/09/2013,PAY00603386,POLI,Policy and Initiatives,483.8,Revenue,Altodigital Networks Ltd
Brighton & Hove City Council,http://statistics.data.gov.uk/id/local-authority/00ML,Cultural and Related Serv,BVACUL,Open Spaces,PEN,Third Party Payments,F,Private Contractors,FJ,27/09/2013,PAY00603386,CIPK,City Parks,70,Revenue,Altodigital Networks Ltd
Brighton & Hove City Council,http://statistics.data.gov.uk/id/local-authority/00ML,Adult Social Care,BVASOC,S Svcs - Older People Svcs,PPL,Third Party Payments,F,Other Establishments,FH,11/09/2013,PAY00598569,CONT,Contracts,91260,Revenue,Alzheimers Society (Sussex Locality)
Brighton & Hove City Council,http://statistics.data.gov.uk/id/local-authority/00ML,Central Support and Overheads,BVACEN,Support Services (SSC),PPT,Premises Related,C,Repair Maint n Alterations,CA,04/09/2013,PAY00596989,PROP,Property and Design,97.02,Revenue,AM Fire & Security Group
Brighton & Hove City Council,http://statistics.data.gov.uk/id/local-authority/00ML,Central Support and Overheads,BVACEN,Support Services (SSC),PPT,Supplies and Services,E,Equip't Furniture n Materials,EA,04/09/2013,PAY00596989,PROP,Property and Design,4800,Revenue,AM Fire & Security Group
Brighton & Hove City Council,http://statistics.data.gov.uk/id/local-authority/00ML,Central Support and Overheads,BVACEN,Support Services (SSC),PPT,Premises Related,C,Repair Maint n Alterations,CA,27/09/2013,PAY00602986,PROP,Property and Design,97.02,Revenue,AM Fire & Security Group
Brighton & Hove City Council,http://statistics.data.gov.uk/id/local-authority/00ML,Environment & Regulatory Serv,BVAERS,Management Services (DEC),MGT,Third Party Payments,F,Private Contractors,FJ,27/09/2013,PAY00602986,CICL,City Clean,150.47,Revenue,AM Fire & Security Group
Brighton & Hove City Council,http://statistics.data.gov.uk/id/local-authority/00ML,Non I&E,BVANON,CAP Mgmnt and Suppt Services,4PT,New Construction n Conversion,PB,Level Not Required,NR5026,06/09/2013,PAY00598100,PROP,Property and Design,4745,Capital,Amalgamated Lifts Ltd
Brighton & Hove City Council,http://statistics.data.gov.uk/id/local-authority/00ML,Central Support and Overheads,BVACEN,Support Services (SSC),PPT,Premises Related,C,Repair Maint n Alterations,CA,18/09/2013,PAY00600061,PROP,Property and Design,438.67,Revenue,Amey Mechanical & Electrical Services Ltd
Brighton & Hove City Council,http://statistics.data.gov.uk/id/local-authority/00ML,Education Services,BVAEDU,Ed Special Ed,EKE,Premises Related,C,Repair Maint n Alterations,CA,20/09/2013,PAY00600861,SENS,Special Educational Needs,95.7,Revenue,Amey Mechanical & Electrical Services Ltd
Brighton & Hove City Council,http://statistics.data.gov.uk/id/local-authority/00ML,Education Services,BVAEDU,Ed Srvcs YP Ad and Cmty Ln,ENA,Premises Related,C,Repair Maint n Alterations,CA,20/09/2013,PAY00600861,OEDS,Other Education Support,363,Revenue,Amey Mechanical & Electrical Services Ltd
Brighton & Hove City Council,http://statistics.data.gov.uk/id/local-authority/00ML,Central Support and Overheads,BVACEN,Support Services (SSC),PPT,Premises Related,C,Repair Maint n Alterations,CA,06/09/2013,PAY00597541,PROP,Property and Design,2909.45,Revenue,Amey OW Limited
Brighton & Hove City Council,http://statistics.data.gov.uk/id/local-authority/00ML,Highways and Transportation,BVAHRT,Transport Plan Policy Strategy,TPP,Supplies and Services,E,Services,EF,13/09/2013,PAY00599090,TRPO,Transport Policy,695.51,Revenue,Amey OW Limited
Brighton & Hove City Council,http://statistics.data.gov.uk/id/local-authority/00ML,Highways and Transportation,BVAHRT,Highways and Roads - Mntnce,HRM,Supplies and Services,E,Services,EF,25/09/2013,PAY00602042,HWEN,Highways Engineering,-858.44,Revenue,Amey OW Limited
Brighton & Hove City Council,http://statistics.data.gov.uk/id/local-authority/00ML,Non I&E,BVANON,CAP Transport,4TR,New Construction n Conversion,PB,Level Not Required,NR5026,25/09/2013,PAY00602042,HWEN,Highways Engineering,2616.94,Capital,Amey OW Limited
Brighton & Hove City Council,http://statistics.data.gov.uk/id/local-authority/00ML,Education Services,BVAEDU,Ed EY PVI,ENP,Supplies and Services,E,Grants n Subscriptions,EK,04/09/2013,PAY00597045,EYRS,Early Years,6908,Revenue,Amigos Pre-School Playgroup
Brighton & Hove City Council,http://statistics.data.gov.uk/id/local-authority/00ML,Education Services,BVAEDU,Ed EY PVI,ENP,Supplies and Services,E,Grants n Subscriptions,EK,06/09/2013,PAY00597827,EYRS,Early Years,1622,Revenue,Amigos Pre-School Playgroup
Brighton & Hove City Council,http://statistics.data.gov.uk/id/local-authority/00ML,Education Services,BVAEDU,Ed EY PVI,ENP,Supplies and Services,E,Miscellaneous Expenses,EM,18/09/2013,PAY00600244,EYRS,Early Years,618,Revenue,Amigos Pre-School Playgroup
Brighton & Hove City Council,http://statistics.data.gov.uk/id/local-authority/00ML,Adult Social Care,BVASOC,S Svcs - Older People Svcs,PPL,Third Party Payments,F,Other Establishments,FH,13/09/2013,PAY00599681,OPMH,Community Care Older People MH,340,Revenue,Amiole Ltd T/A Elite Cleaning Services
Brighton & Hove City Council,http://statistics.data.gov.uk/id/local-authority/00ML,Cultural and Related Serv,BVACUL,Management Services (DEC),MGT,Supplies and Services,E,Equip't Furniture n Materials,EA,13/09/2013,PAY00599222,CIPK,City Parks,2336.13,Revenue,AMP Groundcare Machinery Services Ltd
Brighton & Hove City Council,http://statistics.data.gov.uk/id/local-authority/00ML,Cultural and Related Serv,BVACUL,Management Services (DEC),MGT,Transport Related,D,Direct Transport Costs,DA,13/09/2013,PAY00599222,CIPK,City Parks,829.49,Revenue,AMP Groundcare Machinery Services Ltd
Brighton & Hove City Council,http://statistics.data.gov.uk/id/local-authority/00ML,Cultural and Related Serv,BVACUL,Management Services (DEC),MGT,Transport Related,D,Direct Transport Costs,DA,18/09/2013,PAY00600180,CIPK,City Parks,827.22,Revenue,AMP Groundcare Machinery Services Ltd
Brighton & Hove City Council,http://statistics.data.gov.uk/id/local-authority/00ML,Adult Social Care,BVASOC,S Svcs - Older People Svcs,PPL,Customer n Client Receipts,M,Fees n Charges,MB,27/09/2013,PAY00602827,CCOP,Community Care Older People,-23539.38,Revenue,Anchor Trust Homes (Partridge House)
Brighton & Hove City Council,http://statistics.data.gov.uk/id/local-authority/00ML,Adult Social Care,BVASOC,S Svcs - Older People Svcs,PPL,Third Party Payments,F,Other Establishments,FH,27/09/2013,PAY00602827,CCOP,Community Care Older People,122644.08,Revenue,Anchor Trust Homes (Partridge House)
Brighton & Hove City Council,http://statistics.data.gov.uk/id/local-authority/00ML,Adult Social Care,BVASOC,S Svcs - Older People Svcs,PPL,Third Party Payments,F,Other Establishments,FH,11/09/2013,PAY00598464,ASIT,Assessment and SIT,1372.68,Revenue,Anchor Trust Homes (Sycamore Court)
Brighton & Hove City Council,http://statistics.data.gov.uk/id/local-authority/00ML,Adult Social Care,BVASOC,S Svcs - Older People Svcs,PPL,Third Party Payments,F,Other Establishments,FH,25/09/2013,PAY00602138,ASIT,Assessment and SIT,752.85,Revenue,Anchor Trust Homes (Sycamore Court)
Brighton & Hove City Council,http://statistics.data.gov.uk/id/local-authority/00ML,Adult Social Care,BVASOC,S Svcs - Older People Svcs,PPL,Third Party Payments,F,Other Establishments,FH,25/09/2013,PAY00602138,CCOP,Community Care Older People,10596.53,Revenue,Anchor Trust Homes (Sycamore Court)
Brighton & Hove City Council,http://statistics.data.gov.uk/id/local-authority/00ML,Adult Social Care,BVASOC,S Svcs - Older People Svcs,PPL,Customer n Client Receipts,M,Fees n Charges,MB,27/09/2013,PAY00602919,CCOP,Community Care Older People,-23763.2,Revenue,Anchor Trust Homes (Sycamore Court)
Brighton & Hove City Council,http://statistics.data.gov.uk/id/local-authority/00ML,Adult Social Care,BVASOC,S Svcs - Older People Svcs,PPL,Third Party Payments,F,Other Establishments,FH,27/09/2013,PAY00602919,CCOP,Community Care Older People,67568.68,Revenue,Anchor Trust Homes (Sycamore Court)
Brighton & Hove City Council,http://statistics.data.gov.uk/id/local-authority/00ML,Cultural and Related Serv,BVACUL,Culture and Heritage,CHG,Supplies and Services,E,Miscellaneous Expenses,EM,20/09/2013,PAY00601519,RPMU,Royal Pavilion and Museums,638.49,Revenue,Anglo Brands Ltd T/A Dale Air
Brighton & Hove City Council,http://statistics.data.gov.uk/id/local-authority/00ML,Education Services,BVAEDU,Ed EY PVI,ENP,Supplies and Services,E,Grants n Subscriptions,EK,04/09/2013,PAY00597207,EYRS,Early Years,11126,Revenue,Angmering Day Nurseries Ltd
Brighton & Hove City Council,http://statistics.data.gov.uk/id/local-authority/00ML,Cultural and Related Serv,BVACUL,Culture and Heritage,CHG,Supplies and Services,E,Equip't Furniture n Materials,EA,25/09/2013,PAY00602564,RPMU,Royal Pavilion and Museums,8000,Revenue,Antenna Audio Ltd
Brighton & Hove City Council,http://statistics.data.gov.uk/id/local-authority/00ML,Education Services,BVAEDU,Ed Ed Other LAA,ELL,Supplies and Services,E,Print Stat & Gen Office Exps,ED,18/09/2013,PAY00600420,OEDS,Other Education Support,316,Revenue,APCymru Ltd/MPCT
Brighton & Hove City Council,http://statistics.data.gov.uk/id/local-authority/00ML,Non I&E,BVANON,CAP Education Services,4ED,New Construction n Conversion,PB,Level Not Required,NR5026,18/09/2013,PAY00600294,SCHL,Schools,552265.54,Capital,Apollo Group Holdings Limited
Brighton & Hove City Council,http://statistics.data.gov.uk/id/local-authority/00ML,Children�s Social Care,BVACSC,Child Srvcs - Residential Svcs,FLR,Third Party Payments,F,Other Establishments,FH,18/09/2013,PAY00600520,AVFM,Agency Placements\VFM,15559.64,Revenue,Apple Orchard 
Brighton & Hove City Council,http://statistics.data.gov.uk/id/local-authority/00ML,Housing General Fund,BVAHOG,Homelessness,HML,Premises Related,C,Rents Payable,CC,11/09/2013,PAY00598645,TAAS,Temp Accom and Allocations,765,Revenue,Applegate Properties Ltd
Brighton & Hove City Council,http://statistics.data.gov.uk/id/local-authority/00ML,Housing General Fund,BVAHOG,Homelessness,HML,Premises Related,C,Rents Payable,CC,13/09/2013,PAY00599557,TAAS,Temp Accom and Allocations,1200,Revenue,Applegate Properties Ltd
Brighton & Hove City Council,http://statistics.data.gov.uk/id/local-authority/00ML,Non I&E,BVANON,CAP Transport,4TR,New Construction n Conversion,PB,Level Not Required,NR5026,18/09/2013,PAY00600455,PARK,Parking,2286,Capital,APS Aegis Limited
Brighton & Hove City Council,http://statistics.data.gov.uk/id/local-authority/00ML,Highways and Transportation,BVAHRT,Parking Services,PRK,Supplies and Services,E,Equip't Furniture n Materials,EA,11/09/2013,PAY00598479,PARK,Parking,1864.75,Revenue,APT Skidata Ltd
Brighton & Hove City Council,http://statistics.data.gov.uk/id/local-authority/00ML,Highways and Transportation,BVAHRT,Parking Services,PRK,Supplies and Services,E,Equip't Furniture n Materials,EA,18/09/2013,PAY00600133,PARK,Parking,2447.32,Revenue,APT Skidata Ltd
Brighton & Hove City Council,http://statistics.data.gov.uk/id/local-authority/00ML,Highways and Transportation,BVAHRT,Parking Services,PRK,Supplies and Services,E,Equip't Furniture n Materials,EA,25/09/2013,PAY00602150,PARK,Parking,1021.36,Revenue,APT Skidata Ltd
Brighton & Hove City Council,http://statistics.data.gov.uk/id/local-authority/00ML,Children�s Social Care,BVACSC,Child Srvcs - Yth Offender Tm,FYY,Supplies and Services,E,Miscellaneous Expenses,EM,04/09/2013,PAY00596865,YOTS,Youth Service,968.6,Revenue,AquAid (West sussex) 
Brighton & Hove City Council,http://statistics.data.gov.uk/id/local-authority/00ML,Education Services,BVAEDU,Ed EY Central,EAE,Supplies and Services,E,Catering,EB,13/09/2013,PAY00599113,EYRS,Early Years,43.6,Revenue,AquAid (West sussex) 
Brighton & Hove City Council,http://statistics.data.gov.uk/id/local-authority/00ML,Education Services,BVAEDU,Ed EY Central,EAE,Supplies and Services,E,Services,EF,13/09/2013,PAY00599113,EYRS,Early Years,33.8,Revenue,AquAid (West sussex) 
Brighton & Hove City Council,http://statistics.data.gov.uk/id/local-authority/00ML,Education Services,BVAEDU,Ed Special Ed,EKE,Supplies and Services,E,Catering,EB,13/09/2013,PAY00599113,SENS,Special Educational Needs,27.56,Revenue,AquAid (West sussex) 
Brighton & Hove City Council,http://statistics.data.gov.uk/id/local-authority/00ML,Environment & Regulatory Serv,BVAERS,Cem Crem and Mortuary Services,CCM,Premises Related,C,Repair Maint n Alterations,CA,13/09/2013,PAY00599113,LIFE,Life Events,95.7,Revenue,AquAid (West sussex) 
Brighton & Hove City Council,http://statistics.data.gov.uk/id/local-authority/00ML,Environment & Regulatory Serv,BVAERS,Court Services,CRT,Supplies and Services,E,Print Stat & Gen Office Exps,ED,13/09/2013,PAY00599113,LIFE,Life Events,219,Revenue,AquAid (West sussex) 
Brighton & Hove City Council,http://statistics.data.gov.uk/id/local-authority/00ML,Central Services to the Public,BVACEN,Elections,ELE,Supplies and Services,E,Equip't Furniture n Materials,EA,18/09/2013,PAY00600040,LIFE,Life Events,429,Revenue,AquAid (West sussex) 
Brighton & Hove City Council,http://statistics.data.gov.uk/id/local-authority/00ML,Environment & Regulatory Serv,BVAERS,Management Services (DEC),MGT,Premises Related,C,Water Services,CE,18/09/2013,PAY00600040,CICL,City Clean,156,Revenue,AquAid (West sussex) 
Brighton & Hove City Council,http://statistics.data.gov.uk/id/local-authority/00ML,Environment & Regulatory Serv,BVAERS,Management Services (DEC),MGT,Premises Related,C,Water Services,CE,25/09/2013,PAY00602072,CICL,City Clean,474.4,Revenue,AquAid (West sussex) 
Brighton & Hove City Council,http://statistics.data.gov.uk/id/local-authority/00ML,Education Services,BVAEDU,Ed EY Central,EAE,Premises Related,C,Repair Maint n Alterations,CA,27/09/2013,PAY00603531,EYRS,Early Years,860,Revenue,Arbworx Ltd
Brighton & Hove City Council,http://statistics.data.gov.uk/id/local-authority/00ML,Children�s Social Care,BVACSC,Child Srvcs - Residential Svcs,FLR,Third Party Payments,F,Other Establishments,FH,18/09/2013,PAY00600174,AVFM,Agency Placements\VFM,27714.29,Revenue,ARC Adventure (Sussex) Ltd
Brighton & Hove City Council,http://statistics.data.gov.uk/id/local-authority/00ML,Central Support and Overheads,BVACEN,Support Services (SSC),PPT,Supplies and Services,E,Equip't Furniture n Materials,EA,06/09/2013,PAY00597970,OEDS,Other Education Support,492.84,Revenue,Arcool Ltd
Brighton & Hove City Council,http://statistics.data.gov.uk/id/local-authority/00ML,Children�s Social Care,BVACSC,Child Srvcs Leaving Care,FAL,Transfer Payments,G,Other Transfer Payments,GD,13/09/2013,PAY00599210,CHIC,Children In Care,1001.77,Revenue,Argos Business Solutions Ltd
Brighton & Hove City Council,http://statistics.data.gov.uk/id/local-authority/00ML,Children�s Social Care,BVACSC,Child Srvcs Other,FAX,Supplies and Services,E,Services,EF,13/09/2013,PAY00599210,YOTS,Youth Service,306.46,Revenue,Argos Business Solutions Ltd
Brighton & Hove City Council,http://statistics.data.gov.uk/id/local-authority/00ML,Children�s Social Care,BVACSC,Child Srvcs - Othr LAC Svcs,FLX,Third Party Payments,F,Other Establishments,FH,13/09/2013,PAY00599210,CHIC,Children In Care,489.33,Revenue,Argos Business Solutions Ltd
Brighton & Hove City Council,http://statistics.data.gov.uk/id/local-authority/00ML,Adult Social Care,BVASOC,S Svcs - Older People Svcs,PPL,Supplies and Services,E,Equip't Furniture n Materials,EA,20/09/2013,PAY00600962,RCOP,Resource Centres Older People,116.45,Revenue,Argos Business Solutions Ltd
Brighton & Hove City Council,http://statistics.data.gov.uk/id/local-authority/00ML,Children�s Social Care,BVACSC,Child Srvcs Leaving Care,FAL,Transfer Payments,G,Other Transfer Payments,GD,20/09/2013,PAY00600962,CHIC,Children In Care,384.36,Revenue,Argos Business Solutions Ltd
Brighton & Hove City Council,http://statistics.data.gov.uk/id/local-authority/00ML,Education Services,BVAEDU,Ed EY Central,EAE,Supplies and Services,E,Equip't Furniture n Materials,EA,20/09/2013,PAY00600962,EYRS,Early Years,170.79,Revenue,Argos Business Solutions Ltd
Brighton & Hove City Council,http://statistics.data.gov.uk/id/local-authority/00ML,Adult Social Care,BVASOC,S Svcs - Learning Disability,LDY,Supplies and Services,E,Equip't Furniture n Materials,EA,27/09/2013,PAY00602971,MGMT,Management,132.44,Revenue,Argos Business Solutions Ltd
Brighton & Hove City Council,http://statistics.data.gov.uk/id/local-authority/00ML,Children�s Social Care,BVACSC,Child Srvcs Leaving Care,FAL,Transfer Payments,G,Other Transfer Payments,GD,27/09/2013,PAY00602971,CHIC,Children In Care,242.37,Revenue,Argos Business Solutions Ltd
Brighton & Hove City Council,http://statistics.data.gov.uk/id/local-authority/00ML,Housing General Fund,BVAHOG,Homelessness,HML,Supplies and Services,E,Equip't Furniture n Materials,EA,27/09/2013,PAY00602971,TRAV,Travellers,103.99,Revenue,Argos Business Solutions Ltd
Brighton & Hove City Council,http://statistics.data.gov.uk/id/local-authority/00ML,Housing General Fund,BVAHOG,Homelessness,HML,Supplies and Services,E,Miscellaneous Expenses,EM,27/09/2013,PAY00602971,TRAV,Travellers,11.79,Revenue,Argos Business Solutions Ltd
Brighton & Hove City Council,http://statistics.data.gov.uk/id/local-authority/00ML,Housing General Fund,BVAHOG,Homelessness,HML,Third Party Payments,F,Other Establishments,FH,12/09/2013,PAY498818,HLES,Homelessness,635.25,Revenue,Argos Distributors Ltd
Brighton & Hove City Council,http://statistics.data.gov.uk/id/local-authority/00ML,Children�s Social Care,BVACSC,Child Srvcs - Residential Svcs,FLR,Third Party Payments,F,Other Establishments,FH,18/09/2013,PAY00600358,AVFM,Agency Placements\VFM,23370,Revenue,Ark House
Brighton & Hove City Council,http://statistics.data.gov.uk/id/local-authority/00ML,Cultural and Related Serv,BVACUL,Culture and Heritage,CHG,Supplies and Services,E,Miscellaneous Expenses,EM,20/09/2013,PAY00601902,ARTS,Arts,350,Revenue,ART:sync
Brighton & Hove City Council,http://statistics.data.gov.uk/id/local-authority/00ML,Cultural and Related Serv,BVACUL,Culture and Heritage,CHG,Supplies and Services,E,Communications n Computing,EH,27/09/2013,PAY00602837,VENU,Venues,6659.13,Revenue,Artifax Software Ltd
Brighton & Hove City Council,http://statistics.data.gov.uk/id/local-authority/00ML,Adult Social Care,BVASOC,S Svcs - Learning Disability,LDY,Customer n Client Receipts,M,Fees n Charges,MB,25/09/2013,PAY00602374,CCLD,Com Care Learning Disabilities,-608,Revenue,Arundel Domiciliary Care Services
Brighton & Hove City Council,http://statistics.data.gov.uk/id/local-authority/00ML,Adult Social Care,BVASOC,S Svcs - Learning Disability,LDY,Third Party Payments,F,Other Establishments,FH,25/09/2013,PAY00602374,CCLD,Com Care Learning Disabilities,80045.52,Revenue,Arundel Domiciliary Care Services
Brighton & Hove City Council,http://statistics.data.gov.uk/id/local-authority/00ML,Adult Social Care,BVASOC,S Svcs - Learning Disability,LDY,Customer n Client Receipts,M,Fees n Charges,MB,27/09/2013,PAY00603430,CCLD,Com Care Learning Disabilities,-315.2,Revenue,Arundel Domiciliary Care Services
Brighton & Hove City Council,http://statistics.data.gov.uk/id/local-authority/00ML,Adult Social Care,BVASOC,S Svcs - Learning Disability,LDY,Third Party Payments,F,Other Establishments,FH,27/09/2013,PAY00603430,CCLD,Com Care Learning Disabilities,6120,Revenue,Arundel Domiciliary Care Services
Brighton & Hove City Council,http://statistics.data.gov.uk/id/local-authority/00ML,Central Services to the Public,BVACEN,Local Tax Collection,LTC,Indirect Employees,B,Training,BM,11/09/2013,PAY00598741,REVS,Revenues and Benefits,1400,Revenue,Arvato Government Services Ltd
Brighton & Hove City Council,http://statistics.data.gov.uk/id/local-authority/00ML,Non I&E,BVANON,CAP Housing Services GF,4HG,Capital Grants,PF,Level Not Required,NR5012,25/09/2013,PAY00602096,PSHG,Private Sector Housing,8331.5,Capital,Ascendit Lifts Ltd
Brighton & Hove City Council,http://statistics.data.gov.uk/id/local-authority/00ML,Adult Social Care,BVASOC,S Svcs - Learning Disability,LDY,Customer n Client Receipts,M,Fees n Charges,MB,25/09/2013,PAY00602045,CCLD,Com Care Learning Disabilities,-315.2,Revenue,ASD Unique Services LLP
Brighton & Hove City Council,http://statistics.data.gov.uk/id/local-authority/00ML,Adult Social Care,BVASOC,S Svcs - Learning Disability,LDY,Third Party Payments,F,Other Establishments,FH,25/09/2013,PAY00602045,CCLD,Com Care Learning Disabilities,4486.2,Revenue,ASD Unique Services LLP
Brighton & Hove City Council,http://statistics.data.gov.uk/id/local-authority/00ML,Adult Social Care,BVASOC,S Svcs - Older People Svcs,PPL,Third Party Payments,F,Other Establishments,FH,18/09/2013,PAY00600134,CCOP,Community Care Older People,561.36,Revenue,Ashdown NH - Newcare Homes Ltd
Brighton & Hove City Council,http://statistics.data.gov.uk/id/local-authority/00ML,Adult Social Care,BVASOC,S Svcs - Older People Svcs,PPL,Customer n Client Receipts,M,Fees n Charges,MB,27/09/2013,PAY00602942,CCOP,Community Care Older People,-983.48,Revenue,Ashdown NH - Newcare Homes Ltd
Brighton & Hove City Council,http://statistics.data.gov.uk/id/local-authority/00ML,Adult Social Care,BVASOC,S Svcs - Older People Svcs,PPL,Third Party Payments,F,Other Establishments,FH,27/09/2013,PAY00602942,CCOP,Community Care Older People,4904,Revenue,Ashdown NH - Newcare Homes Ltd
Brighton & Hove City Council,http://statistics.data.gov.uk/id/local-authority/00ML,Education Services,BVAEDU,Ed Ed Other Other,ENF,Third Party Payments,F,Other Local Authorities,FB,27/09/2013,PAY00602982,PROP,Property and Design,1100,Revenue,Ashdown Site Investigations Ltd
Brighton & Hove City Council,http://statistics.data.gov.uk/id/local-authority/00ML,Adult Social Care,BVASOC,S Svcs - Learning Disability,LDY,Customer n Client Receipts,M,Fees n Charges,MB,04/09/2013,PAY00597240,CCLD,Com Care Learning Disabilities,-264,Revenue,Ashmeadows House Ltd
Brighton & Hove City Council,http://statistics.data.gov.uk/id/local-authority/00ML,Adult Social Care,BVASOC,S Svcs - Learning Disability,LDY,Third Party Payments,F,Other Establishments,FH,04/09/2013,PAY00597240,CCLD,Com Care Learning Disabilities,4958.4,Revenue,Ashmeadows House Ltd
Brighton & Hove City Council,http://statistics.data.gov.uk/id/local-authority/00ML,Adult Social Care,BVASOC,S Svcs - Learning Disability,LDY,Customer n Client Receipts,M,Fees n Charges,MB,11/09/2013,PAY00598719,CCLD,Com Care Learning Disabilities,-180,Revenue,Ashmeadows House Ltd
Brighton & Hove City Council,http://statistics.data.gov.uk/id/local-authority/00ML,Adult Social Care,BVASOC,S Svcs - Learning Disability,LDY,Third Party Payments,F,Other Establishments,FH,11/09/2013,PAY00598719,CCLD,Com Care Learning Disabilities,1518,Revenue,Ashmeadows House Ltd
Brighton & Hove City Council,http://statistics.data.gov.uk/id/local-authority/00ML,Adult Social Care,BVASOC,S Svcs - Learning Disability,LDY,Third Party Payments,F,Other Establishments,FH,25/09/2013,PAY00602420,CCLD,Com Care Learning Disabilities,1456,Revenue,Ashmeadows House Ltd
Brighton & Hove City Council,http://statistics.data.gov.uk/id/local-authority/00ML,Adult Social Care,BVASOC,S Svcs - Mental Health,MHT,Customer n Client Receipts,M,Fees n Charges,MB,27/09/2013,PAY00602896,ADMH,Community Care Adult MH,-486,Revenue,Ashton Care
Brighton & Hove City Council,http://statistics.data.gov.uk/id/local-authority/00ML,Adult Social Care,BVASOC,S Svcs - Mental Health,MHT,Third Party Payments,F,Other Establishments,FH,27/09/2013,PAY00602896,ADMH,Community Care Adult MH,1763.36,Revenue,Ashton Care
Brighton & Hove City Council,http://statistics.data.gov.uk/id/local-authority/00ML,Adult Social Care,BVASOC,S Svcs - Older People Svcs,PPL,Customer n Client Receipts,M,Fees n Charges,MB,27/09/2013,PAY00602896,CCOP,Community Care Older People,-486,Revenue,Ashton Care
Brighton & Hove City Council,http://statistics.data.gov.uk/id/local-authority/00ML,Adult Social Care,BVASOC,S Svcs - Older People Svcs,PPL,Third Party Payments,F,Other Establishments,FH,27/09/2013,PAY00602896,CCOP,Community Care Older People,1876,Revenue,Ashton Care
Brighton & Hove City Council,http://statistics.data.gov.uk/id/local-authority/00ML,Adult Social Care,BVASOC,S Svcs - Older People Svcs,PPL,Third Party Payments,F,Other Establishments,FH,18/09/2013,PAY00599994,CCOP,Community Care Older People,490.08,Revenue,Ashton House
Brighton & Hove City Council,http://statistics.data.gov.uk/id/local-authority/00ML,Adult Social Care,BVASOC,S Svcs - Older People Svcs,PPL,Customer n Client Receipts,M,Fees n Charges,MB,27/09/2013,PAY00602816,CCOP,Community Care Older People,-952.92,Revenue,Ashton House
Brighton & Hove City Council,http://statistics.data.gov.uk/id/local-authority/00ML,Adult Social Care,BVASOC,S Svcs - Older People Svcs,PPL,Third Party Payments,F,Other Establishments,FH,27/09/2013,PAY00602816,CCOP,Community Care Older People,6216,Revenue,Ashton House
Brighton & Hove City Council,http://statistics.data.gov.uk/id/local-authority/00ML,Environment & Regulatory Serv,BVAERS,Management Services (DEC),MGT,Premises Related,C,Repair Maint n Alterations,CA,27/09/2013,PAY00603513,CICL,City Clean,658.71,Revenue,ASKAS
Brighton & Hove City Council,http://statistics.data.gov.uk/id/local-authority/00ML,Central Support and Overheads,BVACEN,Support Services (SSC),PPT,Premises Related,C,Repair Maint n Alterations,CA,06/09/2013,PAY00597559,PROP,Property and Design,378,Revenue,Aspen Service Ltd
Brighton & Hove City Council,http://statistics.data.gov.uk/id/local-authority/00ML,Central Support and Overheads,BVACEN,Support Services (SSC),PPT,Premises Related,C,Repair Maint n Alterations,CA,27/09/2013,PAY00602858,PROP,Property and Design,358,Revenue,Aspen Service Ltd
Brighton & Hove City Council,http://statistics.data.gov.uk/id/local-authority/00ML,Children�s Social Care,BVACSC,Child Srvcs - Fostering,FLF,Third Party Payments,F,Other Establishments,FH,18/09/2013,PAY00600027,AVFM,Agency Placements\VFM,7286.98,Revenue,Asphaleia Ltd
Brighton & Hove City Council,http://statistics.data.gov.uk/id/local-authority/00ML,Adult Social Care,BVASOC,S Svcs - Learning Disability,LDY,Customer n Client Receipts,M,Fees n Charges,MB,20/09/2013,PAY00600808,CCLD,Com Care Learning Disabilities,-37.65,Revenue,Aspirations
Brighton & Hove City Council,http://statistics.data.gov.uk/id/local-authority/00ML,Adult Social Care,BVASOC,S Svcs - Learning Disability,LDY,Third Party Payments,F,Other Establishments,FH,20/09/2013,PAY00600808,CCLD,Com Care Learning Disabilities,394.44,Revenue,Aspirations
Brighton & Hove City Council,http://statistics.data.gov.uk/id/local-authority/00ML,Adult Social Care,BVASOC,S Svcs - Learning Disability,LDY,Third Party Payments,F,Other Establishments,FH,13/09/2013,PAY00599441,CCLD,Com Care Learning Disabilities,20908.74,Revenue,Aspirations Active
Brighton & Hove City Council,http://statistics.data.gov.uk/id/local-authority/00ML,Adult Social Care,BVASOC,S Svcs - Learning Disability,LDY,Third Party Payments,F,Other Establishments,FH,27/09/2013,PAY00603254,LDAS,LD Accommodation Services,3018.12,Revenue,Aspirations Active
Brighton & Hove City Council,http://statistics.data.gov.uk/id/local-authority/00ML,Financing & Investment I&E,BVAOEX,Non Service Costs,NVC,Capital Financing Costs,J,Interest Payable,JN,06/09/2013,PAY00597555,CFCS,Capital Financing Costs,1007.31,Revenue,Asset Advantage Group Ltd
Brighton & Hove City Council,http://statistics.data.gov.uk/id/local-authority/00ML,Adult Social Care,BVASOC,S Svcs - Older People Svcs,PPL,Supplies and Services,E,Equip't Furniture n Materials,EA,11/09/2013,PAY00598847,ASIT,Assessment and SIT,362,Revenue,Associated Optical
Brighton & Hove City Council,http://statistics.data.gov.uk/id/local-authority/00ML,Cultural and Related Serv,BVACUL,Culture and Heritage,CHG,Supplies and Services,E,Services,EF,18/09/2013,PAY00600572,RPMU,Royal Pavilion and Museums,280.8,Revenue,Association of Anaesthetists
Brighton & Hove City Council,http://statistics.data.gov.uk/id/local-authority/00ML,Children�s Social Care,BVACSC,Child Srvcs - Residential Svcs,FLR,Third Party Payments,F,Other Establishments,FH,18/09/2013,PAY00600563,AVFM,Agency Placements\VFM,10400,Revenue,Aston Children`s Centre
Brighton & Hove City Council,http://statistics.data.gov.uk/id/local-authority/00ML,Central Support and Overheads,BVACEN,Support Services (SSC),PPT,Indirect Employees,B,Training,BM,25/09/2013,PAY00602491,OHAS,Occupational Health and Safety,7367,Revenue,Astutis
Brighton & Hove City Council,http://statistics.data.gov.uk/id/local-authority/00ML,Central Support and Overheads,BVACEN,Support Services (SSC),PPT,Supplies and Services,E,Services,EF,20/09/2013,PAY00600883,PROP,Property and Design,1450,Revenue,Atkins Ltd/Faithful & Gould Ltd
Brighton & Hove City Council,http://statistics.data.gov.uk/id/local-authority/00ML,Central Support and Overheads,BVACEN,Support Services (SSC),PPT,Supplies and Services,E,Communications n Computing,EH,11/09/2013,PAY00598862,PROP,Property and Design,850,Revenue,Atrium Software Ltd
Brighton & Hove City Council,http://statistics.data.gov.uk/id/local-authority/00ML,Adult Social Care,BVASOC,S Svcs - Learning Disability,LDY,Transport Related,D,Direct Transport Costs,DA,04/09/2013,PAY00596991,DAYS,Day Services,519.44,Revenue,ATS Euromaster Ltd
Brighton & Hove City Council,http://statistics.data.gov.uk/id/local-authority/00ML,Adult Social Care,BVASOC,S Svcs - Learning Disability,LDY,Transport Related,D,Direct Transport Costs,DA,04/09/2013,PAY00596991,LDAS,LD Accommodation Services,260.56,Revenue,ATS Euromaster Ltd
Brighton & Hove City Council,http://statistics.data.gov.uk/id/local-authority/00ML,Adult Social Care,BVASOC,S Svcs - Older People Svcs,PPL,Transport Related,D,Direct Transport Costs,DA,04/09/2013,PAY00596991,RCOP,Resource Centres Older People,616.24,Revenue,ATS Euromaster Ltd
Brighton & Hove City Council,http://statistics.data.gov.uk/id/local-authority/00ML,Central Support and Overheads,BVACEN,Support Services (SSC),PPT,Transport Related,D,Direct Transport Costs,DA,04/09/2013,PAY00596991,PROP,Property and Design,179.82,Revenue,ATS Euromaster Ltd
Brighton & Hove City Council,http://statistics.data.gov.uk/id/local-authority/00ML,Children�s Social Care,BVACSC,Child Srvcs Com and Scl Work,FCW,Transport Related,D,Direct Transport Costs,DA,04/09/2013,PAY00596991,SOCK,Social Work,84.71,Revenue,ATS Euromaster Ltd
Brighton & Hove City Council,http://statistics.data.gov.uk/id/local-authority/00ML,Children�s Social Care,BVACSC,Child Srvcs - Other Fam Supp,FFX,Transport Related,D,Direct Transport Costs,DA,04/09/2013,PAY00596991,DISS,Disability Services,159.07,Revenue,ATS Euromaster Ltd
Brighton & Hove City Council,http://statistics.data.gov.uk/id/local-authority/00ML,Cultural and Related Serv,BVACUL,Management Services (DEC),MGT,Transport Related,D,Direct Transport Costs,DA,04/09/2013,PAY00596991,CIPK,City Parks,2112.82,Revenue,ATS Euromaster Ltd
Brighton & Hove City Council,http://statistics.data.gov.uk/id/local-authority/00ML,Cultural and Related Serv,BVACUL,Open Spaces,PEN,Transport Related,D,Direct Transport Costs,DA,04/09/2013,PAY00596991,CIPK,City Parks,242.19,Revenue,ATS Euromaster Ltd
Brighton & Hove City Council,http://statistics.data.gov.uk/id/local-authority/00ML,Environment & Regulatory Serv,BVAERS,Street Cleansing,CLE,Transport Related,D,Direct Transport Costs,DA,04/09/2013,PAY00596991,CICL,City Clean,1002.93,Revenue,ATS Euromaster Ltd
Brighton & Hove City Council,http://statistics.data.gov.uk/id/local-authority/00ML,Environment & Regulatory Serv,BVAERS,Waste Management,WMT,Transport Related,D,Direct Transport Costs,DA,04/09/2013,PAY00596991,CICL,City Clean,4791.9,Revenue,ATS Euromaster Ltd
Brighton & Hove City Council,http://statistics.data.gov.uk/id/local-authority/00ML,Highways and Transportation,BVAHRT,Highways and Roads - Mntnce,HRM,Transport Related,D,Direct Transport Costs,DA,04/09/2013,PAY00596991,HIGH,Highways,10.54,Revenue,ATS Euromaster Ltd
Brighton & Hove City Council,http://statistics.data.gov.uk/id/local-authority/00ML,Housing Revenue Account,BVAHOU,Hsing Management - HRA,HGM,Transport Related,D,Direct Transport Costs,DA,04/09/2013,PAY00596991,HTEN,Tenancy Services,181.03,Revenue,ATS Euromaster Ltd
Brighton & Hove City Council,http://statistics.data.gov.uk/id/local-authority/00ML,Adult Social Care,BVASOC,S Svcs - Older People Svcs,PPL,Transport Related,D,Direct Transport Costs,DA,27/09/2013,PAY00602987,DAYS,Day Services,145.44,Revenue,ATS Euromaster Ltd
Brighton & Hove City Council,http://statistics.data.gov.uk/id/local-authority/00ML,Central Support and Overheads,BVACEN,Support Services (SSC),PPT,Transport Related,D,Direct Transport Costs,DA,27/09/2013,PAY00602987,PROP,Property and Design,14.89,Revenue,ATS Euromaster Ltd
Brighton & Hove City Council,http://statistics.data.gov.uk/id/local-authority/00ML,Children�s Social Care,BVACSC,Child Srvcs Com and Scl Work,FCW,Transport Related,D,Direct Transport Costs,DA,27/09/2013,PAY00602987,SOCK,Social Work,50.68,Revenue,ATS Euromaster Ltd
Brighton & Hove City Council,http://statistics.data.gov.uk/id/local-authority/00ML,Cultural and Related Serv,BVACUL,Management Services (DEC),MGT,Transport Related,D,Direct Transport Costs,DA,27/09/2013,PAY00602987,CIPK,City Parks,1021.1,Revenue,ATS Euromaster Ltd
Brighton & Hove City Council,http://statistics.data.gov.uk/id/local-authority/00ML,Cultural and Related Serv,BVACUL,Open Spaces,PEN,Transport Related,D,Direct Transport Costs,DA,27/09/2013,PAY00602987,CIPK,City Parks,483.52,Revenue,ATS Euromaster Ltd
Brighton & Hove City Council,http://statistics.data.gov.uk/id/local-authority/00ML,Environment & Regulatory Serv,BVAERS,Street Cleansing,CLE,Transport Related,D,Direct Transport Costs,DA,27/09/2013,PAY00602987,CICL,City Clean,800.65,Revenue,ATS Euromaster Ltd
Brighton & Hove City Council,http://statistics.data.gov.uk/id/local-authority/00ML,Environment & Regulatory Serv,BVAERS,Waste Management,WMT,Transport Related,D,Direct Transport Costs,DA,27/09/2013,PAY00602987,CICL,City Clean,3288.03,Revenue,ATS Euromaster Ltd
Brighton & Hove City Council,http://statistics.data.gov.uk/id/local-authority/00ML,Education Services,BVAEDU,Ed Srvcs YP Youth Srvcs,ENY,Supplies and Services,E,Miscellaneous Expenses,EM,13/09/2013,PAY00599180,YOTS,Youth Service,442.8,Revenue,Audioactive 2
Brighton & Hove City Council,http://statistics.data.gov.uk/id/local-authority/00ML,Education Services,BVAEDU,Ed Special Ed,EKE,Indirect Employees,B,Training,BM,27/09/2013,PAY00602866,SENS,Special Educational Needs,720,Revenue,Auditory Verbal UK
Brighton & Hove City Council,http://statistics.data.gov.uk/id/local-authority/00ML,Housing Revenue Account,BVAHOU,Hsing Management - HRA,HGM,Supplies and Services,E,Print Stat & Gen Office Exps,ED,25/09/2013,PAY00602291,HIII,Income Involvement Improvement,875,Revenue,AUKPay Ltd
Brighton & Hove City Council,http://statistics.data.gov.uk/id/local-authority/00ML,Adult Social Care,BVASOC,S Svcs - Learning Disability,LDY,Third Party Payments,F,Other Establishments,FH,13/09/2013,PAY00599447,CCLD,Com Care Learning Disabilities,1320,Revenue,Autism Sussex Ltd
Brighton & Hove City Council,http://statistics.data.gov.uk/id/local-authority/00ML,Children�s Social Care,BVACSC,Child Srvcs - Other Fam Supp,FFX,Transfer Payments,G,Other Transfer Payments,GD,13/09/2013,PAY00599447,DISS,Disability Services,1700.56,Revenue,Autism Sussex Ltd
Brighton & Hove City Council,http://statistics.data.gov.uk/id/local-authority/00ML,Adult Social Care,BVASOC,S Svcs - Learning Disability,LDY,Third Party Payments,F,Other Establishments,FH,18/09/2013,PAY00600265,CCLD,Com Care Learning Disabilities,1778.4,Revenue,Autism Sussex Ltd
Brighton & Hove City Council,http://statistics.data.gov.uk/id/local-authority/00ML,Adult Social Care,BVASOC,S Svcs - Learning Disability,LDY,Third Party Payments,F,Other Establishments,FH,20/09/2013,PAY00601164,CCLD,Com Care Learning Disabilities,5302.8,Revenue,Autism Sussex Ltd
Brighton & Hove City Council,http://statistics.data.gov.uk/id/local-authority/00ML,Adult Social Care,BVASOC,S Svcs - Mental Health,MHT,Third Party Payments,F,Other Establishments,FH,20/09/2013,PAY00601164,ADMH,Community Care Adult MH,924,Revenue,Autism Sussex Ltd
Brighton & Hove City Council,http://statistics.data.gov.uk/id/local-authority/00ML,Adult Social Care,BVASOC,S Svcs - Learning Disability,LDY,Third Party Payments,F,Other Establishments,FH,25/09/2013,PAY00602253,CCLD,Com Care Learning Disabilities,8953.2,Revenue,Autism Sussex Ltd
Brighton & Hove City Council,http://statistics.data.gov.uk/id/local-authority/00ML,Adult Social Care,BVASOC,S Svcs - Learning Disability,LDY,Customer n Client Receipts,M,Fees n Charges,MB,27/09/2013,PAY00603259,CCLD,Com Care Learning Disabilities,-1335.6,Revenue,Autism Sussex Ltd
Brighton & Hove City Council,http://statistics.data.gov.uk/id/local-authority/00ML,Adult Social Care,BVASOC,S Svcs - Learning Disability,LDY,Third Party Payments,F,Other Establishments,FH,27/09/2013,PAY00603259,CCLD,Com Care Learning Disabilities,27172.6,Revenue,Autism Sussex Ltd
Brighton & Hove City Council,http://statistics.data.gov.uk/id/local-authority/00ML,Children�s Social Care,BVACSC,Child Srvcs - Other Fam Supp,FFX,Transfer Payments,G,Other Transfer Payments,GD,27/09/2013,PAY00603259,DISS,Disability Services,2287.33,Revenue,Autism Sussex Ltd
Brighton & Hove City Council,http://statistics.data.gov.uk/id/local-authority/00ML,Adult Social Care,BVASOC,S Svcs - Older People Svcs,PPL,Customer n Client Receipts,M,Fees n Charges,MB,13/09/2013,PAY00599840,CCOP,Community Care Older People,-486,Revenue,Avery Homes Nuneaton Ltd
Brighton & Hove City Council,http://statistics.data.gov.uk/id/local-authority/00ML,Adult Social Care,BVASOC,S Svcs - Older People Svcs,PPL,Third Party Payments,F,Other Establishments,FH,13/09/2013,PAY00599840,CCOP,Community Care Older People,2156.28,Revenue,Avery Homes Nuneaton Ltd
Brighton & Hove City Council,http://statistics.data.gov.uk/id/local-authority/00ML,Adult Social Care,BVASOC,S Svcs - Older People Svcs,PPL,Customer n Client Receipts,M,Fees n Charges,MB,18/09/2013,PAY00600587,CCOP,Community Care Older People,-486,Revenue,Avery Homes Nuneaton Ltd
Brighton & Hove City Council,http://statistics.data.gov.uk/id/local-authority/00ML,Adult Social Care,BVASOC,S Svcs - Older People Svcs,PPL,Third Party Payments,F,Other Establishments,FH,18/09/2013,PAY00600587,CCOP,Community Care Older People,2156.28,Revenue,Avery Homes Nuneaton Ltd
Brighton & Hove City Council,http://statistics.data.gov.uk/id/local-authority/00ML,Central Support and Overheads,BVACEN,Support Services (SSC),PPT,Supplies and Services,E,Miscellaneous Expenses,EM,06/09/2013,PAY00597589,ICTA,ICT,812.5,Revenue,Aviation Projects Ltd
Brighton & Hove City Council,http://statistics.data.gov.uk/id/local-authority/00ML,Central Support and Overheads,BVACEN,Support Services (SSC),PPT,Supplies and Services,E,Miscellaneous Expenses,EM,27/09/2013,PAY00602898,ICTA,ICT,1375,Revenue,Aviation Projects Ltd
Brighton & Hove City Council,http://statistics.data.gov.uk/id/local-authority/00ML,Housing General Fund,BVAHOG,Homelessness,HML,Premises Related,C,Rents Payable,CC,04/09/2013,PAY00596942,TAAS,Temp Accom and Allocations,900,Revenue,Avon Estates (London) Ltd
Brighton & Hove City Council,http://statistics.data.gov.uk/id/local-authority/00ML,Housing General Fund,BVAHOG,Homelessness,HML,Premises Related,C,Rents Payable,CC,13/09/2013,PAY00599181,TAAS,Temp Accom and Allocations,550,Revenue,Avon Estates (London) Ltd
Brighton & Hove City Council,http://statistics.data.gov.uk/id/local-authority/00ML,Central Support and Overheads,BVACEN,Support Services (SSC),PPT,Supplies and Services,E,Miscellaneous Expenses,EM,13/09/2013,PAY00599182,ICTA,ICT,900,Revenue,AWCFA Limited
Brighton & Hove City Council,http://statistics.data.gov.uk/id/local-authority/00ML,Central Support and Overheads,BVACEN,Support Services (SSC),PPT,Supplies and Services,E,Miscellaneous Expenses,EM,27/09/2013,PAY00602935,ICTA,ICT,3000,Revenue,AWCFA Limited
Brighton & Hove City Council,http://statistics.data.gov.uk/id/local-authority/00ML,Education Services,BVAEDU,Ed Ed Other LA Attrib Sch,ELA,Transport Related,D,Other Transport Costs,DG,25/09/2013,PAY00602223,OEDS,Other Education Support,56481.35,Revenue,B & H City Cabs
Brighton & Hove City Council,http://statistics.data.gov.uk/id/local-authority/00ML,Housing General Fund,BVAHOG,Hsing Welfare,HGW,Transport Related,D,Public Transport,DD,25/09/2013,PAY00602223,HOSS,Housing Supports Services,24.3,Revenue,B & H City Cabs
Brighton & Hove City Council,http://statistics.data.gov.uk/id/local-authority/00ML,Housing Revenue Account,BVAHOU,Hsing Management - HRA,HGM,Transport Related,D,Public Transport,DD,25/09/2013,PAY00602223,HTEN,Tenancy Services,30.13,Revenue,B & H City Cabs
Brighton & Hove City Council,http://statistics.data.gov.uk/id/local-authority/00ML,Education Services,BVAEDU,Ed Ed Other LA Attrib Sch,ELA,Transport Related,D,Other Transport Costs,DG,27/09/2013,PAY00603183,OEDS,Other Education Support,9398.55,Revenue,B & H City Cabs
Brighton & Hove City Council,http://statistics.data.gov.uk/id/local-authority/00ML,Housing General Fund,BVAHOG,Homelessness,HML,Transport Related,D,Public Transport,DD,27/09/2013,PAY00603183,TAAS,Temp Accom and Allocations,80.22,Revenue,B & H City Cabs
Brighton & Hove City Council,http://statistics.data.gov.uk/id/local-authority/00ML,Adult Social Care,BVASOC,S Svcs - Physical Disability,PDY,Customer n Client Receipts,M,Fees n Charges,MB,04/09/2013,PAY00597076,CCPD,Com Care Physical Disabilities,-616.6,Revenue,B & J G Richardson Business Account
Brighton & Hove City Council,http://statistics.data.gov.uk/id/local-authority/00ML,Adult Social Care,BVASOC,S Svcs - Physical Disability,PDY,Third Party Payments,F,Other Establishments,FH,04/09/2013,PAY00597076,CCPD,Com Care Physical Disabilities,5459.64,Revenue,B & J G Richardson Business Account
Brighton & Hove City Council,http://statistics.data.gov.uk/id/local-authority/00ML,Adult Social Care,BVASOC,S Svcs - Physical Disability,PDY,Customer n Client Receipts,M,Fees n Charges,MB,13/09/2013,PAY00599443,CCPD,Com Care Physical Disabilities,-616.6,Revenue,B & J G Richardson Business Account
Brighton & Hove City Council,http://statistics.data.gov.uk/id/local-authority/00ML,Adult Social Care,BVASOC,S Svcs - Physical Disability,PDY,Third Party Payments,F,Other Establishments,FH,13/09/2013,PAY00599443,CCPD,Com Care Physical Disabilities,5459.64,Revenue,B & J G Richardson Business Account
Brighton & Hove City Council,http://statistics.data.gov.uk/id/local-authority/00ML,Housing General Fund,BVAHOG,Homelessness,HML,Premises Related,C,Repair Maint n Alterations,CA,06/09/2013,PAY00597578,TAAS,Temp Accom and Allocations,503.42,Revenue,B & Q Plc
Brighton & Hove City Council,http://statistics.data.gov.uk/id/local-authority/00ML,Housing General Fund,BVAHOG,Homelessness,HML,Premises Related,C,Repair Maint n Alterations,CA,11/09/2013,PAY00598429,TAAS,Temp Accom and Allocations,297.08,Revenue,B & Q Plc
Brighton & Hove City Council,http://statistics.data.gov.uk/id/local-authority/00ML,Non I&E,BVANON,CAP Social Services,4RV,Plant Machinery n Equipment,PE2,Level Not Required,NR5025,11/09/2013,PAY00598429,ASIT,Assessment and SIT,46.95,Capital,B & Q Plc
Brighton & Hove City Council,http://statistics.data.gov.uk/id/local-authority/00ML,Housing General Fund,BVAHOG,Homelessness,HML,Premises Related,C,Repair Maint n Alterations,CA,18/09/2013,PAY00600072,TAAS,Temp Accom and Allocations,219.03,Revenue,B & Q Plc
Brighton & Hove City Council,http://statistics.data.gov.uk/id/local-authority/00ML,Housing General Fund,BVAHOG,Hsing Strat Advice and RSLs,HGR,Supplies and Services,E,Expenses,EJ,25/09/2013,PAY00602485,HOSS,Housing Supports Services,2.32,Revenue,B&H Action On Homelessness
Brighton & Hove City Council,http://statistics.data.gov.uk/id/local-authority/00ML,Housing General Fund,BVAHOG,Hsing Strat Advice and RSLs,HGR,Supplies and Services,E,Miscellaneous Expenses,EM,25/09/2013,PAY00602485,HOSS,Housing Supports Services,351.78,Revenue,B&H Action On Homelessness
Brighton & Hove City Council,http://statistics.data.gov.uk/id/local-authority/00ML,Housing General Fund,BVAHOG,Hsing Strat Advice and RSLs,HGR,Supplies and Services,E,Print Stat & Gen Office Exps,ED,25/09/2013,PAY00602485,HOSS,Housing Supports Services,7.5,Revenue,B&H Action On Homelessness
Brighton & Hove City Council,http://statistics.data.gov.uk/id/local-authority/00ML,Housing General Fund,BVAHOG,Hsing Strat Advice and RSLs,HGR,Transport Related,D,Public Transport,DD,25/09/2013,PAY00602485,HOSS,Housing Supports Services,112,Revenue,B&H Action On Homelessness
Brighton & Hove City Council,http://statistics.data.gov.uk/id/local-authority/00ML,Education Services,BVAEDU,Ed EY PVI,ENP,Supplies and Services,E,Grants n Subscriptions,EK,04/09/2013,PAY00596985,EYRS,Early Years,5365,Revenue,Baby Ducks Playgroup
Brighton & Hove City Council,http://statistics.data.gov.uk/id/local-authority/00ML,Education Services,BVAEDU,Ed EY PVI,ENP,Supplies and Services,E,Grants n Subscriptions,EK,06/09/2013,PAY00597633,EYRS,Early Years,2433,Revenue,Baby Ducks Playgroup
Brighton & Hove City Council,http://statistics.data.gov.uk/id/local-authority/00ML,Cultural and Related Serv,BVACUL,Management Services (DEC),MGT,Supplies and Services,E,Equip't Furniture n Materials,EA,13/09/2013,PAY00599173,CIPK,City Parks,253.05,Revenue,Ball Colegrave Ltd
Brighton & Hove City Council,http://statistics.data.gov.uk/id/local-authority/00ML,Non I&E,BVANON,CAP Mgmnt and Suppt Services,4PT,New Construction n Conversion,PB,Level Not Required,NR5026,18/09/2013,PAY00600576,ICTA,ICT,2250,Capital,Ballard Chalmers Ltd
Brighton & Hove City Council,http://statistics.data.gov.uk/id/local-authority/00ML,Adult Social Care,BVASOC,S Svcs - Learning Disability,LDY,Customer n Client Receipts,M,Fees n Charges,MB,06/09/2013,PAY00597962,CCLD,Com Care Learning Disabilities,-315.2,Revenue,Ballater House
Brighton & Hove City Council,http://statistics.data.gov.uk/id/local-authority/00ML,Adult Social Care,BVASOC,S Svcs - Learning Disability,LDY,Third Party Payments,F,Other Establishments,FH,06/09/2013,PAY00597962,CCLD,Com Care Learning Disabilities,7980,Revenue,Ballater House
Brighton & Hove City Council,http://statistics.data.gov.uk/id/local-authority/00ML,Education Services,BVAEDU,Ed Srvcs YP Ad and Cmty Ln,ENA,Supplies and Services,E,Print Stat & Gen Office Exps,ED,13/09/2013,PAY00599871,OEDS,Other Education Support,326.08,Revenue,Balreed Digitec Ltd
Brighton & Hove City Council,http://statistics.data.gov.uk/id/local-authority/00ML,Central Support and Overheads,BVACEN,Support Services (SSC),PPT,Supplies and Services,E,Services,EF,27/09/2013,PAY00602848,PROP,Property and Design,7322.43,Revenue,Baqus Boxall Sayer
Brighton & Hove City Council,http://statistics.data.gov.uk/id/local-authority/00ML,Children�s Social Care,BVACSC,Child Srvcs - Fostering,FLF,Third Party Payments,F,Other Establishments,FH,18/09/2013,PAY00600049,AVFM,Agency Placements\VFM,3214.68,Revenue,Barnardos
Brighton & Hove City Council,http://statistics.data.gov.uk/id/local-authority/00ML,Children�s Social Care,BVACSC,Child Srvcs - Fostering,FLF,Third Party Payments,F,Other Establishments,FH,27/09/2013,PAY00602865,S75J,Sect 75 Joint Arrangements,10000,Revenue,Barnardos
Brighton & Hove City Council,http://statistics.data.gov.uk/id/local-authority/00ML,Central Support and Overheads,BVACEN,Holding Accounts,PPH,Transport Related,D,Direct Transport Costs,DA,04/09/2013,PAY00596893,CICL,City Clean,90,Revenue,Barnes DAF
Brighton & Hove City Council,http://statistics.data.gov.uk/id/local-authority/00ML,Cultural and Related Serv,BVACUL,Management Services (DEC),MGT,Transport Related,D,Direct Transport Costs,DA,04/09/2013,PAY00596893,CIPK,City Parks,83.59,Revenue,Barnes DAF
Brighton & Hove City Council,http://statistics.data.gov.uk/id/local-authority/00ML,Environment & Regulatory Serv,BVAERS,Management Services (DEC),MGT,Transport Related,D,Direct Transport Costs,DA,04/09/2013,PAY00596893,CICL,City Clean,329,Revenue,Barnes DAF
Brighton & Hove City Council,http://statistics.data.gov.uk/id/local-authority/00ML,Central Support and Overheads,BVACEN,Holding Accounts,PPH,Transport Related,D,Direct Transport Costs,DA,11/09/2013,PAY00598428,CICL,City Clean,499.7,Revenue,Barnes DAF
Brighton & Hove City Council,http://statistics.data.gov.uk/id/local-authority/00ML,Housing General Fund,BVAHOG,Homelessness,HML,Premises Related,C,Rents Payable,CC,27/09/2013,PAY00603606,TAAS,Temp Accom and Allocations,2025,Revenue,Baron Developments Ltd
Brighton & Hove City Council,http://statistics.data.gov.uk/id/local-authority/00ML,Housing General Fund,BVAHOG,Homelessness,HML,Premises Related,C,Rents Payable,CC,13/09/2013,PAY00599507,TAAS,Temp Accom and Allocations,650,Revenue,Baron Management Ltd
Brighton & Hove City Council,http://statistics.data.gov.uk/id/local-authority/00ML,Housing General Fund,BVAHOG,Homelessness,HML,Premises Related,C,Rents Payable,CC,18/09/2013,PAY00600311,TAAS,Temp Accom and Allocations,730,Revenue,Baron Management Ltd
Brighton & Hove City Council,http://statistics.data.gov.uk/id/local-authority/00ML,Housing General Fund,BVAHOG,Homelessness,HML,Premises Related,C,Rents Payable,CC,20/09/2013,PAY00601234,TAAS,Temp Accom and Allocations,10680,Revenue,Baron Management Ltd
Brighton & Hove City Council,http://statistics.data.gov.uk/id/local-authority/00ML,Adult Social Care,BVASOC,S Svcs - Older People Svcs,PPL,Customer n Client Receipts,M,Fees n Charges,MB,11/09/2013,PAY00598353,CCOP,Community Care Older People,-1256.8,Revenue,Barons Down Nursing Home
Brighton & Hove City Council,http://statistics.data.gov.uk/id/local-authority/00ML,Adult Social Care,BVASOC,S Svcs - Older People Svcs,PPL,Third Party Payments,F,Other Establishments,FH,11/09/2013,PAY00598353,CCOP,Community Care Older People,4544.75,Revenue,Barons Down Nursing Home
Brighton & Hove City Council,http://statistics.data.gov.uk/id/local-authority/00ML,Cultural and Related Serv,BVACUL,Culture and Heritage,CHG,Supplies and Services,E,Equip't Furniture n Materials,EA,13/09/2013,PAY00599599,RPMU,Royal Pavilion and Museums,1196.6,Revenue,Barriers Direct
Brighton & Hove City Council,http://statistics.data.gov.uk/id/local-authority/00ML,Adult Social Care,BVASOC,S Svcs - Learning Disability,LDY,Customer n Client Receipts,M,Fees n Charges,MB,18/09/2013,PAY00600238,CCLD,Com Care Learning Disabilities,-486,Revenue,Barrington House Ltd
Brighton & Hove City Council,http://statistics.data.gov.uk/id/local-authority/00ML,Adult Social Care,BVASOC,S Svcs - Learning Disability,LDY,Third Party Payments,F,Other Establishments,FH,18/09/2013,PAY00600238,CCLD,Com Care Learning Disabilities,1656,Revenue,Barrington House Ltd
Brighton & Hove City Council,http://statistics.data.gov.uk/id/local-authority/00ML,Public Health,BVAPHE,Public Health,PHE,Third Party Payments,F,Health Authorities,FC,25/09/2013,PAY00602640,PHCM,PH Commissioning,1571,Revenue,Barts Health NHS Trust
Brighton & Hove City Council,http://statistics.data.gov.uk/id/local-authority/00ML,Education Services,BVAEDU,Ed EY PVI,ENP,Supplies and Services,E,Miscellaneous Expenses,EM,13/09/2013,PAY00599860,EYRS,Early Years,1270,Revenue,Basinghall Electric Company (Brighton) Limited
Brighton & Hove City Council,http://statistics.data.gov.uk/id/local-authority/00ML,Planning and Development,BVAPLA,Economic Development,ECD,Supplies and Services,E,Grants n Subscriptions,EK,04/09/2013,PAY00597161,CMNY,Communities and Equalities,1000,Revenue,Bates Estate Tenants and Residents Association
Brighton & Hove City Council,http://statistics.data.gov.uk/id/local-authority/00ML,Central Support and Overheads,BVACEN,Support Services (SSC),PPT,Supplies and Services,E,Services,EF,18/09/2013,PAY00600328,LEGS,Legal Services,1504,Revenue,Bates Wells & Braithwaite London LLP
Brighton & Hove City Council,http://statistics.data.gov.uk/id/local-authority/00ML,Non I&E,BVANON,CAP Other Env Services,4EV,New Construction n Conversion,PB,Level Not Required,NR5026,25/09/2013,PAY00602315,MJPR,Major Projects,1787,Capital,Bates Wells & Braithwaite London LLP
Brighton & Hove City Council,http://statistics.data.gov.uk/id/local-authority/00ML,Cultural and Related Serv,BVACUL,Culture and Heritage,CHG,Supplies and Services,E,Goods for Resale,EG,27/09/2013,PAY00603604,RPMU,Royal Pavilion and Museums,555,Revenue,Bay Tree Food Company Ltd
Brighton & Hove City Council,http://statistics.data.gov.uk/id/local-authority/00ML,Adult Social Care,BVASOC,Management Services (DEC),MGT,Supplies and Services,E,Print Stat & Gen Office Exps,ED,04/09/2013,PAY00597418,DIRO,Director Office,1814.4,Revenue,BBP Marketing
Brighton & Hove City Council,http://statistics.data.gov.uk/id/local-authority/00ML,Adult Social Care,BVASOC,S Svcs - Older People Svcs,PPL,Customer n Client Receipts,M,Fees n Charges,MB,11/09/2013,PAY00598859,CCOP,Community Care Older People,-486,Revenue,Beachlands Care Ltd
Brighton & Hove City Council,http://statistics.data.gov.uk/id/local-authority/00ML,Adult Social Care,BVASOC,S Svcs - Older People Svcs,PPL,Third Party Payments,F,Other Establishments,FH,11/09/2013,PAY00598859,CCOP,Community Care Older People,1572,Revenue,Beachlands Care Ltd
Brighton & Hove City Council,http://statistics.data.gov.uk/id/local-authority/00ML,Adult Social Care,BVASOC,S Svcs - Mental Health,MHT,Third Party Payments,F,Other Establishments,FH,27/09/2013,PAY00602950,ADMH,Community Care Adult MH,2400,Revenue,Beachside Rest Home
Brighton & Hove City Council,http://statistics.data.gov.uk/id/local-authority/00ML,Adult Social Care,BVASOC,S Svcs - Older People Svcs,PPL,Third Party Payments,F,Other Establishments,FH,27/09/2013,PAY00602950,CCOP,Community Care Older People,4752,Revenue,Beachside Rest Home
Brighton & Hove City Council,http://statistics.data.gov.uk/id/local-authority/00ML,Cultural and Related Serv,BVACUL,Culture and Heritage,CHG,Supplies and Services,E,Print Stat & Gen Office Exps,ED,18/09/2013,PAY00600023,RPMU,Royal Pavilion and Museums,5181,Revenue,Beacon Press
Brighton & Hove City Council,http://statistics.data.gov.uk/id/local-authority/00ML,Cultural and Related Serv,BVACUL,Culture and Heritage,CHG,Supplies and Services,E,Services,EF,27/09/2013,PAY00602847,RPMU,Royal Pavilion and Museums,420,Revenue,Beacon Press
Brighton & Hove City Council,http://statistics.data.gov.uk/id/local-authority/00ML,Education Services,BVAEDU,Ed EY PVI,ENP,Supplies and Services,E,Grants n Subscriptions,EK,04/09/2013,PAY00596878,EYRS,Early Years,2732,Revenue,BeCCA Pre-School Playgroup
Brighton & Hove City Council,http://statistics.data.gov.uk/id/local-authority/00ML,Education Services,BVAEDU,Ed EY PVI,ENP,Supplies and Services,E,Grants n Subscriptions,EK,06/09/2013,PAY00597568,EYRS,Early Years,8922,Revenue,BeCCA Pre-School Playgroup
Brighton & Hove City Council,http://statistics.data.gov.uk/id/local-authority/00ML,Adult Social Care,BVASOC,S Svcs - Learning Disability,LDY,Customer n Client Receipts,M,Fees n Charges,MB,27/09/2013,PAY00602927,CCLD,Com Care Learning Disabilities,-352.6,Revenue,Beech Lodge
Brighton & Hove City Council,http://statistics.data.gov.uk/id/local-authority/00ML,Adult Social Care,BVASOC,S Svcs - Learning Disability,LDY,Third Party Payments,F,Other Establishments,FH,27/09/2013,PAY00602927,CCLD,Com Care Learning Disabilities,6379.72,Revenue,Beech Lodge
Brighton & Hove City Council,http://statistics.data.gov.uk/id/local-authority/00ML,Adult Social Care,BVASOC,S Svcs - Older People Svcs,PPL,Customer n Client Receipts,M,Fees n Charges,MB,27/09/2013,PAY00602927,CCOP,Community Care Older People,-629.52,Revenue,Beech Lodge
Brighton & Hove City Council,http://statistics.data.gov.uk/id/local-authority/00ML,Adult Social Care,BVASOC,S Svcs - Older People Svcs,PPL,Third Party Payments,F,Other Establishments,FH,27/09/2013,PAY00602927,CCOP,Community Care Older People,2372,Revenue,Beech Lodge
Brighton & Hove City Council,http://statistics.data.gov.uk/id/local-authority/00ML,Adult Social Care,BVASOC,S Svcs - Physical Disability,PDY,Customer n Client Receipts,M,Fees n Charges,MB,27/09/2013,PAY00602927,CCPD,Com Care Physical Disabilities,-234.4,Revenue,Beech Lodge
Brighton & Hove City Council,http://statistics.data.gov.uk/id/local-authority/00ML,Adult Social Care,BVASOC,S Svcs - Physical Disability,PDY,Third Party Payments,F,Other Establishments,FH,27/09/2013,PAY00602927,CCPD,Com Care Physical Disabilities,6400,Revenue,Beech Lodge
Brighton & Hove City Council,http://statistics.data.gov.uk/id/local-authority/00ML,Adult Social Care,BVASOC,S Svcs - Older People Svcs,PPL,Customer n Client Receipts,M,Fees n Charges,MB,04/09/2013,PAY00597132,CCOP,Community Care Older People,-596.64,Revenue,Bel-Amie Gables 
Brighton & Hove City Council,http://statistics.data.gov.uk/id/local-authority/00ML,Adult Social Care,BVASOC,S Svcs - Older People Svcs,PPL,Third Party Payments,F,Other Establishments,FH,04/09/2013,PAY00597132,CCOP,Community Care Older People,2384,Revenue,Bel-Amie Gables 
Brighton & Hove City Council,http://statistics.data.gov.uk/id/local-authority/00ML,Children�s Social Care,BVACSC,Ed Ed Other Strat Mgt,ENM,Supplies and Services,E,Expenses,EJ,11/09/2013,PAY00598889,S75J,Sect 75 Joint Arrangements,380,Revenue,Belgrave Group Ltd T/A Advantage Ico
Brighton & Hove City Council,http://statistics.data.gov.uk/id/local-authority/00ML,Cultural and Related Serv,BVACUL,Management Services (DEC),MGT,Supplies and Services,E,Clothing Uniforms n Laundry,EC,20/09/2013,PAY00601150,CIPK,City Parks,237.68,Revenue,Berendsen UK Ltd
Brighton & Hove City Council,http://statistics.data.gov.uk/id/local-authority/00ML,Environment & Regulatory Serv,BVAERS,Management Services (DEC),MGT,Supplies and Services,E,Clothing Uniforms n Laundry,EC,20/09/2013,PAY00601150,CICL,City Clean,276.8,Revenue,Berendsen UK Ltd
Brighton & Hove City Council,http://statistics.data.gov.uk/id/local-authority/00ML,Cultural and Related Serv,BVACUL,Management Services (DEC),MGT,Transport Related,D,Direct Transport Costs,DA,04/09/2013,PAY00597129,CIPK,City Parks,432.3,Revenue,Bernhard and Company Ltd
Brighton & Hove City Council,http://statistics.data.gov.uk/id/local-authority/00ML,Non I&E,BVANON,Balance Sheet GFND,9ZZ,Long Term Liabilities,ZBB,Provisions,ZBBB,11/09/2013,PAY00598917,BSHT,Balance Sheet,15675,Balance Sheet,Best Demolition Limited
Brighton & Hove City Council,http://statistics.data.gov.uk/id/local-authority/00ML,Children�s Social Care,BVACSC,Ed Ed Other Other,ENF,Third Party Payments,F,Other Establishments,FH,04/09/2013,PAY00596997,OEDS,Other Education Support,278.25,Revenue,BHAFC Albion in the Community
Brighton & Hove City Council,http://statistics.data.gov.uk/id/local-authority/00ML,Adult Social Care,BVASOC,S Svcs - Mental Health,MHT,Third Party Payments,F,Other Establishments,FH,11/09/2013,PAY00598414,ADMH,Community Care Adult MH,317.18,Revenue,Big Box Storage Co Ltd
Brighton & Hove City Council,http://statistics.data.gov.uk/id/local-authority/00ML,Children�s Social Care,BVACSC,Child Srvcs Leaving Care,FAL,Supplies and Services,E,Miscellaneous Expenses,EM,11/09/2013,PAY00598414,CHIC,Children In Care,358.77,Revenue,Big Box Storage Co Ltd
Brighton & Hove City Council,http://statistics.data.gov.uk/id/local-authority/00ML,Adult Social Care,BVASOC,S Svcs - Mental Health,MHT,Third Party Payments,F,Other Establishments,FH,13/09/2013,PAY00599123,ADMH,Community Care Adult MH,372,Revenue,Big Box Storage Co Ltd
Brighton & Hove City Council,http://statistics.data.gov.uk/id/local-authority/00ML,Adult Social Care,BVASOC,S Svcs - Mental Health,MHT,Third Party Payments,F,Other Establishments,FH,18/09/2013,PAY00600053,ADMH,Community Care Adult MH,272.6,Revenue,Big Box Storage Co Ltd
Brighton & Hove City Council,http://statistics.data.gov.uk/id/local-authority/00ML,Housing Revenue Account,BVAHOU,Hsing Management - HRA,HGM,Supplies and Services,E,Services,EF,04/09/2013,PAY00596924,HTEN,Tenancy Services,560.83,Revenue,Big Yellow Self Storage Company Ltd
Brighton & Hove City Council,http://statistics.data.gov.uk/id/local-authority/00ML,Housing Revenue Account,BVAHOU,Hsing Management - HRA,HGM,Supplies and Services,E,Services,EF,20/09/2013,PAY00600897,HTEN,Tenancy Services,275,Revenue,Big Yellow Self Storage Company Ltd
Brighton & Hove City Council,http://statistics.data.gov.uk/id/local-authority/00ML,Adult Social Care,BVASOC,S Svcs - Older People Svcs,PPL,Customer n Client Receipts,M,Fees n Charges,MB,04/09/2013,PAY00596933,CCOP,Community Care Older People,-1000.26,Revenue,Birchgrove Healthcare (Sussex) Ltd
Brighton & Hove City Council,http://statistics.data.gov.uk/id/local-authority/00ML,Adult Social Care,BVASOC,S Svcs - Older People Svcs,PPL,Third Party Payments,F,Other Establishments,FH,04/09/2013,PAY00596933,CCOP,Community Care Older People,3706.74,Revenue,Birchgrove Healthcare (Sussex) Ltd
Brighton & Hove City Council,http://statistics.data.gov.uk/id/local-authority/00ML,Adult Social Care,BVASOC,S Svcs - Older People Svcs,PPL,Supplies and Services,E,Miscellaneous Expenses,EM,11/09/2013,PAY00598468,CCOP,Community Care Older People,17.8,Revenue,Birchgrove Healthcare (Sussex) Ltd
Brighton & Hove City Council,http://statistics.data.gov.uk/id/local-authority/00ML,Adult Social Care,BVASOC,S Svcs - Older People Svcs,PPL,Third Party Payments,F,Other Establishments,FH,11/09/2013,PAY00598468,ASIT,Assessment and SIT,3416.02,Revenue,Birchgrove Healthcare (Sussex) Ltd
Brighton & Hove City Council,http://statistics.data.gov.uk/id/local-authority/00ML,Adult Social Care,BVASOC,S Svcs - Older People Svcs,PPL,Customer n Client Receipts,M,Fees n Charges,MB,27/09/2013,PAY00602925,CCOP,Community Care Older People,-9300.85,Revenue,Birchgrove Healthcare (Sussex) Ltd
Brighton & Hove City Council,http://statistics.data.gov.uk/id/local-authority/00ML,Adult Social Care,BVASOC,S Svcs - Older People Svcs,PPL,Third Party Payments,F,Other Establishments,FH,27/09/2013,PAY00602925,CCOP,Community Care Older People,43596.88,Revenue,Birchgrove Healthcare (Sussex) Ltd
Brighton & Hove City Council,http://statistics.data.gov.uk/id/local-authority/00ML,Housing General Fund,BVAHOG,Homelessness,HML,Supplies and Services,E,Miscellaneous Expenses,EM,04/09/2013,PAY00597153,TAAS,Temp Accom and Allocations,1787.6,Revenue,Bishop`s Move
Brighton & Hove City Council,http://statistics.data.gov.uk/id/local-authority/00ML,Housing General Fund,BVAHOG,Homelessness,HML,Supplies and Services,E,Miscellaneous Expenses,EM,13/09/2013,PAY00599558,TAAS,Temp Accom and Allocations,1176,Revenue,Bishop`s Move
Brighton & Hove City Council,http://statistics.data.gov.uk/id/local-authority/00ML,Adult Social Care,BVASOC,S Svcs Supported Employment,EMP,Premises Related,C,Energy Costs,CB,06/09/2013,PAY00597588,SUPE,Supported Employment,354.4,Revenue,Bizspace Ltd
Brighton & Hove City Council,http://statistics.data.gov.uk/id/local-authority/00ML,Adult Social Care,BVASOC,S Svcs Supported Employment,EMP,Premises Related,C,Rents Payable,CC,06/09/2013,PAY00597588,SUPE,Supported Employment,86,Revenue,Bizspace Ltd
Brighton & Hove City Council,http://statistics.data.gov.uk/id/local-authority/00ML,Adult Social Care,BVASOC,S Svcs Supported Employment,EMP,Premises Related,C,Rents Payable,CC,18/09/2013,PAY00600094,SUPE,Supported Employment,1136.93,Revenue,Bizspace Ltd
Brighton & Hove City Council,http://statistics.data.gov.uk/id/local-authority/00ML,Central Support and Overheads,BVACEN,Support Services (SSC),PPT,Supplies and Services,E,Equip't Furniture n Materials,EA,11/09/2013,PAY00598466,COMU,Communications,449.1,Revenue,Blackburns Metals Ltd
Brighton & Hove City Council,http://statistics.data.gov.uk/id/local-authority/00ML,Adult Social Care,BVASOC,S Svcs Supported Employment,EMP,Supplies and Services,E,Equip't Furniture n Materials,EA,27/09/2013,PAY00602921,SUPE,Supported Employment,293,Revenue,Blackburns Metals Ltd
Brighton & Hove City Council,http://statistics.data.gov.uk/id/local-authority/00ML,Adult Social Care,BVASOC,S Svcs - Older People Svcs,PPL,Supplies and Services,E,Catering,EB,04/09/2013,PAY00596890,DAYS,Day Services,268.49,Revenue,Blakes Meats Ltd
Brighton & Hove City Council,http://statistics.data.gov.uk/id/local-authority/00ML,Housing General Fund,BVAHOG,Homelessness,HML,Supplies and Services,E,Catering,EB,20/09/2013,PAY00600867,HOSS,Housing Supports Services,276.11,Revenue,Blakes Meats Ltd
Brighton & Hove City Council,http://statistics.data.gov.uk/id/local-authority/00ML,Adult Social Care,BVASOC,S Svcs - Older People Svcs,PPL,Customer n Client Receipts,M,Fees n Charges,MB,27/09/2013,PAY00602856,CCOP,Community Care Older People,-486,Revenue,Blatchington House Nursing Home
Brighton & Hove City Council,http://statistics.data.gov.uk/id/local-authority/00ML,Adult Social Care,BVASOC,S Svcs - Older People Svcs,PPL,Third Party Payments,F,Other Establishments,FH,27/09/2013,PAY00602856,CCOP,Community Care Older People,1784,Revenue,Blatchington House Nursing Home
Brighton & Hove City Council,http://statistics.data.gov.uk/id/local-authority/00ML,Adult Social Care,BVASOC,S Svcs - Older People Svcs,PPL,Third Party Payments,F,Other Establishments,FH,11/09/2013,PAY00598415,ASIT,Assessment and SIT,2816.24,Revenue,Blind Veterans UK
Brighton & Hove City Council,http://statistics.data.gov.uk/id/local-authority/00ML,Adult Social Care,BVASOC,S Svcs - Older People Svcs,PPL,Customer n Client Receipts,M,Fees n Charges,MB,13/09/2013,PAY00599124,CCOP,Community Care Older People,-1619.56,Revenue,Blind Veterans UK
Brighton & Hove City Council,http://statistics.data.gov.uk/id/local-authority/00ML,Adult Social Care,BVASOC,S Svcs - Older People Svcs,PPL,Third Party Payments,F,Other Establishments,FH,13/09/2013,PAY00599124,CCOP,Community Care Older People,4095.16,Revenue,Blind Veterans UK
Brighton & Hove City Council,http://statistics.data.gov.uk/id/local-authority/00ML,Adult Social Care,BVASOC,S Svcs - Older People Svcs,PPL,Third Party Payments,F,Other Establishments,FH,18/09/2013,PAY00600054,ASIT,Assessment and SIT,6238.81,Revenue,Blind Veterans UK
Brighton & Hove City Council,http://statistics.data.gov.uk/id/local-authority/00ML,Children�s Social Care,BVACSC,Child Srvcs - Fostering,FLF,Third Party Payments,F,Other Establishments,FH,18/09/2013,PAY00600380,AVFM,Agency Placements\VFM,38615.94,Revenue,Blue Sky Fostering Limited
Brighton & Hove City Council,http://statistics.data.gov.uk/id/local-authority/00ML,Education Services,BVAEDU,Ed EY PVI,ENP,Supplies and Services,E,Grants n Subscriptions,EK,04/09/2013,PAY00597071,EYRS,Early Years,32437,Revenue,Blueberry Nursery & Early Learning Organisation Ld
Brighton & Hove City Council,http://statistics.data.gov.uk/id/local-authority/00ML,Education Services,BVAEDU,Ed EY PVI,ENP,Supplies and Services,E,Grants n Subscriptions,EK,06/09/2013,PAY00597847,EYRS,Early Years,492,Revenue,Blueberry Nursery & Early Learning Organisation Ld
Brighton & Hove City Council,http://statistics.data.gov.uk/id/local-authority/00ML,Education Services,BVAEDU,Ed EY Central,EAE,Third Party Payments,F,Other Establishments,FH,27/09/2013,PAY00603253,EYRS,Early Years,1000,Revenue,Blueberry Nursery & Early Learning Organisation Ld
Brighton & Hove City Council,http://statistics.data.gov.uk/id/local-authority/00ML,Education Services,BVAEDU,Ed EY PVI,ENP,Supplies and Services,E,Grants n Subscriptions,EK,27/09/2013,PAY00603253,EYRS,Early Years,1000,Revenue,Blueberry Nursery & Early Learning Organisation Ld
Brighton & Hove City Council,http://statistics.data.gov.uk/id/local-authority/00ML,Cultural and Related Serv,BVACUL,Recreation and Sport,REC,Supplies and Services,E,Services,EF,11/09/2013,PAY00598474,SDEV,Sports Development,757.5,Revenue,Bob the Dog
Brighton & Hove City Council,http://statistics.data.gov.uk/id/local-authority/00ML,Non I&E,BVANON,CAP Transport,4TR,New Construction n Conversion,PB,Level Not Required,NR5026,11/09/2013,PAY00598893,HWEN,Highways Engineering,6970,Capital,Bollards International
Brighton & Hove City Council,http://statistics.data.gov.uk/id/local-authority/00ML,Education Services,BVAEDU,Ed Mgmt and Support Services,EMG,Supplies and Services,E,Communications n Computing,EH,25/09/2013,PAY00602110,MUSE,Music Service,490.83,Revenue,Bonners Ltd
Brighton & Hove City Council,http://statistics.data.gov.uk/id/local-authority/00ML,Cultural and Related Serv,BVACUL,Culture and Heritage,CHG,Supplies and Services,E,Goods for Resale,EG,13/09/2013,PAY00599112,RPMU,Royal Pavilion and Museums,12.75,Revenue,Bookspeed
Brighton & Hove City Council,http://statistics.data.gov.uk/id/local-authority/00ML,Library Services,BVACUL,Library Service,LBR,Supplies and Services,E,Goods for Resale,EG,13/09/2013,PAY00599112,LIBS,Libraries,1308.94,Revenue,Bookspeed
Brighton & Hove City Council,http://statistics.data.gov.uk/id/local-authority/00ML,Education Services,BVAEDU,Ed EY PVI,ENP,Supplies and Services,E,Grants n Subscriptions,EK,04/09/2013,PAY00596885,EYRS,Early Years,28719,Revenue,Boomerang Kids
Brighton & Hove City Council,http://statistics.data.gov.uk/id/local-authority/00ML,Education Services,BVAEDU,Ed EY PVI,ENP,Supplies and Services,E,Grants n Subscriptions,EK,06/09/2013,PAY00597574,EYRS,Early Years,3245,Revenue,Boomerang Kids
Brighton & Hove City Council,http://statistics.data.gov.uk/id/local-authority/00ML,Education Services,BVAEDU,Ed EY Central,EAE,Third Party Payments,F,Other Establishments,FH,20/09/2013,PAY00600865,EYRS,Early Years,1000,Revenue,Boomerang Kids
Brighton & Hove City Council,http://statistics.data.gov.uk/id/local-authority/00ML,Education Services,BVAEDU,Ed EY PVI,ENP,Supplies and Services,E,Grants n Subscriptions,EK,20/09/2013,PAY00600865,EYRS,Early Years,1000,Revenue,Boomerang Kids
Brighton & Hove City Council,http://statistics.data.gov.uk/id/local-authority/00ML,Adult Social Care,BVASOC,S Svcs - Learning Disability,LDY,Customer n Client Receipts,M,Fees n Charges,MB,04/09/2013,PAY00597164,CCLD,Com Care Learning Disabilities,-315.2,Revenue,Bradfield House
Brighton & Hove City Council,http://statistics.data.gov.uk/id/local-authority/00ML,Adult Social Care,BVASOC,S Svcs - Learning Disability,LDY,Third Party Payments,F,Other Establishments,FH,04/09/2013,PAY00597164,CCLD,Com Care Learning Disabilities,12960,Revenue,Bradfield House
Brighton & Hove City Council,http://statistics.data.gov.uk/id/local-authority/00ML,Adult Social Care,BVASOC,S Svcs - Learning Disability,LDY,Supplies and Services,E,Catering,EB,20/09/2013,PAY00600828,RESP,Respite Services,252.06,Revenue,Brake Bros Ltd t/a Brakes Catering Equip
Brighton & Hove City Council,http://statistics.data.gov.uk/id/local-authority/00ML,Non I&E,BVANON,CAP Housing Services GF,4HG,New Construction n Conversion,PB,Level Not Required,NR5026,13/09/2013,PAY00599460,PSHG,Private Sector Housing,19374,Capital,Bramber Construction Co Ltd
Brighton & Hove City Council,http://statistics.data.gov.uk/id/local-authority/00ML,Central Support and Overheads,BVACEN,Trading Services,TRD,Supplies and Services,E,Services,EF,27/09/2013,PAY00603273,PROP,Property and Design,28382.1,Revenue,Bramber Construction Co Ltd
Brighton & Hove City Council,http://statistics.data.gov.uk/id/local-authority/00ML,Adult Social Care,BVASOC,S Svcs - Older People Svcs,PPL,Customer n Client Receipts,M,Fees n Charges,MB,27/09/2013,PAY00602913,CCOP,Community Care Older People,-3287.84,Revenue,Bramble Care Homes Ltd
Brighton & Hove City Council,http://statistics.data.gov.uk/id/local-authority/00ML,Adult Social Care,BVASOC,S Svcs - Older People Svcs,PPL,Third Party Payments,F,Other Establishments,FH,27/09/2013,PAY00602913,CCOP,Community Care Older People,6076,Revenue,Bramble Care Homes Ltd
Brighton & Hove City Council,http://statistics.data.gov.uk/id/local-authority/00ML,Adult Social Care,BVASOC,S Svcs - Older People Svcs,PPL,Customer n Client Receipts,M,Fees n Charges,MB,11/09/2013,PAY00598568,CCOP,Community Care Older People,-4552.49,Revenue,Bravery Care
Brighton & Hove City Council,http://statistics.data.gov.uk/id/local-authority/00ML,Adult Social Care,BVASOC,S Svcs - Older People Svcs,PPL,Third Party Payments,F,Other Establishments,FH,11/09/2013,PAY00598568,CCOP,Community Care Older People,10398.14,Revenue,Bravery Care
Brighton & Hove City Council,http://statistics.data.gov.uk/id/local-authority/00ML,Adult Social Care,BVASOC,S Svcs - Older People Svcs,PPL,Customer n Client Receipts,M,Fees n Charges,MB,27/09/2013,PAY00603245,CCOP,Community Care Older People,-2798.96,Revenue,Bravery Care
Brighton & Hove City Council,http://statistics.data.gov.uk/id/local-authority/00ML,Adult Social Care,BVASOC,S Svcs - Older People Svcs,PPL,Third Party Payments,F,Other Establishments,FH,27/09/2013,PAY00603245,CCOP,Community Care Older People,11031.28,Revenue,Bravery Care
Brighton & Hove City Council,http://statistics.data.gov.uk/id/local-authority/00ML,Education Services,BVAEDU,Ed Srvcs YP Ad and Cmty Ln,ENA,Third Party Payments,F,Other Establishments,FH,18/09/2013,PAY00600135,OEDS,Other Education Support,13333,Revenue,Bridge Community Education Centre
Brighton & Hove City Council,http://statistics.data.gov.uk/id/local-authority/00ML,Cultural and Related Serv,BVACUL,Culture and Heritage,CHG,Supplies and Services,E,Miscellaneous Expenses,EM,20/09/2013,PAY00601486,RPMU,Royal Pavilion and Museums,330,Revenue,Bright Interactive Ltd
Brighton & Hove City Council,http://statistics.data.gov.uk/id/local-authority/00ML,Children�s Social Care,BVACSC,Child Srvcs - Fostering,FLF,Third Party Payments,F,Other Establishments,FH,18/09/2013,PAY00600372,AVFM,Agency Placements\VFM,40158.4,Revenue,Brighter Futures Foster Care Ltd
Brighton & Hove City Council,http://statistics.data.gov.uk/id/local-authority/00ML,Planning and Development,BVAPLA,Planning Policy,PLP,Premises Related,C,Rents Payable,CC,27/09/2013,PAY00602996,DEVP,Development Planning,437,Revenue,Brighthelm Church & Community Centre Trust Ltd
Brighton & Hove City Council,http://statistics.data.gov.uk/id/local-authority/00ML,Education Services,BVAEDU,Ed EY PVI,ENP,Supplies and Services,E,Grants n Subscriptions,EK,04/09/2013,PAY00597102,EYRS,Early Years,4059,Revenue,Brighthelm Pre-School 
Brighton & Hove City Council,http://statistics.data.gov.uk/id/local-authority/00ML,Education Services,BVAEDU,Ed EY PVI,ENP,Supplies and Services,E,Grants n Subscriptions,EK,06/09/2013,PAY00597882,EYRS,Early Years,811,Revenue,Brighthelm Pre-School 
Brighton & Hove City Council,http://statistics.data.gov.uk/id/local-authority/00ML,Cultural and Related Serv,BVACUL,Open Spaces,PEN,Supplies and Services,E,Grants n Subscriptions,EK,13/09/2013,PAY00599193,CIPK,City Parks,2804.65,Revenue,Brighton & Hove Allotment Federation
Brighton & Hove City Council,http://statistics.data.gov.uk/id/local-authority/00ML,Adult Social Care,BVASOC,S Svcs - Older People Svcs,PPL,Customer n Client Receipts,M,Fees n Charges,MB,27/09/2013,PAY00602794,CCOP,Community Care Older People,-1785.24,Revenue,Brighton & Hove Bethesda Home
Brighton & Hove City Council,http://statistics.data.gov.uk/id/local-authority/00ML,Adult Social Care,BVASOC,S Svcs - Older People Svcs,PPL,Third Party Payments,F,Other Establishments,FH,27/09/2013,PAY00602794,CCOP,Community Care Older People,5016,Revenue,Brighton & Hove Bethesda Home
Brighton & Hove City Council,http://statistics.data.gov.uk/id/local-authority/00ML,Non-BHC Organisations,BVANON,Trusts,TRT,Supplies and Services,E,Grants n Subscriptions,EK,06/09/2013,PAY00597599,NBHC,Non Council,5000,Revenue,Brighton & Hove Black History
Brighton & Hove City Council,http://statistics.data.gov.uk/id/local-authority/00ML,Planning and Development,BVAPLA,Economic Development,ECD,Supplies and Services,E,Grants n Subscriptions,EK,06/09/2013,PAY00597599,CMNY,Communities and Equalities,5000,Revenue,Brighton & Hove Black History
Brighton & Hove City Council,http://statistics.data.gov.uk/id/local-authority/00ML,Children�s Social Care,BVACSC,Child Srvcs - Fostering,FLF,Transport Related,D,Contract Hire n Operating Leas,DB,04/09/2013,PAY00597095,CHIC,Children In Care,994.3,Revenue,Brighton & Hove Bus and Coach Co Ltd
Brighton & Hove City Council,http://statistics.data.gov.uk/id/local-authority/00ML,Children�s Social Care,BVACSC,Child Srvcs Other,FAX,Supplies and Services,E,Services,EF,04/09/2013,PAY00597095,YOTS,Youth Service,413,Revenue,Brighton & Hove Bus and Coach Co Ltd
Brighton & Hove City Council,http://statistics.data.gov.uk/id/local-authority/00ML,Education Services,BVAEDU,Ed Srvcs YP Youth Srvcs,ENY,Supplies and Services,E,Contributions to Provisions,EL,04/09/2013,PAY00597095,YOTS,Youth Service,123.9,Revenue,Brighton & Hove Bus and Coach Co Ltd
Brighton & Hove City Council,http://statistics.data.gov.uk/id/local-authority/00ML,Adult Social Care,BVASOC,S Svcs - Older People Svcs,PPL,Transport Related,D,Public Transport,DD,06/09/2013,PAY00597872,ASIT,Assessment and SIT,290,Revenue,Brighton & Hove Bus and Coach Co Ltd
Brighton & Hove City Council,http://statistics.data.gov.uk/id/local-authority/00ML,Children�s Social Care,BVACSC,Child Srvcs - Fostering,FLF,Third Party Payments,F,Other Establishments,FH,06/09/2013,PAY00597872,CHIC,Children In Care,206.5,Revenue,Brighton & Hove Bus and Coach Co Ltd
Brighton & Hove City Council,http://statistics.data.gov.uk/id/local-authority/00ML,Children�s Social Care,BVACSC,Child Srvcs Leaving Care,FAL,Transfer Payments,G,Other Transfer Payments,GD,06/09/2013,PAY00597872,CHIC,Children In Care,1894,Revenue,Brighton & Hove Bus and Coach Co Ltd
Brighton & Hove City Council,http://statistics.data.gov.uk/id/local-authority/00ML,Education Services,BVAEDU,Ed EY Central,EAE,Supplies and Services,E,Print Stat & Gen Office Exps,ED,06/09/2013,PAY00597872,EYRS,Early Years,206.5,Revenue,Brighton & Hove Bus and Coach Co Ltd
Brighton & Hove City Council,http://statistics.data.gov.uk/id/local-authority/00ML,Education Services,BVAEDU,Ed Srvcs YP Youth Srvcs,ENY,Transport Related,D,Public Transport,DD,06/09/2013,PAY00597872,YOTS,Youth Service,413,Revenue,Brighton & Hove Bus and Coach Co Ltd
Brighton & Hove City Council,http://statistics.data.gov.uk/id/local-authority/00ML,Environment & Regulatory Serv,BVAERS,Environmental Health,EVH,Transport Related,D,Direct Transport Costs,DA,06/09/2013,PAY00597872,PROT,Public Protection,897.88,Revenue,Brighton & Hove Bus and Coach Co Ltd
Brighton & Hove City Council,http://statistics.data.gov.uk/id/local-authority/00ML,Highways and Transportation,BVAHRT,Public Transport,PTR,Third Party Payments,F,Private Contractors,FJ,06/09/2013,PAY00597872,TPRS,Transport Plan and Road Safety,20093.97,Revenue,Brighton & Hove Bus and Coach Co Ltd
Brighton & Hove City Council,http://statistics.data.gov.uk/id/local-authority/00ML,Education Services,BVAEDU,Ed Ed Other LA Attrib Sch,ELA,Transport Related,D,Public Transport,DD,11/09/2013,PAY00598590,OEDS,Other Education Support,118960,Revenue,Brighton & Hove Bus and Coach Co Ltd
Brighton & Hove City Council,http://statistics.data.gov.uk/id/local-authority/00ML,Environment & Regulatory Serv,BVAERS,Environmental Health,EVH,Transport Related,D,Direct Transport Costs,DA,11/09/2013,PAY00598590,PROT,Public Protection,1587.23,Revenue,Brighton & Hove Bus and Coach Co Ltd
Brighton & Hove City Council,http://statistics.data.gov.uk/id/local-authority/00ML,Highways and Transportation,BVAHRT,Public Transport,PTR,Third Party Payments,F,Private Contractors,FJ,11/09/2013,PAY00598590,TPRS,Transport Plan and Road Safety,44179.35,Revenue,Brighton & Hove Bus and Coach Co Ltd
Brighton & Hove City Council,http://statistics.data.gov.uk/id/local-authority/00ML,Highways and Transportation,BVAHRT,Transport Plan Policy Strategy,TPP,Third Party Payments,F,Private Contractors,FJ,11/09/2013,PAY00598590,TPRS,Transport Plan and Road Safety,4721.31,Revenue,Brighton & Hove Bus and Coach Co Ltd
Brighton & Hove City Council,http://statistics.data.gov.uk/id/local-authority/00ML,Adult Social Care,BVASOC,S Svcs - Older People Svcs,PPL,Transport Related,D,Public Transport,DD,13/09/2013,PAY00599470,ASIT,Assessment and SIT,65,Revenue,Brighton & Hove Bus and Coach Co Ltd
Brighton & Hove City Council,http://statistics.data.gov.uk/id/local-authority/00ML,Children�s Social Care,BVACSC,Child Srvcs - Other Fam Supp,FFX,Transport Related,D,Public Transport,DD,13/09/2013,PAY00599470,SFSC,Stronger Families Stronger Com,826,Revenue,Brighton & Hove Bus and Coach Co Ltd
Brighton & Hove City Council,http://statistics.data.gov.uk/id/local-authority/00ML,Children�s Social Care,BVACSC,Child Srvcs - Yth Offender Tm,FYY,Transport Related,D,Public Transport,DD,13/09/2013,PAY00599470,YOTS,Youth Service,103.25,Revenue,Brighton & Hove Bus and Coach Co Ltd
Brighton & Hove City Council,http://statistics.data.gov.uk/id/local-authority/00ML,Cultural and Related Serv,BVACUL,Culture and Heritage,CHG,Supplies and Services,E,Goods for Resale,EG,13/09/2013,PAY00599470,RPMU,Royal Pavilion and Museums,2891,Revenue,Brighton & Hove Bus and Coach Co Ltd
Brighton & Hove City Council,http://statistics.data.gov.uk/id/local-authority/00ML,Highways and Transportation,BVAHRT,Highways and Roads - Mntnce,HRM,Transport Related,D,Public Transport,DD,18/09/2013,PAY00600278,HWEN,Highways Engineering,247.8,Revenue,Brighton & Hove Bus and Coach Co Ltd
Brighton & Hove City Council,http://statistics.data.gov.uk/id/local-authority/00ML,Housing General Fund,BVAHOG,Hsing Welfare,HGW,Direct Employees,A,Salaries,AA,18/09/2013,PAY00600278,HOSS,Housing Supports Services,165.2,Revenue,Brighton & Hove Bus and Coach Co Ltd
Brighton & Hove City Council,http://statistics.data.gov.uk/id/local-authority/00ML,Housing General Fund,BVAHOG,Hsing Welfare,HGW,Transport Related,D,Public Transport,DD,18/09/2013,PAY00600278,HOSS,Housing Supports Services,206.5,Revenue,Brighton & Hove Bus and Coach Co Ltd
Brighton & Hove City Council,http://statistics.data.gov.uk/id/local-authority/00ML,Adult Social Care,BVASOC,S Svcs - Learning Disability,LDY,Transport Related,D,Public Transport,DD,20/09/2013,PAY00601188,HOME,Home Care,206.5,Revenue,Brighton & Hove Bus and Coach Co Ltd
Brighton & Hove City Council,http://statistics.data.gov.uk/id/local-authority/00ML,Adult Social Care,BVASOC,S Svcs - Older People Svcs,PPL,Transport Related,D,Public Transport,DD,20/09/2013,PAY00601188,ASIT,Assessment and SIT,65,Revenue,Brighton & Hove Bus and Coach Co Ltd
Brighton & Hove City Council,http://statistics.data.gov.uk/id/local-authority/00ML,Children�s Social Care,BVACSC,Child Srvcs - Fostering,FLF,Transport Related,D,Contract Hire n Operating Leas,DB,20/09/2013,PAY00601188,CHIC,Children In Care,2257.05,Revenue,Brighton & Hove Bus and Coach Co Ltd
Brighton & Hove City Council,http://statistics.data.gov.uk/id/local-authority/00ML,Children�s Social Care,BVACSC,Child Srvcs Leaving Care,FAL,Transfer Payments,G,Other Transfer Payments,GD,20/09/2013,PAY00601188,CHIC,Children In Care,1485,Revenue,Brighton & Hove Bus and Coach Co Ltd
Brighton & Hove City Council,http://statistics.data.gov.uk/id/local-authority/00ML,Education Services,BVAEDU,Ed Srvcs YP Ad and Cmty Ln,ENA,Transport Related,D,Public Transport,DD,20/09/2013,PAY00601188,OEDS,Other Education Support,206.5,Revenue,Brighton & Hove Bus and Coach Co Ltd
Brighton & Hove City Council,http://statistics.data.gov.uk/id/local-authority/00ML,Environment & Regulatory Serv,BVAERS,Environmental Health,EVH,Transport Related,D,Public Transport,DD,20/09/2013,PAY00601188,PROT,Public Protection,490,Revenue,Brighton & Hove Bus and Coach Co Ltd
Brighton & Hove City Council,http://statistics.data.gov.uk/id/local-authority/00ML,Planning and Development,BVAPLA,Development Control,DEV,Transport Related,D,Public Transport,DD,20/09/2013,PAY00601188,DEVP,Development Planning,165.2,Revenue,Brighton & Hove Bus and Coach Co Ltd
Brighton & Hove City Council,http://statistics.data.gov.uk/id/local-authority/00ML,Adult Social Care,BVASOC,S Svcs - Older People Svcs,PPL,Transport Related,D,Public Transport,DD,25/09/2013,PAY00602272,ASIT,Assessment and SIT,320,Revenue,Brighton & Hove Bus and Coach Co Ltd
Brighton & Hove City Council,http://statistics.data.gov.uk/id/local-authority/00ML,Environment & Regulatory Serv,BVAERS,Environmental Health,EVH,Transport Related,D,Public Transport,DD,25/09/2013,PAY00602272,PROT,Public Protection,247.8,Revenue,Brighton & Hove Bus and Coach Co Ltd
Brighton & Hove City Council,http://statistics.data.gov.uk/id/local-authority/00ML,Children�s Social Care,BVACSC,Child Srvcs - Other Fam Supp,FFX,Transfer Payments,G,Other Transfer Payments,GD,27/09/2013,PAY00603284,FAMP,Families\Prevention,881.5,Revenue,Brighton & Hove Bus and Coach Co Ltd
Brighton & Hove City Council,http://statistics.data.gov.uk/id/local-authority/00ML,Education Services,BVAEDU,Ed EY Central,EAE,Transport Related,D,Public Transport,DD,27/09/2013,PAY00603284,EYRS,Early Years,165.2,Revenue,Brighton & Hove Bus and Coach Co Ltd
Brighton & Hove City Council,http://statistics.data.gov.uk/id/local-authority/00ML,Highways and Transportation,BVAHRT,Highways and Roads - Mntnce,HRM,Transport Related,D,Public Transport,DD,27/09/2013,PAY00603284,HWEN,Highways Engineering,247.8,Revenue,Brighton & Hove Bus and Coach Co Ltd
Brighton & Hove City Council,http://statistics.data.gov.uk/id/local-authority/00ML,Highways and Transportation,BVAHRT,Public Transport,PTR,Supplies and Services,E,Equip't Furniture n Materials,EA,27/09/2013,PAY00603284,TPRS,Transport Plan and Road Safety,300,Revenue,Brighton & Hove Bus and Coach Co Ltd
Brighton & Hove City Council,http://statistics.data.gov.uk/id/local-authority/00ML,Highways and Transportation,BVAHRT,Public Transport,PTR,Transport Related,D,Public Transport,DD,27/09/2013,PAY00603284,CONF,Concessionary Fares,762990.67,Revenue,Brighton & Hove Bus and Coach Co Ltd
Brighton & Hove City Council,http://statistics.data.gov.uk/id/local-authority/00ML,Adult Social Care,BVASOC,Management Services (DEC),MGT,Third Party Payments,F,Other Establishments,FH,25/09/2013,PAY00602189,CONT,Contracts,42199,Revenue,Brighton & Hove Federation of Disabled People 
Brighton & Hove City Council,http://statistics.data.gov.uk/id/local-authority/00ML,Adult Social Care,BVASOC,S Svcs - Older People Svcs,PPL,Third Party Payments,F,Other Establishments,FH,25/09/2013,PAY00602189,CONT,Contracts,18602,Revenue,Brighton & Hove Federation of Disabled People 
Brighton & Hove City Council,http://statistics.data.gov.uk/id/local-authority/00ML,Adult Social Care,BVASOC,S Svcs - Physical Disability,PDY,Third Party Payments,F,Other Establishments,FH,25/09/2013,PAY00602189,CONT,Contracts,1544.75,Revenue,Brighton & Hove Federation of Disabled People 
Brighton & Hove City Council,http://statistics.data.gov.uk/id/local-authority/00ML,Adult Social Care,BVASOC,Management Services (DEC),MGT,Third Party Payments,F,Other Establishments,FH,27/09/2013,PAY00602997,COMM,Commissioning,12500,Revenue,Brighton & Hove Federation of Disabled People 
Brighton & Hove City Council,http://statistics.data.gov.uk/id/local-authority/00ML,Adult Social Care,BVASOC,S Svcs - Learning Disability,LDY,Indirect Employees,B,Training,BM,06/09/2013,PAY00597938,ORGD,Organisational Development,59,Revenue,Brighton & Hove Food Partnership
Brighton & Hove City Council,http://statistics.data.gov.uk/id/local-authority/00ML,Adult Social Care,BVASOC,S Svcs Other Adult Services,ADT,Indirect Employees,B,Training,BM,06/09/2013,PAY00597938,ORGD,Organisational Development,313,Revenue,Brighton & Hove Food Partnership
Brighton & Hove City Council,http://statistics.data.gov.uk/id/local-authority/00ML,Central Support and Overheads,BVACEN,Support Services (SSC),PPT,Indirect Employees,B,Training,BM,06/09/2013,PAY00597938,ORGD,Organisational Development,78,Revenue,Brighton & Hove Food Partnership
Brighton & Hove City Council,http://statistics.data.gov.uk/id/local-authority/00ML,Cultural and Related Serv,BVACUL,Recreation and Sport,REC,Supplies and Services,E,Services,EF,06/09/2013,PAY00597938,SDEV,Sports Development,103,Revenue,Brighton & Hove Food Partnership
Brighton & Hove City Council,http://statistics.data.gov.uk/id/local-authority/00ML,Public Health,BVAPHE,Public Health,PHE,Third Party Payments,F,Voluntary Associations,FG,11/09/2013,PAY00598646,PHCM,PH Commissioning,123875,Revenue,Brighton & Hove Food Partnership
Brighton & Hove City Council,http://statistics.data.gov.uk/id/local-authority/00ML,Cultural and Related Serv,BVACUL,Recreation and Sport,REC,Supplies and Services,E,Services,EF,06/09/2013,PAY00597984,SDEV,Sports Development,262.5,Revenue,Brighton & Hove Gymnastics Club
Brighton & Hove City Council,http://statistics.data.gov.uk/id/local-authority/00ML,Education Services,BVAEDU,Ed EY PVI,ENP,Supplies and Services,E,Grants n Subscriptions,EK,04/09/2013,PAY00596838,EYRS,Early Years,25033,Revenue,Brighton & Hove High School- Junior Dept
Brighton & Hove City Council,http://statistics.data.gov.uk/id/local-authority/00ML,Adult Social Care,BVASOC,S Svcs - Older People Svcs,PPL,Third Party Payments,F,Other Establishments,FH,13/09/2013,PAY00599108,CONT,Contracts,2402,Revenue,Brighton & Hove Impetus Ltd
Brighton & Hove City Council,http://statistics.data.gov.uk/id/local-authority/00ML,Education Services,BVAEDU,Ed EY Central,EAE,Supplies and Services,E,Grants n Subscriptions,EK,11/09/2013,PAY00598427,EYRS,Early Years,1271.9,Revenue,Brighton & Hove Inclusion Project
Brighton & Hove City Council,http://statistics.data.gov.uk/id/local-authority/00ML,Adult Social Care,BVASOC,S Svcs - Learning Disability,LDY,Supplies and Services,E,Equip't Furniture n Materials,EA,06/09/2013,PAY00597540,MGMT,Management,750,Revenue,Brighton & Hove Independent Mediation Service
Brighton & Hove City Council,http://statistics.data.gov.uk/id/local-authority/00ML,Education Services,BVAEDU,Ed EY PVI,ENP,Supplies and Services,E,Grants n Subscriptions,EK,04/09/2013,PAY00596820,EYRS,Early Years,11709,Revenue,Brighton & Hove Montessori School
Brighton & Hove City Council,http://statistics.data.gov.uk/id/local-authority/00ML,Cultural and Related Serv,BVACUL,Culture and Heritage,CHG,Customer n Client Receipts,M,Fees n Charges,MB,20/09/2013,PAY00601334,RPMU,Royal Pavilion and Museums,2137.23,Revenue,Brighton & Hove Philharmonic Society
Brighton & Hove City Council,http://statistics.data.gov.uk/id/local-authority/00ML,Education Services,BVAEDU,Ed Ed Other LA Attrib Sch,ELA,Transport Related,D,Other Transport Costs,DG,04/09/2013,PAY00597094,OEDS,Other Education Support,9347.9,Revenue,Brighton & Hove Radio Cabs Ltd
Brighton & Hove City Council,http://statistics.data.gov.uk/id/local-authority/00ML,Highways and Transportation,BVAHRT,Public Transport,PTR,Transport Related,D,Public Transport,DD,25/09/2013,PAY00602270,CONF,Concessionary Fares,368,Revenue,Brighton & Hove Radio Cabs Ltd
Brighton & Hove City Council,http://statistics.data.gov.uk/id/local-authority/00ML,Central Support and Overheads,BVACEN,Support Services (SSC),PPT,Transport Related,D,Public Transport,DD,27/09/2013,PAY00603283,OEDS,Other Education Support,4301.5,Revenue,Brighton & Hove Radio Cabs Ltd
Brighton & Hove City Council,http://statistics.data.gov.uk/id/local-authority/00ML,Cultural and Related Serv,BVACUL,Culture and Heritage,CHG,Transport Related,D,Public Transport,DD,27/09/2013,PAY00603283,VENU,Venues,165.24,Revenue,Brighton & Hove Radio Cabs Ltd
Brighton & Hove City Council,http://statistics.data.gov.uk/id/local-authority/00ML,Education Services,BVAEDU,Ed Ed Other LA Attrib Sch,ELA,Transport Related,D,Other Transport Costs,DG,27/09/2013,PAY00603283,OEDS,Other Education Support,20,Revenue,Brighton & Hove Radio Cabs Ltd
Brighton & Hove City Council,http://statistics.data.gov.uk/id/local-authority/00ML,Housing Revenue Account,BVAHOU,Hsing Management - HRA,HGM,Supplies and Services,E,Grants n Subscriptions,EK,13/09/2013,PAY00599225,HIII,Income Involvement Improvement,365.61,Revenue,Brighton & Hove Social Welfare Educational Trust
Brighton & Hove City Council,http://statistics.data.gov.uk/id/local-authority/00ML,Adult Social Care,BVASOC,S Svcs - Learning Disability,LDY,Third Party Payments,F,Other Establishments,FH,11/09/2013,PAY00598410,CONT,Contracts,253,Revenue,Brighton & Hove Speak Out
Brighton & Hove City Council,http://statistics.data.gov.uk/id/local-authority/00ML,Adult Social Care,BVASOC,S Svcs - Learning Disability,LDY,Third Party Payments,F,Other Establishments,FH,20/09/2013,PAY00600847,CONT,Contracts,20000,Revenue,Brighton & Hove Speak Out
Brighton & Hove City Council,http://statistics.data.gov.uk/id/local-authority/00ML,Central Support and Overheads,BVACEN,Support Services (SSC),PPT,Transport Related,D,Public Transport,DD,06/09/2013,PAY00597641,OEDS,Other Education Support,13540.64,Revenue,Brighton & Hove Streamline Taxis Ltd
Brighton & Hove City Council,http://statistics.data.gov.uk/id/local-authority/00ML,Children�s Social Care,BVACSC,Management Services (DEC),MGT,Transport Related,D,Public Transport,DD,06/09/2013,PAY00597641,SOCK,Social Work,83.9,Revenue,Brighton & Hove Streamline Taxis Ltd
Brighton & Hove City Council,http://statistics.data.gov.uk/id/local-authority/00ML,Cultural and Related Serv,BVACUL,Recreation and Sport,REC,Transport Related,D,Public Transport,DD,06/09/2013,PAY00597641,SDEV,Sports Development,15.84,Revenue,Brighton & Hove Streamline Taxis Ltd
Brighton & Hove City Council,http://statistics.data.gov.uk/id/local-authority/00ML,Central Support and Overheads,BVACEN,Support Services (SSC),PPT,Transport Related,D,Public Transport,DD,18/09/2013,PAY00600184,POLY,Policy,12.32,Revenue,Brighton & Hove Streamline Taxis Ltd
Brighton & Hove City Council,http://statistics.data.gov.uk/id/local-authority/00ML,Children�s Social Care,BVACSC,Ed Ed Other Strat Mgt,ENM,Transport Related,D,Public Transport,DD,18/09/2013,PAY00600184,S75J,Sect 75 Joint Arrangements,9.02,Revenue,Brighton & Hove Streamline Taxis Ltd
Brighton & Hove City Council,http://statistics.data.gov.uk/id/local-authority/00ML,Education Services,BVAEDU,Ed EY Central,EAE,Transport Related,D,Public Transport,DD,18/09/2013,PAY00600184,EYRS,Early Years,241.12,Revenue,Brighton & Hove Streamline Taxis Ltd
Brighton & Hove City Council,http://statistics.data.gov.uk/id/local-authority/00ML,Highways and Transportation,BVAHRT,Public Transport,PTR,Transport Related,D,Public Transport,DD,18/09/2013,PAY00600184,CONF,Concessionary Fares,198.77,Revenue,Brighton & Hove Streamline Taxis Ltd
Brighton & Hove City Council,http://statistics.data.gov.uk/id/local-authority/00ML,Central Support and Overheads,BVACEN,Support Services (SSC),PPT,Transport Related,D,Public Transport,DD,20/09/2013,PAY00600979,COMU,Communications,92.8,Revenue,Brighton & Hove Streamline Taxis Ltd
Brighton & Hove City Council,http://statistics.data.gov.uk/id/local-authority/00ML,Cultural and Related Serv,BVACUL,Tourism,TRM,Transport Related,D,Public Transport,DD,20/09/2013,PAY00600979,TOMA,Tourism and Marketing,31.4,Revenue,Brighton & Hove Streamline Taxis Ltd
Brighton & Hove City Council,http://statistics.data.gov.uk/id/local-authority/00ML,Housing Revenue Account,BVAHOU,Hsing Management - HRA,HGM,Transport Related,D,Public Transport,DD,20/09/2013,PAY00600979,HIII,Income Involvement Improvement,438.68,Revenue,Brighton & Hove Streamline Taxis Ltd
Brighton & Hove City Council,http://statistics.data.gov.uk/id/local-authority/00ML,Library Services,BVACUL,Library Service,LBR,Transport Related,D,Public Transport,DD,20/09/2013,PAY00600979,LIBS,Libraries,111.76,Revenue,Brighton & Hove Streamline Taxis Ltd
Brighton & Hove City Council,http://statistics.data.gov.uk/id/local-authority/00ML,Highways and Transportation,BVAHRT,Public Transport,PTR,Transport Related,D,Public Transport,DD,25/09/2013,PAY00602187,CONF,Concessionary Fares,1692,Revenue,Brighton & Hove Streamline Taxis Ltd
Brighton & Hove City Council,http://statistics.data.gov.uk/id/local-authority/00ML,Housing Revenue Account,BVAHOU,Hsing Management - HRA,HGM,Transport Related,D,Public Transport,DD,25/09/2013,PAY00602187,HIII,Income Involvement Improvement,136.29,Revenue,Brighton & Hove Streamline Taxis Ltd
Brighton & Hove City Council,http://statistics.data.gov.uk/id/local-authority/00ML,Cultural and Related Serv,BVACUL,Culture and Heritage,CHG,Supplies and Services,E,Miscellaneous Expenses,EM,06/09/2013,PAY00597639,VENU,Venues,1045.4,Revenue,Brighton & Sussex Sign Co
Brighton & Hove City Council,http://statistics.data.gov.uk/id/local-authority/00ML,Education Services,BVAEDU,Ed EY PVI,ENP,Supplies and Services,E,Grants n Subscriptions,EK,04/09/2013,PAY00596996,EYRS,Early Years,14818,Revenue,Brighton & Sussex University Hospitals NHS Trust
Brighton & Hove City Council,http://statistics.data.gov.uk/id/local-authority/00ML,Children�s Social Care,BVACSC,Child Srvcs - Other Fam Supp,FFX,Transfer Payments,G,Other Transfer Payments,GD,13/09/2013,PAY00599228,FAMP,Families\Prevention,292.8,Revenue,Brighton & Sussex University Hospitals NHS Trust
Brighton & Hove City Council,http://statistics.data.gov.uk/id/local-authority/00ML,Environment & Regulatory Serv,BVAERS,Court Services,CRT,Supplies and Services,E,Equip't Furniture n Materials,EA,13/09/2013,PAY00599228,LIFE,Life Events,4499,Revenue,Brighton & Sussex University Hospitals NHS Trust
Brighton & Hove City Council,http://statistics.data.gov.uk/id/local-authority/00ML,Children�s Social Care,BVACSC,Child Srvcs Com and Scl Work,FCW,Supplies and Services,E,Miscellaneous Expenses,EM,25/09/2013,PAY00602188,SOCK,Social Work,536.8,Revenue,Brighton & Sussex University Hospitals NHS Trust
Brighton & Hove City Council,http://statistics.data.gov.uk/id/local-authority/00ML,Environment & Regulatory Serv,BVAERS,Court Services,CRT,Supplies and Services,E,Equip't Furniture n Materials,EA,25/09/2013,PAY00602188,LIFE,Life Events,2404.5,Revenue,Brighton & Sussex University Hospitals NHS Trust
Brighton & Hove City Council,http://statistics.data.gov.uk/id/local-authority/00ML,Children�s Social Care,BVACSC,Child Srvcs Com and Scl Work,FCW,Supplies and Services,E,Miscellaneous Expenses,EM,27/09/2013,PAY00602991,SOCK,Social Work,390.4,Revenue,Brighton & Sussex University Hospitals NHS Trust
Brighton & Hove City Council,http://statistics.data.gov.uk/id/local-authority/00ML,Children�s Social Care,BVACSC,Child Srvcs - Other Fam Supp,FFX,Transfer Payments,G,Other Transfer Payments,GD,27/09/2013,PAY00602991,FAMP,Families\Prevention,244,Revenue,Brighton & Sussex University Hospitals NHS Trust
Brighton & Hove City Council,http://statistics.data.gov.uk/id/local-authority/00ML,Environment & Regulatory Serv,BVAERS,Court Services,CRT,Supplies and Services,E,Equip't Furniture n Materials,EA,27/09/2013,PAY00602991,LIFE,Life Events,5330,Revenue,Brighton & Sussex University Hospitals NHS Trust
Brighton & Hove City Council,http://statistics.data.gov.uk/id/local-authority/00ML,Housing General Fund,BVAHOG,Homelessness,HML,Customer n Client Receipts,M,Fees n Charges,MB,04/09/2013,PAY00597306,SSHS,Seaside Homes (BHSCH),218988,Revenue,Brighton and Hove Seaside Community Homes Ltd
Brighton & Hove City Council,http://statistics.data.gov.uk/id/local-authority/00ML,Adult Social Care,BVASOC,S Svcs - Learning Disability,LDY,Customer n Client Receipts,M,Fees n Charges,MB,04/09/2013,PAY00597278,CCLD,Com Care Learning Disabilities,-180,Revenue,Brighton and Sussex Care Ltd
Brighton & Hove City Council,http://statistics.data.gov.uk/id/local-authority/00ML,Adult Social Care,BVASOC,S Svcs - Learning Disability,LDY,Third Party Payments,F,Other Establishments,FH,04/09/2013,PAY00597278,CCLD,Com Care Learning Disabilities,12463.64,Revenue,Brighton and Sussex Care Ltd
Brighton & Hove City Council,http://statistics.data.gov.uk/id/local-authority/00ML,Adult Social Care,BVASOC,S Svcs - Mental Health,MHT,Customer n Client Receipts,M,Fees n Charges,MB,04/09/2013,PAY00597278,ADMH,Community Care Adult MH,-104,Revenue,Brighton and Sussex Care Ltd
Brighton & Hove City Council,http://statistics.data.gov.uk/id/local-authority/00ML,Adult Social Care,BVASOC,S Svcs - Mental Health,MHT,Third Party Payments,F,Other Establishments,FH,04/09/2013,PAY00597278,ADMH,Community Care Adult MH,2441.32,Revenue,Brighton and Sussex Care Ltd
Brighton & Hove City Council,http://statistics.data.gov.uk/id/local-authority/00ML,Cultural and Related Serv,BVACUL,Recreation and Sport,REC,Supplies and Services,E,Miscellaneous Expenses,EM,13/09/2013,PAY00599530,SDEV,Sports Development,428,Revenue,Brighton City Table Tennis Club
Brighton & Hove City Council,http://statistics.data.gov.uk/id/local-authority/00ML,Cultural and Related Serv,BVACUL,Recreation and Sport,REC,Supplies and Services,E,Miscellaneous Expenses,EM,18/09/2013,PAY00600322,SDEV,Sports Development,1673.6,Revenue,Brighton City Table Tennis Club
Brighton & Hove City Council,http://statistics.data.gov.uk/id/local-authority/00ML,Education Services,BVAEDU,Ed EY PVI,ENP,Supplies and Services,E,Grants n Subscriptions,EK,04/09/2013,PAY00597081,EYRS,Early Years,43687,Revenue,Brighton College Nursery & Pre-Prep School
Brighton & Hove City Council,http://statistics.data.gov.uk/id/local-authority/00ML,Education Services,BVAEDU,Ed EY PVI,ENP,Supplies and Services,E,Grants n Subscriptions,EK,04/09/2013,PAY00596864,EYRS,Early Years,7107,Revenue,Brighton Day Nursery
Brighton & Hove City Council,http://statistics.data.gov.uk/id/local-authority/00ML,Education Services,BVAEDU,Ed EY PVI,ENP,Supplies and Services,E,Miscellaneous Expenses,EM,20/09/2013,PAY00600843,EYRS,Early Years,539,Revenue,Brighton Day Nursery
Brighton & Hove City Council,http://statistics.data.gov.uk/id/local-authority/00ML,Cultural and Related Serv,BVACUL,Tourism,TRM,Supplies and Services,E,Miscellaneous Expenses,EM,13/09/2013,PAY00599196,TOMA,Tourism and Marketing,2018.8,Revenue,Brighton Dome & Festival (Trading) Ltd
Brighton & Hove City Council,http://statistics.data.gov.uk/id/local-authority/00ML,Central Support and Overheads,BVACEN,Support Services (SSC),PPT,Premises Related,C,Repair Maint n Alterations,CA,11/09/2013,PAY00598399,PROP,Property and Design,6872,Revenue,Brighton Dome & Festival Ltd
Brighton & Hove City Council,http://statistics.data.gov.uk/id/local-authority/00ML,Cultural and Related Serv,BVACUL,Culture and Heritage,CHG,Third Party Payments,F,Other Establishments,FH,27/09/2013,PAY00602843,ARTS,Arts,311503,Revenue,Brighton Dome & Festival Ltd
Brighton & Hove City Council,http://statistics.data.gov.uk/id/local-authority/00ML,Central Support and Overheads,BVACEN,Support Services (SSC),PPT,Premises Related,C,Repair Maint n Alterations,CA,18/09/2013,PAY00600115,PROP,Property and Design,7.5,Revenue,Brighton Fire Alarms Ltd
Brighton & Hove City Council,http://statistics.data.gov.uk/id/local-authority/00ML,Housing General Fund,BVAHOG,Homelessness,HML,Premises Related,C,Repair Maint n Alterations,CA,18/09/2013,PAY00600115,TAAS,Temp Accom and Allocations,429.6,Revenue,Brighton Fire Alarms Ltd
Brighton & Hove City Council,http://statistics.data.gov.uk/id/local-authority/00ML,Adult Social Care,BVASOC,S Svcs - Older People Svcs,PPL,Supplies and Services,E,Miscellaneous Expenses,EM,11/09/2013,PAY00598513,CCOP,Community Care Older People,2000,Revenue,Brighton Housing Trust
Brighton & Hove City Council,http://statistics.data.gov.uk/id/local-authority/00ML,Adult Social Care,BVASOC,S Svcs - Mental Health,MHT,Customer n Client Receipts,M,Fees n Charges,MB,27/09/2013,PAY00602994,ADMH,Community Care Adult MH,-630.4,Revenue,Brighton Housing Trust
Brighton & Hove City Council,http://statistics.data.gov.uk/id/local-authority/00ML,Adult Social Care,BVASOC,S Svcs - Mental Health,MHT,Third Party Payments,F,Other Establishments,FH,27/09/2013,PAY00602994,ADMH,Community Care Adult MH,17530.71,Revenue,Brighton Housing Trust
Brighton & Hove City Council,http://statistics.data.gov.uk/id/local-authority/00ML,Adult Social Care,BVASOC,S Svcs - Older People Svcs,PPL,Customer n Client Receipts,M,Fees n Charges,MB,27/09/2013,PAY00602994,CCOP,Community Care Older People,-486,Revenue,Brighton Housing Trust
Brighton & Hove City Council,http://statistics.data.gov.uk/id/local-authority/00ML,Adult Social Care,BVASOC,S Svcs - Older People Svcs,PPL,Third Party Payments,F,Other Establishments,FH,27/09/2013,PAY00602994,CCOP,Community Care Older People,1212,Revenue,Brighton Housing Trust
Brighton & Hove City Council,http://statistics.data.gov.uk/id/local-authority/00ML,Children�s Social Care,BVACSC,Child Srvcs Leaving Care,FAL,Transfer Payments,G,Other Transfer Payments,GD,27/09/2013,PAY00602994,CHIC,Children In Care,545.2,Revenue,Brighton Housing Trust
Brighton & Hove City Council,http://statistics.data.gov.uk/id/local-authority/00ML,Planning and Development,BVAPLA,Economic Development,ECD,Supplies and Services,E,Grants n Subscriptions,EK,11/09/2013,PAY00598770,CMNY,Communities and Equalities,3000,Revenue,Brighton Malayalee Association
Brighton & Hove City Council,http://statistics.data.gov.uk/id/local-authority/00ML,Environment & Regulatory Serv,BVAERS,Community Safety,CMY,Third Party Payments,F,Other Establishments,FH,25/09/2013,PAY00602100,CSTP,Comm Safety Team & Partnership,3697.25,Revenue,Brighton Oasis Project
Brighton & Hove City Council,http://statistics.data.gov.uk/id/local-authority/00ML,Children�s Social Care,BVACSC,Child Srvcs - Other Fam Supp,FFX,Premises Related,C,Rents Payable,CC,13/09/2013,PAY00599107,SFSC,Stronger Families Stronger Com,260,Revenue,Brighton Quaker Meeting
Brighton & Hove City Council,http://statistics.data.gov.uk/id/local-authority/00ML,Children�s Social Care,BVACSC,Child Srvcs - Other Fam Supp,FFX,Premises Related,C,Rents Payable,CC,25/09/2013,PAY00602063,FAMP,Families\Prevention,60.5,Revenue,Brighton Quaker Meeting
Brighton & Hove City Council,http://statistics.data.gov.uk/id/local-authority/00ML,Education Services,BVAEDU,Ed Ed Other Other,ENF,Indirect Employees,B,Training,BM,25/09/2013,PAY00602063,OEDS,Other Education Support,71,Revenue,Brighton Quaker Meeting
Brighton & Hove City Council,http://statistics.data.gov.uk/id/local-authority/00ML,Education Services,BVAEDU,Ed Srvcs YP Ad and Cmty Ln,ENA,Premises Related,C,Rents Payable,CC,25/09/2013,PAY00602063,OEDS,Other Education Support,72,Revenue,Brighton Quaker Meeting
Brighton & Hove City Council,http://statistics.data.gov.uk/id/local-authority/00ML,Housing General Fund,BVAHOG,Hsing Strat Advice and RSLs,HGR,Premises Related,C,Rents Payable,CC,25/09/2013,PAY00602063,HOSS,Housing Supports Services,708,Revenue,Brighton Quaker Meeting
Brighton & Hove City Council,http://statistics.data.gov.uk/id/local-authority/00ML,Education Services,BVAEDU,Ed EY PVI,ENP,Supplies and Services,E,Grants n Subscriptions,EK,04/09/2013,PAY00597202,EYRS,Early Years,15816,Revenue,Brighton Steiner School Ltd
Brighton & Hove City Council,http://statistics.data.gov.uk/id/local-authority/00ML,Education Services,BVAEDU,Ed Special Ed,EKE,Third Party Payments,F,Other Agencies,FL,18/09/2013,PAY00600400,SENS,Special Educational Needs,3550,Revenue,Brighton Steiner School Ltd
Brighton & Hove City Council,http://statistics.data.gov.uk/id/local-authority/00ML,Cultural and Related Serv,BVACUL,Recreation and Sport,REC,Supplies and Services,E,Equip't Furniture n Materials,EA,04/09/2013,PAY00596851,SEAS,Seafront Services,1400,Revenue,Brighton Surf & Lifesaving Club
Brighton & Hove City Council,http://statistics.data.gov.uk/id/local-authority/00ML,Cultural and Related Serv,BVACUL,Culture and Heritage,CHG,Supplies and Services,E,Miscellaneous Expenses,EM,04/09/2013,PAY00596795,ODEV,Outdoor Events,300,Revenue,Brighton Swimming Club
Brighton & Hove City Council,http://statistics.data.gov.uk/id/local-authority/00ML,Environment & Regulatory Serv,BVAERS,Management Services (DEC),MGT,Premises Related,C,Repair Maint n Alterations,CA,27/09/2013,PAY00602993,CICL,City Clean,190.85,Revenue,Brighton Tools & Fixings Ltd
Brighton & Hove City Council,http://statistics.data.gov.uk/id/local-authority/00ML,Environment & Regulatory Serv,BVAERS,Management Services (DEC),MGT,Third Party Payments,F,Private Contractors,FJ,27/09/2013,PAY00602993,CICL,City Clean,98,Revenue,Brighton Tools & Fixings Ltd
Brighton & Hove City Council,http://statistics.data.gov.uk/id/local-authority/00ML,Education Services,BVAEDU,Ed EY Central,EAE,Third Party Payments,F,Other Establishments,FH,27/09/2013,PAY00602998,EYRS,Early Years,1500,Revenue,Brighton Unemployed Ctr Families Project Playroom
Brighton & Hove City Council,http://statistics.data.gov.uk/id/local-authority/00ML,Adult Social Care,BVASOC,S Svcs - Learning Disability,LDY,Customer n Client Receipts,M,Fees n Charges,MB,20/09/2013,PAY00601903,CCLD,Com Care Learning Disabilities,-279.42,Revenue,Brighton Vision
Brighton & Hove City Council,http://statistics.data.gov.uk/id/local-authority/00ML,Adult Social Care,BVASOC,S Svcs - Learning Disability,LDY,Third Party Payments,F,Other Establishments,FH,20/09/2013,PAY00601903,CCLD,Com Care Learning Disabilities,2647.7,Revenue,Brighton Vision
Brighton & Hove City Council,http://statistics.data.gov.uk/id/local-authority/00ML,Adult Social Care,BVASOC,S Svcs - Learning Disability,LDY,Customer n Client Receipts,M,Fees n Charges,MB,25/09/2013,PAY00602629,CCLD,Com Care Learning Disabilities,-285.42,Revenue,Brighton Vision
Brighton & Hove City Council,http://statistics.data.gov.uk/id/local-authority/00ML,Adult Social Care,BVASOC,S Svcs - Learning Disability,LDY,Third Party Payments,F,Other Establishments,FH,25/09/2013,PAY00602629,CCLD,Com Care Learning Disabilities,1890,Revenue,Brighton Vision
Brighton & Hove City Council,http://statistics.data.gov.uk/id/local-authority/00ML,Cultural and Related Serv,BVACUL,Recreation and Sport,REC,Supplies and Services,E,Services,EF,11/09/2013,PAY00598512,SDEV,Sports Development,360,Revenue,Brighton Youth Centre
Brighton & Hove City Council,http://statistics.data.gov.uk/id/local-authority/00ML,Education Services,BVAEDU,Ed Ed Other Other,ENF,Third Party Payments,F,Other Local Authorities,FB,27/09/2013,PAY00602828,PROP,Property and Design,2834.09,Revenue,British Gas Business
Brighton & Hove City Council,http://statistics.data.gov.uk/id/local-authority/00ML,Highways and Transportation,BVAHRT,Highways and Roads - Mntnce,HRM,Supplies and Services,E,Communications n Computing,EH,06/09/2013,PAY00597871,HIGH,Highways,2484.07,Revenue,British Telecommunications Plc
Brighton & Hove City Council,http://statistics.data.gov.uk/id/local-authority/00ML,Adult Social Care,BVASOC,S Svcs - Learning Disability,LDY,Supplies and Services,E,Communications n Computing,EH,20/09/2013,PAY00601187,DAYS,Day Services,207.88,Revenue,British Telecommunications Plc
Brighton & Hove City Council,http://statistics.data.gov.uk/id/local-authority/00ML,Adult Social Care,BVASOC,S Svcs - Learning Disability,LDY,Supplies and Services,E,Communications n Computing,EH,20/09/2013,PAY00601187,MGMT,Management,51.96,Revenue,British Telecommunications Plc
Brighton & Hove City Council,http://statistics.data.gov.uk/id/local-authority/00ML,Adult Social Care,BVASOC,S Svcs - Older People Svcs,PPL,Supplies and Services,E,Communications n Computing,EH,20/09/2013,PAY00601187,ASIT,Assessment and SIT,54.15,Revenue,British Telecommunications Plc
Brighton & Hove City Council,http://statistics.data.gov.uk/id/local-authority/00ML,Adult Social Care,BVASOC,S Svcs - Older People Svcs,PPL,Supplies and Services,E,Communications n Computing,EH,20/09/2013,PAY00601187,HOME,Home Care,57.86,Revenue,British Telecommunications Plc
Brighton & Hove City Council,http://statistics.data.gov.uk/id/local-authority/00ML,Adult Social Care,BVASOC,S Svcs - Older People Svcs,PPL,Supplies and Services,E,Communications n Computing,EH,20/09/2013,PAY00601187,RCOP,Resource Centres Older People,222.47,Revenue,British Telecommunications Plc
Brighton & Hove City Council,http://statistics.data.gov.uk/id/local-authority/00ML,Central Services to the Public,BVACEN,Local Tax Collection,LTC,Supplies and Services,E,Communications n Computing,EH,20/09/2013,PAY00601187,REVS,Revenues and Benefits,364.08,Revenue,British Telecommunications Plc
Brighton & Hove City Council,http://statistics.data.gov.uk/id/local-authority/00ML,Central Support and Overheads,BVACEN,Support Services (SSC),PPT,Direct Employees,A,Internal Recharges Employees,HJA,20/09/2013,PAY00601187,ICTA,ICT,-3788.58,Revenue,British Telecommunications Plc
Brighton & Hove City Council,http://statistics.data.gov.uk/id/local-authority/00ML,Central Support and Overheads,BVACEN,Support Services (SSC),PPT,Premises Related,C,Repair Maint n Alterations,CA,20/09/2013,PAY00601187,PROP,Property and Design,124.08,Revenue,British Telecommunications Plc
Brighton & Hove City Council,http://statistics.data.gov.uk/id/local-authority/00ML,Central Support and Overheads,BVACEN,Support Services (SSC),PPT,Supplies and Services,E,Communications n Computing,EH,20/09/2013,PAY00601187,COMU,Communications,54.15,Revenue,British Telecommunications Plc
Brighton & Hove City Council,http://statistics.data.gov.uk/id/local-authority/00ML,Central Support and Overheads,BVACEN,Support Services (SSC),PPT,Supplies and Services,E,Communications n Computing,EH,20/09/2013,PAY00601187,ICTA,ICT,3716.53,Revenue,British Telecommunications Plc
Brighton & Hove City Council,http://statistics.data.gov.uk/id/local-authority/00ML,Central Support and Overheads,BVACEN,Support Services (SSC),PPT,Supplies and Services,E,Communications n Computing,EH,20/09/2013,PAY00601187,POLI,Policy and Initiatives,384.99,Revenue,British Telecommunications Plc
Brighton & Hove City Council,http://statistics.data.gov.uk/id/local-authority/00ML,Central Support and Overheads,BVACEN,Support Services (SSC),PPT,Supplies and Services,E,Communications n Computing,EH,20/09/2013,PAY00601187,PROP,Property and Design,1073.25,Revenue,British Telecommunications Plc
Brighton & Hove City Council,http://statistics.data.gov.uk/id/local-authority/00ML,Central Support and Overheads,BVACEN,Trading Services,TRD,Premises Related,C,Repair Maint n Alterations,CA,20/09/2013,PAY00601187,PROP,Property and Design,54.15,Revenue,British Telecommunications Plc
Brighton & Hove City Council,http://statistics.data.gov.uk/id/local-authority/00ML,Children�s Social Care,BVACSC,Child Srvcs Com and Scl Work,FCW,Supplies and Services,E,Communications n Computing,EH,20/09/2013,PAY00601187,SPAS,Specialist Assessments,54.15,Revenue,British Telecommunications Plc
Brighton & Hove City Council,http://statistics.data.gov.uk/id/local-authority/00ML,Children�s Social Care,BVACSC,Child Srvcs - Family Centres,FFF,Supplies and Services,E,Communications n Computing,EH,20/09/2013,PAY00601187,CHIC,Children In Care,145.78,Revenue,British Telecommunications Plc
Brighton & Hove City Council,http://statistics.data.gov.uk/id/local-authority/00ML,Children�s Social Care,BVACSC,Child Srvcs Leaving Care,FAL,Supplies and Services,E,Communications n Computing,EH,20/09/2013,PAY00601187,CHIC,Children In Care,54.15,Revenue,British Telecommunications Plc
Brighton & Hove City Council,http://statistics.data.gov.uk/id/local-authority/00ML,Children�s Social Care,BVACSC,Child Srvcs - Yth Offender Tm,FYY,Premises Related,C,Repair Maint n Alterations,CA,20/09/2013,PAY00601187,YOTS,Youth Service,70.41,Revenue,British Telecommunications Plc
Brighton & Hove City Council,http://statistics.data.gov.uk/id/local-authority/00ML,Children�s Social Care,BVACSC,Child Srvcs - Yth Offender Tm,FYY,Supplies and Services,E,Communications n Computing,EH,20/09/2013,PAY00601187,YOTS,Youth Service,66.85,Revenue,British Telecommunications Plc
Brighton & Hove City Council,http://statistics.data.gov.uk/id/local-authority/00ML,Corporate Income & Expenditure,BVAOEX,Non Service Costs,NVC,Premises Related,C,Departmental Administration,CHA,20/09/2013,PAY00601187,FINS,Financial Services,117.9,Revenue,British Telecommunications Plc
Brighton & Hove City Council,http://statistics.data.gov.uk/id/local-authority/00ML,Cultural and Related Serv,BVACUL,Culture and Heritage,CHG,Premises Related,C,Repair Maint n Alterations,CA,20/09/2013,PAY00601187,RPMU,Royal Pavilion and Museums,282,Revenue,British Telecommunications Plc
Brighton & Hove City Council,http://statistics.data.gov.uk/id/local-authority/00ML,Cultural and Related Serv,BVACUL,Culture and Heritage,CHG,Supplies and Services,E,Communications n Computing,EH,20/09/2013,PAY00601187,RPMU,Royal Pavilion and Museums,54.17,Revenue,British Telecommunications Plc
Brighton & Hove City Council,http://statistics.data.gov.uk/id/local-authority/00ML,Cultural and Related Serv,BVACUL,Culture and Heritage,CHG,Supplies and Services,E,Communications n Computing,EH,20/09/2013,PAY00601187,VENU,Venues,509.08,Revenue,British Telecommunications Plc
Brighton & Hove City Council,http://statistics.data.gov.uk/id/local-authority/00ML,Cultural and Related Serv,BVACUL,Management Services (DEC),MGT,Supplies and Services,E,Communications n Computing,EH,20/09/2013,PAY00601187,RPMU,Royal Pavilion and Museums,386.33,Revenue,British Telecommunications Plc
Brighton & Hove City Council,http://statistics.data.gov.uk/id/local-authority/00ML,Cultural and Related Serv,BVACUL,Recreation and Sport,REC,Supplies and Services,E,Communications n Computing,EH,20/09/2013,PAY00601187,SEAS,Seafront Services,886.53,Revenue,British Telecommunications Plc
Brighton & Hove City Council,http://statistics.data.gov.uk/id/local-authority/00ML,Cultural and Related Serv,BVACUL,Recreation and Sport,REC,Supplies and Services,E,Communications n Computing,EH,20/09/2013,PAY00601187,SFAC,Sports Facilities,148.51,Revenue,British Telecommunications Plc
Brighton & Hove City Council,http://statistics.data.gov.uk/id/local-authority/00ML,Education Services,BVAEDU,Ed Ed Other Other,ENF,Premises Related,C,Repair Maint n Alterations,CA,20/09/2013,PAY00601187,PROP,Property and Design,54.15,Revenue,British Telecommunications Plc
Brighton & Hove City Council,http://statistics.data.gov.uk/id/local-authority/00ML,Education Services,BVAEDU,Ed Ed Other Other,ENF,Third Party Payments,F,Other Local Authorities,FB,20/09/2013,PAY00601187,PROP,Property and Design,64.72,Revenue,British Telecommunications Plc
Brighton & Hove City Council,http://statistics.data.gov.uk/id/local-authority/00ML,Education Services,BVAEDU,Ed EY Central,EAE,Premises Related,C,Repair Maint n Alterations,CA,20/09/2013,PAY00601187,EYRS,Early Years,54.61,Revenue,British Telecommunications Plc
Brighton & Hove City Council,http://statistics.data.gov.uk/id/local-authority/00ML,Education Services,BVAEDU,Ed EY Central,EAE,Supplies and Services,E,Communications n Computing,EH,20/09/2013,PAY00601187,EYRS,Early Years,285.37,Revenue,British Telecommunications Plc
Brighton & Hove City Council,http://statistics.data.gov.uk/id/local-authority/00ML,Education Services,BVAEDU,Ed EY Central,EAE,Supplies and Services,E,Miscellaneous Expenses,EM,20/09/2013,PAY00601187,EYRS,Early Years,70.41,Revenue,British Telecommunications Plc
Brighton & Hove City Council,http://statistics.data.gov.uk/id/local-authority/00ML,Education Services,BVAEDU,Ed Mgmt and Support Services,EMG,Supplies and Services,E,Communications n Computing,EH,20/09/2013,PAY00601187,SACH,Standards and Achievement,54.15,Revenue,British Telecommunications Plc
Brighton & Hove City Council,http://statistics.data.gov.uk/id/local-authority/00ML,Education Services,BVAEDU,Ed Special Ed,EKE,Supplies and Services,E,Communications n Computing,EH,20/09/2013,PAY00601187,OEDS,Other Education Support,190.24,Revenue,British Telecommunications Plc
Brighton & Hove City Council,http://statistics.data.gov.uk/id/local-authority/00ML,Education Services,BVAEDU,Ed Special Ed,EKE,Supplies and Services,E,Communications n Computing,EH,20/09/2013,PAY00601187,SENS,Special Educational Needs,255.2,Revenue,British Telecommunications Plc
Brighton & Hove City Council,http://statistics.data.gov.uk/id/local-authority/00ML,Education Services,BVAEDU,Ed Srvcs YP Ad and Cmty Ln,ENA,Supplies and Services,E,Communications n Computing,EH,20/09/2013,PAY00601187,OEDS,Other Education Support,974.6,Revenue,British Telecommunications Plc
Brighton & Hove City Council,http://statistics.data.gov.uk/id/local-authority/00ML,Education Services,BVAEDU,Ed Srvcs YP Youth Srvcs,ENY,Supplies and Services,E,Communications n Computing,EH,20/09/2013,PAY00601187,YOTS,Youth Service,309.13,Revenue,British Telecommunications Plc
Brighton & Hove City Council,http://statistics.data.gov.uk/id/local-authority/00ML,Environment & Regulatory Serv,BVAERS,Cem Crem and Mortuary Services,CCM,Supplies and Services,E,Communications n Computing,EH,20/09/2013,PAY00601187,LIFE,Life Events,54.23,Revenue,British Telecommunications Plc
Brighton & Hove City Council,http://statistics.data.gov.uk/id/local-authority/00ML,Environment & Regulatory Serv,BVAERS,Cem Crem and Mortuary Services,CCM,Supplies and Services,E,Services,EF,20/09/2013,PAY00601187,LIFE,Life Events,114.95,Revenue,British Telecommunications Plc
Brighton & Hove City Council,http://statistics.data.gov.uk/id/local-authority/00ML,Environment & Regulatory Serv,BVAERS,Consumer Protection,CNP,Supplies and Services,E,Communications n Computing,EH,20/09/2013,PAY00601187,PROT,Public Protection,133.62,Revenue,British Telecommunications Plc
Brighton & Hove City Council,http://statistics.data.gov.uk/id/local-authority/00ML,Environment & Regulatory Serv,BVAERS,Management Services (DEC),MGT,Supplies and Services,E,Print Stat & Gen Office Exps,ED,20/09/2013,PAY00601187,CICL,City Clean,70.41,Revenue,British Telecommunications Plc
Brighton & Hove City Council,http://statistics.data.gov.uk/id/local-authority/00ML,Environment & Regulatory Serv,BVAERS,Management Services (DEC),MGT,Third Party Payments,F,Private Contractors,FJ,20/09/2013,PAY00601187,CICL,City Clean,54.15,Revenue,British Telecommunications Plc
Brighton & Hove City Council,http://statistics.data.gov.uk/id/local-authority/00ML,Highways and Transportation,BVAHRT,Highways and Roads - Mntnce,HRM,Supplies and Services,E,Communications n Computing,EH,20/09/2013,PAY00601187,HIGH,Highways,54.15,Revenue,British Telecommunications Plc
Brighton & Hove City Council,http://statistics.data.gov.uk/id/local-authority/00ML,Highways and Transportation,BVAHRT,Parking Services,PRK,Supplies and Services,E,Communications n Computing,EH,20/09/2013,PAY00601187,PARK,Parking,2007.77,Revenue,British Telecommunications Plc
Brighton & Hove City Council,http://statistics.data.gov.uk/id/local-authority/00ML,Highways and Transportation,BVAHRT,Parking Services,PRK,Supplies and Services,E,Equip't Furniture n Materials,EA,20/09/2013,PAY00601187,PARK,Parking,151.85,Revenue,British Telecommunications Plc
Brighton & Hove City Council,http://statistics.data.gov.uk/id/local-authority/00ML,Housing General Fund,BVAHOG,Homelessness,HML,Supplies and Services,E,Communications n Computing,EH,20/09/2013,PAY00601187,HOSS,Housing Supports Services,1136.63,Revenue,British Telecommunications Plc
Brighton & Hove City Council,http://statistics.data.gov.uk/id/local-authority/00ML,Housing General Fund,BVAHOG,Homelessness,HML,Supplies and Services,E,Equip't Furniture n Materials,EA,20/09/2013,PAY00601187,HOPT,Housing Options,65.25,Revenue,British Telecommunications Plc
Brighton & Hove City Council,http://statistics.data.gov.uk/id/local-authority/00ML,Housing General Fund,BVAHOG,Hsing Benefits,HGB,Supplies and Services,E,Communications n Computing,EH,20/09/2013,PAY00601187,REVS,Revenues and Benefits,316.8,Revenue,British Telecommunications Plc
Brighton & Hove City Council,http://statistics.data.gov.uk/id/local-authority/00ML,Housing General Fund,BVAHOG,Hsing Strat Advice and RSLs,HGR,Supplies and Services,E,Communications n Computing,EH,20/09/2013,PAY00601187,HOSS,Housing Supports Services,-15.81,Revenue,British Telecommunications Plc
Brighton & Hove City Council,http://statistics.data.gov.uk/id/local-authority/00ML,Housing General Fund,BVAHOG,Support Services (SSC),PPT,Supplies and Services,E,Communications n Computing,EH,20/09/2013,PAY00601187,LIFE,Life Events,172.05,Revenue,British Telecommunications Plc
Brighton & Hove City Council,http://statistics.data.gov.uk/id/local-authority/00ML,Housing Revenue Account,BVAHOU,Hsing Management - HRA,HGM,Premises Related,C,Repair Maint n Alterations,CA,20/09/2013,PAY00601187,HPAI,Property & Investment,108.3,Revenue,British Telecommunications Plc
Brighton & Hove City Council,http://statistics.data.gov.uk/id/local-authority/00ML,Housing Revenue Account,BVAHOU,Hsing Management - HRA,HGM,Supplies and Services,E,Communications n Computing,EH,20/09/2013,PAY00601187,HIII,Income Involvement Improvement,247.05,Revenue,British Telecommunications Plc
Brighton & Hove City Council,http://statistics.data.gov.uk/id/local-authority/00ML,Housing Revenue Account,BVAHOU,Hsing Management - HRA,HGM,Supplies and Services,E,Communications n Computing,EH,20/09/2013,PAY00601187,HOHH,Head of Housing HRA,54.56,Revenue,British Telecommunications Plc
Brighton & Hove City Council,http://statistics.data.gov.uk/id/local-authority/00ML,Housing Revenue Account,BVAHOU,Hsing Management - HRA,HGM,Supplies and Services,E,Communications n Computing,EH,20/09/2013,PAY00601187,HPAI,Property & Investment,4872.27,Revenue,British Telecommunications Plc
Brighton & Hove City Council,http://statistics.data.gov.uk/id/local-authority/00ML,Housing Revenue Account,BVAHOU,Hsing Management - HRA,HGM,Supplies and Services,E,Communications n Computing,EH,20/09/2013,PAY00601187,HTEN,Tenancy Services,172.05,Revenue,British Telecommunications Plc
Brighton & Hove City Council,http://statistics.data.gov.uk/id/local-authority/00ML,Library Services,BVACUL,Library Service,LBR,Supplies and Services,E,Communications n Computing,EH,20/09/2013,PAY00601187,LIBS,Libraries,513.84,Revenue,British Telecommunications Plc
Brighton & Hove City Council,http://statistics.data.gov.uk/id/local-authority/00ML,Highways and Transportation,BVAHRT,Highways and Roads - Mntnce,HRM,Supplies and Services,E,Communications n Computing,EH,25/09/2013,PAY00602271,HIGH,Highways,1322.85,Revenue,British Telecommunications Plc
Brighton & Hove City Council,http://statistics.data.gov.uk/id/local-authority/00ML,Highways and Transportation,BVAHRT,Traffic Mgmnt and Road Safety,TMR,Premises Related,C,Repair Maint n Alterations,CA,25/09/2013,PAY00602271,HIGH,Highways,3612.74,Revenue,British Telecommunications Plc
Brighton & Hove City Council,http://statistics.data.gov.uk/id/local-authority/00ML,Highways and Transportation,BVAHRT,Traffic Mgmnt and Road Safety,TMR,Supplies and Services,E,Services,EF,25/09/2013,PAY00602271,HIGH,Highways,2489.88,Revenue,British Telecommunications Plc
Brighton & Hove City Council,http://statistics.data.gov.uk/id/local-authority/00ML,Housing Revenue Account,BVAHOU,Hsing Management - HRA,HGM,Supplies and Services,E,Communications n Computing,EH,25/09/2013,PAY00602271,HTEN,Tenancy Services,20,Revenue,British Telecommunications Plc
Brighton & Hove City Council,http://statistics.data.gov.uk/id/local-authority/00ML,Environment & Regulatory Serv,BVAERS,Environmental Health,EVH,Supplies and Services,E,Services,EF,27/09/2013,PAY00603424,PROT,Public Protection,300,Revenue,Brook Data Consulting
Brighton & Hove City Council,http://statistics.data.gov.uk/id/local-authority/00ML,Cultural and Related Serv,BVACUL,Culture and Heritage,CHG,Premises Related,C,Repair Maint n Alterations,CA,04/09/2013,PAY00597345,VENU,Venues,8994,Revenue,Browns Construction Solutions
Brighton & Hove City Council,http://statistics.data.gov.uk/id/local-authority/00ML,Cultural and Related Serv,BVACUL,Open Spaces,PEN,Supplies and Services,E,Equip't Furniture n Materials,EA,13/09/2013,PAY00599219,CIPK,City Parks,504,Revenue,Broxap Ltd
Brighton & Hove City Council,http://statistics.data.gov.uk/id/local-authority/00ML,Adult Social Care,BVASOC,S Svcs - Older People Svcs,PPL,Customer n Client Receipts,M,Fees n Charges,MB,04/09/2013,PAY00596839,OPMH,Community Care Older People MH,-287,Revenue,BS Project Services Ltd
Brighton & Hove City Council,http://statistics.data.gov.uk/id/local-authority/00ML,Adult Social Care,BVASOC,S Svcs - Older People Svcs,PPL,Third Party Payments,F,Other Establishments,FH,04/09/2013,PAY00596839,OPMH,Community Care Older People MH,2460.8,Revenue,BS Project Services Ltd
Brighton & Hove City Council,http://statistics.data.gov.uk/id/local-authority/00ML,Adult Social Care,BVASOC,S Svcs Other Adult Services,ADT,Third Party Payments,F,Other Establishments,FH,04/09/2013,PAY00596839,CCSM,Comm Care Substance Misuse,186.4,Revenue,BS Project Services Ltd
Brighton & Hove City Council,http://statistics.data.gov.uk/id/local-authority/00ML,Adult Social Care,BVASOC,S Svcs - Physical Disability,PDY,Third Party Payments,F,Other Establishments,FH,04/09/2013,PAY00596839,CCPD,Com Care Physical Disabilities,168.5,Revenue,BS Project Services Ltd
Brighton & Hove City Council,http://statistics.data.gov.uk/id/local-authority/00ML,Adult Social Care,BVASOC,S Svcs - Older People Svcs,PPL,Customer n Client Receipts,M,Fees n Charges,MB,11/09/2013,PAY00598387,OPMH,Community Care Older People MH,-314,Revenue,BS Project Services Ltd
Brighton & Hove City Council,http://statistics.data.gov.uk/id/local-authority/00ML,Adult Social Care,BVASOC,S Svcs - Older People Svcs,PPL,Third Party Payments,F,Other Establishments,FH,11/09/2013,PAY00598387,OPMH,Community Care Older People MH,2429.7,Revenue,BS Project Services Ltd
Brighton & Hove City Council,http://statistics.data.gov.uk/id/local-authority/00ML,Adult Social Care,BVASOC,S Svcs Other Adult Services,ADT,Third Party Payments,F,Other Establishments,FH,11/09/2013,PAY00598387,CCSM,Comm Care Substance Misuse,181.6,Revenue,BS Project Services Ltd
Brighton & Hove City Council,http://statistics.data.gov.uk/id/local-authority/00ML,Adult Social Care,BVASOC,S Svcs - Physical Disability,PDY,Third Party Payments,F,Other Establishments,FH,11/09/2013,PAY00598387,CCPD,Com Care Physical Disabilities,176.9,Revenue,BS Project Services Ltd
Brighton & Hove City Council,http://statistics.data.gov.uk/id/local-authority/00ML,Adult Social Care,BVASOC,S Svcs - Older People Svcs,PPL,Customer n Client Receipts,M,Fees n Charges,MB,13/09/2013,PAY00599091,OPMH,Community Care Older People MH,-314,Revenue,BS Project Services Ltd
Brighton & Hove City Council,http://statistics.data.gov.uk/id/local-authority/00ML,Adult Social Care,BVASOC,S Svcs - Older People Svcs,PPL,Third Party Payments,F,Other Establishments,FH,13/09/2013,PAY00599091,OPMH,Community Care Older People MH,2668.89,Revenue,BS Project Services Ltd
Brighton & Hove City Council,http://statistics.data.gov.uk/id/local-authority/00ML,Adult Social Care,BVASOC,S Svcs Other Adult Services,ADT,Third Party Payments,F,Other Establishments,FH,13/09/2013,PAY00599091,CCSM,Comm Care Substance Misuse,207.44,Revenue,BS Project Services Ltd
Brighton & Hove City Council,http://statistics.data.gov.uk/id/local-authority/00ML,Adult Social Care,BVASOC,S Svcs - Physical Disability,PDY,Third Party Payments,F,Other Establishments,FH,13/09/2013,PAY00599091,CCPD,Com Care Physical Disabilities,177.51,Revenue,BS Project Services Ltd
Brighton & Hove City Council,http://statistics.data.gov.uk/id/local-authority/00ML,Adult Social Care,BVASOC,S Svcs - Older People Svcs,PPL,Customer n Client Receipts,M,Fees n Charges,MB,20/09/2013,PAY00600822,OPMH,Community Care Older People MH,-275,Revenue,BS Project Services Ltd
Brighton & Hove City Council,http://statistics.data.gov.uk/id/local-authority/00ML,Adult Social Care,BVASOC,S Svcs - Older People Svcs,PPL,Third Party Payments,F,Other Establishments,FH,20/09/2013,PAY00600822,OPMH,Community Care Older People MH,2369.8,Revenue,BS Project Services Ltd
Brighton & Hove City Council,http://statistics.data.gov.uk/id/local-authority/00ML,Adult Social Care,BVASOC,S Svcs Other Adult Services,ADT,Third Party Payments,F,Other Establishments,FH,20/09/2013,PAY00600822,CCSM,Comm Care Substance Misuse,200.1,Revenue,BS Project Services Ltd
Brighton & Hove City Council,http://statistics.data.gov.uk/id/local-authority/00ML,Adult Social Care,BVASOC,S Svcs - Physical Disability,PDY,Third Party Payments,F,Other Establishments,FH,20/09/2013,PAY00600822,CCPD,Com Care Physical Disabilities,179.4,Revenue,BS Project Services Ltd
Brighton & Hove City Council,http://statistics.data.gov.uk/id/local-authority/00ML,Adult Social Care,BVASOC,S Svcs - Older People Svcs,PPL,Customer n Client Receipts,M,Fees n Charges,MB,27/09/2013,PAY00602823,OPMH,Community Care Older People MH,-275,Revenue,BS Project Services Ltd
Brighton & Hove City Council,http://statistics.data.gov.uk/id/local-authority/00ML,Adult Social Care,BVASOC,S Svcs - Older People Svcs,PPL,Third Party Payments,F,Other Establishments,FH,27/09/2013,PAY00602823,OPMH,Community Care Older People MH,2550.57,Revenue,BS Project Services Ltd
Brighton & Hove City Council,http://statistics.data.gov.uk/id/local-authority/00ML,Adult Social Care,BVASOC,S Svcs Other Adult Services,ADT,Third Party Payments,F,Other Establishments,FH,27/09/2013,PAY00602823,CCSM,Comm Care Substance Misuse,182.9,Revenue,BS Project Services Ltd
Brighton & Hove City Council,http://statistics.data.gov.uk/id/local-authority/00ML,Adult Social Care,BVASOC,S Svcs - Physical Disability,PDY,Third Party Payments,F,Other Establishments,FH,27/09/2013,PAY00602823,CCPD,Com Care Physical Disabilities,43.32,Revenue,BS Project Services Ltd
Brighton & Hove City Council,http://statistics.data.gov.uk/id/local-authority/00ML,Highways and Transportation,BVAHRT,Public Transport,PTR,Supplies and Services,E,Services,EF,04/09/2013,PAY00597084,TPRS,Transport Plan and Road Safety,800.28,Revenue,BT Openreach
Brighton & Hove City Council,http://statistics.data.gov.uk/id/local-authority/00ML,Education Services,BVAEDU,Ed Secondary Ed,EJE,Supplies and Services,E,Services,EF,11/09/2013,PAY00598447,OEDS,Other Education Support,252503.54,Revenue,Bton & Hove City Schools Services Ltd
Brighton & Hove City Council,http://statistics.data.gov.uk/id/local-authority/00ML,Adult Social Care,BVASOC,S Svcs - Older People Svcs,PPL,Customer n Client Receipts,M,Fees n Charges,MB,04/09/2013,PAY00597062,CCOP,Community Care Older People,-3235.47,Revenue,BUPA Care Services
Brighton & Hove City Council,http://statistics.data.gov.uk/id/local-authority/00ML,Adult Social Care,BVASOC,S Svcs - Older People Svcs,PPL,Third Party Payments,F,Other Establishments,FH,04/09/2013,PAY00597062,CCOP,Community Care Older People,5318.29,Revenue,BUPA Care Services
Brighton & Hove City Council,http://statistics.data.gov.uk/id/local-authority/00ML,Adult Social Care,BVASOC,S Svcs - Older People Svcs,PPL,Third Party Payments,F,Other Establishments,FH,11/09/2013,PAY00598572,ASIT,Assessment and SIT,905.92,Revenue,BUPA Care Services
Brighton & Hove City Council,http://statistics.data.gov.uk/id/local-authority/00ML,Adult Social Care,BVASOC,S Svcs - Older People Svcs,PPL,Customer n Client Receipts,M,Fees n Charges,MB,18/09/2013,PAY00600258,CCOP,Community Care Older People,-2251.04,Revenue,BUPA Care Services
Brighton & Hove City Council,http://statistics.data.gov.uk/id/local-authority/00ML,Adult Social Care,BVASOC,S Svcs - Older People Svcs,PPL,Third Party Payments,F,Other Establishments,FH,18/09/2013,PAY00600258,ASIT,Assessment and SIT,2352.64,Revenue,BUPA Care Services
Brighton & Hove City Council,http://statistics.data.gov.uk/id/local-authority/00ML,Adult Social Care,BVASOC,S Svcs - Older People Svcs,PPL,Third Party Payments,F,Other Establishments,FH,18/09/2013,PAY00600258,CCOP,Community Care Older People,9404.54,Revenue,BUPA Care Services
Brighton & Hove City Council,http://statistics.data.gov.uk/id/local-authority/00ML,Adult Social Care,BVASOC,S Svcs - Older People Svcs,PPL,Customer n Client Receipts,M,Fees n Charges,MB,27/09/2013,PAY00603248,CCOP,Community Care Older People,-8748.48,Revenue,BUPA Care Services
Brighton & Hove City Council,http://statistics.data.gov.uk/id/local-authority/00ML,Adult Social Care,BVASOC,S Svcs - Older People Svcs,PPL,Third Party Payments,F,Other Establishments,FH,27/09/2013,PAY00603248,CCOP,Community Care Older People,25254.36,Revenue,BUPA Care Services
Brighton & Hove City Council,http://statistics.data.gov.uk/id/local-authority/00ML,Cultural and Related Serv,BVACUL,Culture and Heritage,CHG,Premises Related,C,Cleaning n Domestic Supps,CH,20/09/2013,PAY00600981,RPMU,Royal Pavilion and Museums,645.1,Revenue,Burlington Uniforms Limited
Brighton & Hove City Council,http://statistics.data.gov.uk/id/local-authority/00ML,Adult Social Care,BVASOC,S Svcs - Older People Svcs,PPL,Customer n Client Receipts,M,Fees n Charges,MB,27/09/2013,PAY00603473,CCOP,Community Care Older People,-1041.4,Revenue,Bybuckle Court
Brighton & Hove City Council,http://statistics.data.gov.uk/id/local-authority/00ML,Adult Social Care,BVASOC,S Svcs - Older People Svcs,PPL,Third Party Payments,F,Other Establishments,FH,27/09/2013,PAY00603473,CCOP,Community Care Older People,1788,Revenue,Bybuckle Court
Brighton & Hove City Council,http://statistics.data.gov.uk/id/local-authority/00ML,Non-BHC Organisations,BVANON,Trusts,TRT,Supplies and Services,E,Grants n Subscriptions,EK,26/09/2013,PAY499011,NBHC,Non Council,314.93,Revenue,C & H Fabrics Ltd
Brighton & Hove City Council,http://statistics.data.gov.uk/id/local-authority/00ML,Cultural and Related Serv,BVACUL,Culture and Heritage,CHG,Premises Related,C,Repair Maint n Alterations,CA,13/09/2013,PAY00599231,VENU,Venues,432.15,Revenue,C Brewer & Sons Ltd
Brighton & Hove City Council,http://statistics.data.gov.uk/id/local-authority/00ML,Housing Revenue Account,BVAHOU,Hsing Management - HRA,HGM,Premises Related,C,Repair Maint n Alterations,CA,13/09/2013,PAY00599231,HIII,Income Involvement Improvement,65.23,Revenue,C Brewer & Sons Ltd
Brighton & Hove City Council,http://statistics.data.gov.uk/id/local-authority/00ML,Housing Revenue Account,BVAHOU,Hsing Management - HRA,HGM,Premises Related,C,Repair Maint n Alterations,CA,13/09/2013,PAY00599231,HTEN,Tenancy Services,535.74,Revenue,C Brewer & Sons Ltd
Brighton & Hove City Council,http://statistics.data.gov.uk/id/local-authority/00ML,Housing Revenue Account,BVAHOU,Hsing Management - HRA,HGM,Premises Related,C,Repair Maint n Alterations,CA,20/09/2013,PAY00600983,HIII,Income Involvement Improvement,32.94,Revenue,C Brewer & Sons Ltd
Brighton & Hove City Council,http://statistics.data.gov.uk/id/local-authority/00ML,Housing Revenue Account,BVAHOU,Hsing Management - HRA,HGM,Premises Related,C,Repair Maint n Alterations,CA,20/09/2013,PAY00600983,HTEN,Tenancy Services,548.75,Revenue,C Brewer & Sons Ltd
Brighton & Hove City Council,http://statistics.data.gov.uk/id/local-authority/00ML,Housing Revenue Account,BVAHOU,Hsing Management - HRA,HGM,Premises Related,C,Repair Maint n Alterations,CA,25/09/2013,PAY00602190,HTEN,Tenancy Services,82.55,Revenue,C Brewer & Sons Ltd
Brighton & Hove City Council,http://statistics.data.gov.uk/id/local-authority/00ML,Housing Revenue Account,BVAHOU,Hsing Management - HRA,HGM,Supplies and Services,E,Equip't Furniture n Materials,EA,25/09/2013,PAY00602190,HTEN,Tenancy Services,177.1,Revenue,C Brewer & Sons Ltd
Brighton & Hove City Council,http://statistics.data.gov.uk/id/local-authority/00ML,Environment & Regulatory Serv,BVAERS,Flood Drainage and Coast Prtn,FDC,Premises Related,C,Repair Maint n Alterations,CA,20/09/2013,PAY00601181,HWEN,Highways Engineering,262.77,Revenue,C J Thorne & Co Ltd
Brighton & Hove City Council,http://statistics.data.gov.uk/id/local-authority/00ML,Highways and Transportation,BVAHRT,Highways and Roads - Mntnce,HRM,Premises Related,C,Repair Maint n Alterations,CA,20/09/2013,PAY00601181,HWEN,Highways Engineering,12430.99,Revenue,C J Thorne & Co Ltd
Brighton & Hove City Council,http://statistics.data.gov.uk/id/local-authority/00ML,Environment & Regulatory Serv,BVAERS,Flood Drainage and Coast Prtn,FDC,Premises Related,C,Repair Maint n Alterations,CA,27/09/2013,PAY00603278,HWEN,Highways Engineering,7032.39,Revenue,C J Thorne & Co Ltd
Brighton & Hove City Council,http://statistics.data.gov.uk/id/local-authority/00ML,Highways and Transportation,BVAHRT,Highways and Roads - Mntnce,HRM,Premises Related,C,Repair Maint n Alterations,CA,27/09/2013,PAY00603278,HWEN,Highways Engineering,730.27,Revenue,C J Thorne & Co Ltd
Brighton & Hove City Council,http://statistics.data.gov.uk/id/local-authority/00ML,Cultural and Related Serv,BVACUL,Culture and Heritage,CHG,Supplies and Services,E,Miscellaneous Expenses,EM,20/09/2013,PAY00601284,RPMU,Royal Pavilion and Museums,297.8,Revenue,C3 Productions Ltd
Brighton & Hove City Council,http://statistics.data.gov.uk/id/local-authority/00ML,Non I&E,BVANON,CAP Transport,4TR,New Construction n Conversion,PB,Level Not Required,NR5026,11/09/2013,PAY00598393,HWEN,Highways Engineering,2885,Capital,CA Traffic Ltd
Brighton & Hove City Council,http://statistics.data.gov.uk/id/local-authority/00ML,Education Services,BVAEDU,Ed EY Central,EAE,Supplies and Services,E,Communications n Computing,EH,06/09/2013,PAY00597863,EYRS,Early Years,1262.55,Revenue,CACI Limited
Brighton & Hove City Council,http://statistics.data.gov.uk/id/local-authority/00ML,Education Services,BVAEDU,Ed Srvcs YP Ad and Cmty Ln,ENA,Supplies and Services,E,Miscellaneous Expenses,EM,25/09/2013,PAY00602614,OEDS,Other Education Support,535,Revenue,Call Us First Ltd
Brighton & Hove City Council,http://statistics.data.gov.uk/id/local-authority/00ML,Cultural and Related Serv,BVACUL,Management Services (DEC),MGT,Transport Related,D,Direct Transport Costs,DA,04/09/2013,PAY00597026,CIPK,City Parks,656.89,Revenue,Camberley Auto Factors Ltd
Brighton & Hove City Council,http://statistics.data.gov.uk/id/local-authority/00ML,Environment & Regulatory Serv,BVAERS,Management Services (DEC),MGT,Transport Related,D,Direct Transport Costs,DA,04/09/2013,PAY00597026,CICL,City Clean,9.48,Revenue,Camberley Auto Factors Ltd
Brighton & Hove City Council,http://statistics.data.gov.uk/id/local-authority/00ML,Cultural and Related Serv,BVACUL,Management Services (DEC),MGT,Supplies and Services,E,Equip't Furniture n Materials,EA,06/09/2013,PAY00597812,CIPK,City Parks,25.58,Revenue,Camberley Auto Factors Ltd
Brighton & Hove City Council,http://statistics.data.gov.uk/id/local-authority/00ML,Cultural and Related Serv,BVACUL,Management Services (DEC),MGT,Transport Related,D,Direct Transport Costs,DA,06/09/2013,PAY00597812,CIPK,City Parks,406.17,Revenue,Camberley Auto Factors Ltd
Brighton & Hove City Council,http://statistics.data.gov.uk/id/local-authority/00ML,Central Support and Overheads,BVACEN,Support Services (SSC),PPT,Transport Related,D,Direct Transport Costs,DA,11/09/2013,PAY00598544,PROP,Property and Design,33.02,Revenue,Camberley Auto Factors Ltd
Brighton & Hove City Council,http://statistics.data.gov.uk/id/local-authority/00ML,Cultural and Related Serv,BVACUL,Management Services (DEC),MGT,Transport Related,D,Direct Transport Costs,DA,11/09/2013,PAY00598544,CIPK,City Parks,4.1,Revenue,Camberley Auto Factors Ltd
Brighton & Hove City Council,http://statistics.data.gov.uk/id/local-authority/00ML,Environment & Regulatory Serv,BVAERS,Management Services (DEC),MGT,Transport Related,D,Direct Transport Costs,DA,11/09/2013,PAY00598544,CICL,City Clean,213.03,Revenue,Camberley Auto Factors Ltd
Brighton & Hove City Council,http://statistics.data.gov.uk/id/local-authority/00ML,Cultural and Related Serv,BVACUL,Management Services (DEC),MGT,Transport Related,D,Direct Transport Costs,DA,13/09/2013,PAY00599414,CIPK,City Parks,279.45,Revenue,Camberley Auto Factors Ltd
Brighton & Hove City Council,http://statistics.data.gov.uk/id/local-authority/00ML,Housing Revenue Account,BVAHOU,Hsing Management - HRA,HGM,Transport Related,D,Direct Transport Costs,DA,13/09/2013,PAY00599414,HTEN,Tenancy Services,37.82,Revenue,Camberley Auto Factors Ltd
Brighton & Hove City Council,http://statistics.data.gov.uk/id/local-authority/00ML,Children�s Social Care,BVACSC,Child Srvcs - Residential Svcs,FLR,Third Party Payments,F,Other Establishments,FH,18/09/2013,PAY00600259,AVFM,Agency Placements\VFM,15384,Revenue,Cambian Autism Services Ltd
Brighton & Hove City Council,http://statistics.data.gov.uk/id/local-authority/00ML,Adult Social Care,BVASOC,S Svcs - Learning Disability,LDY,Third Party Payments,F,Other Establishments,FH,27/09/2013,PAY00603249,CCLD,Com Care Learning Disabilities,46630.2,Revenue,Cambian Autism Services Ltd
Brighton & Hove City Council,http://statistics.data.gov.uk/id/local-authority/00ML,Adult Social Care,BVASOC,S Svcs - Older People Svcs,PPL,Customer n Client Receipts,M,Fees n Charges,MB,04/09/2013,PAY00596797,CCOP,Community Care Older People,5115.85,Revenue,Camelot Nursing Home
Brighton & Hove City Council,http://statistics.data.gov.uk/id/local-authority/00ML,Adult Social Care,BVASOC,S Svcs - Older People Svcs,PPL,Customer n Client Receipts,M,Fees n Charges,MB,27/09/2013,PAY00602771,CCOP,Community Care Older People,-1464.48,Revenue,Camelot Nursing Home
Brighton & Hove City Council,http://statistics.data.gov.uk/id/local-authority/00ML,Adult Social Care,BVASOC,S Svcs - Older People Svcs,PPL,Third Party Payments,F,Other Establishments,FH,27/09/2013,PAY00602771,CCOP,Community Care Older People,9168,Revenue,Camelot Nursing Home
Brighton & Hove City Council,http://statistics.data.gov.uk/id/local-authority/00ML,Central Support and Overheads,BVACEN,Support Services (SSC),PPT,Supplies and Services,E,Equip't Furniture n Materials,EA,27/09/2013,PAY00603169,PROP,Property and Design,466.9,Revenue,Canon (UK) Ltd t/a Oce (UK)
Brighton & Hove City Council,http://statistics.data.gov.uk/id/local-authority/00ML,Adult Social Care,BVASOC,S Svcs - Learning Disability,LDY,Customer n Client Receipts,M,Fees n Charges,MB,04/09/2013,PAY00596793,CCLD,Com Care Learning Disabilities,-315.2,Revenue,Canterbury Oast Trust Ltd
